{"text_format":"1","workbook":"xlsx","n_sheets":3,"sheets":["Office Managers Report","Sanitation Report","Sanitation Report 2"],"not_rendered":{"charts":0,"images":4,"macros":0,"external_links":0,"defined_names":3,"comments":0,"pivot_tables":0},"unopened":[],"bounds":{"document_bytes":16777216,"sheet_cells":100000,"rows_first":2000,"rows_last":500,"rows_between":2000,"halvings":0,"cell_chars":16384,"cell_head_chars":4096},"cells_cut":0,"cells_raw":0,"read":"whole","date_system":"1900"}

{"sheet":"Office Managers Report","index":0,"n_rows":59,"n_cols":40,"rows_kept":59,"cut":false,"hidden":false,"merged":[[25,20,25,21],[25,24,25,26],[25,27,25,28],[25,29,25,32],[26,20,26,21],[10,1,10,7],[45,1,45,11],[45,12,45,15],[28,1,28,26],[26,17,26,18],[25,6,25,15],[26,6,26,15],[25,17,25,18],[24,17,24,18],[25,1,25,5],[26,1,26,5],[24,20,24,21],[24,22,24,23],[24,24,24,26],[24,1,24,5],[22,1,22,5],[18,1,18,5],[24,6,24,15],[10,19,10,22],[0,28,2,32],[5,12,5,15],[5,16,5,20],[5,23,5,27],[5,28,5,32],[7,6,7,32],[8,4,8,32],[17,1,17,5],[23,17,23,18],[22,17,22,18],[21,17,21,19],[21,21,21,23],[21,24,21,27],[7,1,7,5],[8,1,8,3],[0,1,0,10],[0,11,2,24],[1,1,2,10],[5,1,5,2],[5,3,5,6],[21,1,21,5],[23,1,23,5],[19,1,19,5],[20,1,20,5],[10,23,10,32],[12,1,12,11],[12,13,12,22],[12,24,12,32],[13,1,13,6],[13,7,13,11],[13,13,13,17],[13,18,13,22],[13,24,13,28],[13,29,13,32],[10,8,10,15],[20,17,20,19],[20,21,20,23],[20,24,20,27],[20,29,20,32],[14,1,14,6],[14,7,14,11],[14,13,14,17],[14,18,14,22],[14,24,14,28],[14,29,14,32],[15,1,15,6],[15,7,15,11],[15,13,15,17],[15,18,15,22],[15,24,15,28],[15,29,15,32],[17,6,17,15],[17,17,17,19],[17,21,17,23],[17,24,17,27],[17,29,17,32],[18,6,18,15],[18,17,18,19],[18,21,18,23],[18,24,18,27],[18,29,18,32],[45,29,45,31],[48,1,51,32],[19,6,19,15],[21,29,21,32],[22,6,22,15],[22,20,22,21],[22,22,22,23],[22,24,22,26],[22,27,22,28],[22,29,22,32],[23,6,23,15],[23,20,23,21],[23,22,23,23],[23,24,23,26],[23,27,23,28],[23,29,23,32],[21,6,21,15],[24,27,24,28],[24,29,24,32],[19,17,19,19],[19,21,19,23],[19,24,19,27],[19,29,19,32],[20,6,20,15],[63,2,64,7],[63,8,64,13],[63,14,64,19],[63,20,64,25],[63,26,64,31],[53,1,54,8],[53,22,54,29],[55,1,55,8],[55,22,55,29],[56,1,56,8],[56,22,56,29],[58,2,62,7],[58,8,62,13],[58,14,62,19],[58,20,62,25],[58,26,62,31],[26,22,26,23],[26,24,26,26],[26,27,26,28],[26,29,26,32],[29,1,41,32],[43,1,43,32],[45,20,45,28]]}
[null,"Corbett Exterminating",null,null,null,null,null,null,null,null,null,"Office Managers Report",null,null,null,null,null,null,null,null,null,null,null,null,null,null,null,null,null,null,null,null,null,null,null,"Green Street Apartments",{"$f":"LEN(AJ1)","v":23.0},{"$f":"FIND(\"(\",AJ1)-1","v":{"$error":"#VALUE!"}},{"$f":"LEFT(AJ1,AL1)","v":{"$error":"#VALUE!"}},{"$f":"IF(ISNUMBER(SEARCH(\"*(NHA*\",AJ1)),AJ1,AM1)","v":{"$error":"#VALUE!"}}]
[null,"Integrated Pest Management\n1-800-888-Pest",null,null,null,null,null,null,null,null,null,null,null,null,null,null,null,null,null,null,null,null,null,null,null,null,null,null,null,null,null,null,null,null,null,{"$f":"IF(ISNUMBER(SEARCH(\"*(NHA*\",#REF!)),AJ1,IF(ISNUMBER(SEARCH(\"*(NJT*\",AJ1)),AJ1,AN1))","v":{"$error":"#VALUE!"}}]
[null,null,null,null,null,null,null,null,null,null,null,null,null,null,null,null,null,null,null,null,null,null,null,null,null,null,null,null,null,null,null,null,null,null,null,{"$f":"IFERROR(AJ2,AJ1)","v":"{Customer_Name}"}]
[]
[]
[null,"Date:",null,"02/22/2016",null,null,null,null,null,null,null,null,"Time of arrival:",null,null,null,"10:50 AM",null,null,null,null,null,null,"Time of Departure:",null,null,null,null,"11:33 AM"]
[]
[null,"Name of Complex:",null,null,null,null,{"$f":"AJ3","v":"{Customer_Name}"}]
[null,"Address:",null,null,"1603 Cecil B Moore Ave, Philadelphia, PA 19121"]
[]
[null,"Apartment Doors Keyed?:",null,null,null,null,null,null,"Units & Common Areas",null,null,null,null,null,null,null,null,null,null,"Escorts Name:",null,null,null,"Hector"]
[]
[null,"Interior Rodent Stations",null,null,null,null,null,null,null,null,null,null,null,"Exterior Rodent Stations",null,null,null,null,null,null,null,null,null,null,"Rodent Trapping"]
[null,"# of Stations Serviced",null,null,null,null,null,null,null,null,null,null,null,"# of Stations",null,null,null,null,null,null,null,null,null,null,"Mice Glue Boards"]
[null,"Replaced",null,null,null,null,null,null,null,null,null,null,null,"Missing/Damaged",null,null,null,null,null,null,null,null,null,null,"Rat Glue Boards"]
[null,"Mice Stations",null,null,null,null,null,null,null,null,null,null,null,null,null,null,null,null,null,null,null,null,null,null,"Snap Traps"]
[null,"Chemical Usage:"]
[null,"Chemical | EPA #",null,null,null,null,"Maxforce FC Select | 432-1259",null,null,null,null,null,null,null,null,null,null,"0.001",null,null,"%","Amount",null,null,"10",null,null,null,null,"Grams"]
[null,"Chemical | EPA #",null,null,null,null,null,null,null,null,null,null,null,null,null,null,null,null,null,null,"%","Amount"]
[null,"Chemical | EPA #",null,null,null,null,null,null,null,null,null,null,null,null,null,null,null,null,null,null,"%","Amount"]
[null,"Chemical | EPA #",null,null,null,null,null,null,null,null,null,null,null,null,null,null,null,null,null,null,"%","Amount"]
[null,"Chemical | EPA #",null,null,null,null,null,null,null,null,null,null,null,null,null,null,null,null,null,null,"%","Amount"]
[null,"Rodenticide | EPA #",null,null,null,null,null,null,null,null,null,null,null,null,null,null,null,null,null,"%","Amount",null,null,null,null,null,null,"Rate"]
[null,"Rodenticide | EPA #",null,null,null,null,null,null,null,null,null,null,null,null,null,null,null,null,null,"%","Amount",null,null,null,null,null,null,"Rate"]
[null,"Rodenticide | EPA #",null,null,null,null,null,null,null,null,null,null,null,null,null,null,null,null,null,"%","Amount",null,null,null,null,null,null,"Rate"]
[null,"Rodenticide | EPA #",null,null,null,null,null,null,null,null,null,null,null,null,null,null,null,null,null,"%","Amount",null,null,null,null,null,null,"Rate"]
[null,"Rodenticide | EPA #",null,null,null,null,null,null,null,null,null,null,null,null,null,null,null,null,null,"%","Amount",null,null,null,null,null,null,"Rate"]
[]
[null,"P.C.O. Comments:"]
[null,"P.C.O performed monthly C.E.M.I.T treatment for all units noted an common areas. Reviewed report with management ."]
[]
[]
[]
[]
[]
[]
[]
[]
[]
[]
[]
[]
[]
[null,"Site Manager Section"]
[]
[null,"Were you satisfied with the technician(s)?",null,null,null,null,null,null,null,null,null,null,null,null,null,null,null,null,null,null,"Were you satisfied with the service?"]
[]
[null,"Manager's Comments:"]
[]
[]
[]
[]
[]
[null,"",null,null,null,null,null,null,null,null,null,null,null,null,null,null,null,null,null,null,null,null,""]
[]
[null,"Hector",null,null,null,null,null,null,null,null,null,null,null,null,null,null,null,null,null,null,null,null,"Richard Thomas"]
[null,"Manager's Name",null,null,null,null,null,null,null,null,null,null,null,null,null,null,null,null,null,null,null,null,"Technician"]
[]
[null,null,"",null,null,null,null,null,"",null,null,null,null,null,"",null,null,null,null,null,"",null,null,null,null,null,""]

{"sheet":"Sanitation Report","index":1,"n_rows":562,"n_cols":62,"rows_kept":562,"cut":false,"hidden":true,"merged":[[484,19,486,30],[484,31,484,41],[484,43,486,47],[484,50,486,54],[485,32,485,40],[486,31,486,41],[481,31,481,41],[481,43,483,47],[481,50,483,54],[482,32,482,40],[483,31,483,41],[484,1,486,5],[484,6,486,8],[484,9,486,12],[484,13,486,17],[484,18,486,18],[481,1,483,5],[481,6,483,8],[481,9,483,12],[481,13,483,17],[481,18,483,18],[481,19,483,30],[472,31,472,41],[472,43,474,47],[472,50,474,54],[473,32,473,40],[474,31,474,41],[478,19,480,30],[478,31,478,41],[478,43,480,47],[478,50,480,54],[479,32,479,40],[480,31,480,41],[475,31,475,41],[475,43,477,47],[475,50,477,54],[0,0,0,2],[0,3,0,14],[3,0,3,4],[3,5,3,14],[4,0,4,5],[4,6,4,14],[1,0,2,4],[1,5,2,15],[476,32,476,40],[477,31,477,41],[466,1,468,5],[466,6,468,8],[466,9,468,12],[466,13,468,17],[466,18,468,18],[478,1,480,5],[478,6,480,8],[478,9,480,12],[478,13,480,17],[478,18,480,18],[475,1,477,5],[475,6,477,8],[475,9,477,12],[475,13,477,17],[475,18,477,18],[475,19,477,30],[472,19,474,30],[460,50,462,54],[461,32,461,40],[462,31,462,41],[460,18,462,18],[457,1,459,5],[457,6,459,8],[457,9,459,12],[457,13,459,17],[457,18,459,18],[457,19,459,30],[469,31,469,41],[469,43,471,47],[469,50,471,54],[470,32,470,40],[471,31,471,41],[472,1,474,5],[472,6,474,8],[472,9,474,12],[472,13,474,17],[472,18,474,18],[469,1,471,5],[469,6,471,8],[469,9,471,12],[469,13,471,17],[469,18,471,18],[469,19,471,30],[466,19,468,30],[466,31,466,41],[466,43,468,47],[466,50,468,54],[467,32,467,40],[468,31,468,41],[464,32,464,40],[465,31,465,41],[444,0,444,4],[444,5,444,14],[444,16,445,19],[444,20,445,26],[444,27,445,33],[444,34,445,40],[445,0,445,5],[445,6,445,14],[446,0,446,4],[447,1,447,5],[451,31,451,41],[451,43,453,47],[451,50,453,54],[452,32,452,40],[453,31,453,41],[454,1,456,5],[454,6,456,8],[454,9,456,12],[454,13,456,17],[454,18,456,18],[451,1,453,5],[463,1,465,5],[463,6,465,8],[463,9,465,12],[463,13,465,17],[463,18,465,18],[463,19,465,30],[460,19,462,30],[460,31,460,41],[460,43,462,47],[432,1,434,5],[432,6,434,8],[432,9,434,12],[432,13,434,17],[432,18,434,18],[432,19,434,30],[432,43,434,47],[432,50,434,54],[433,32,433,40],[434,31,434,41],[438,31,438,41],[435,1,437,5],[435,6,437,8],[435,9,437,12],[435,13,437,17],[435,18,437,18],[435,19,437,30],[435,43,437,47],[435,50,437,54],[429,43,431,47],[429,50,431,54],[430,32,430,40],[431,31,431,41],[451,6,453,8],[451,9,453,12],[451,13,453,17],[451,18,453,18],[451,19,453,30],[448,19,450,30],[448,31,448,41],[448,43,450,47],[448,50,450,54],[449,32,449,40],[450,31,450,41],[435,31,435,41],[432,31,432,41],[442,5,443,15],[413,31,413,41],[414,1,416,5],[414,6,416,8],[414,9,416,12],[414,13,416,17],[414,18,416,18],[414,19,416,30],[414,43,416,47],[414,50,416,54],[415,32,415,40],[416,31,416,41],[420,50,422,54],[421,32,421,40],[422,31,422,41],[429,31,429,41],[426,31,426,41],[423,1,425,5],[423,6,425,8],[423,9,425,12],[423,13,425,17],[423,18,425,18],[423,19,425,30],[423,43,425,47],[423,50,425,54],[424,32,424,40],[425,31,425,41],[429,1,431,5],[429,6,431,8],[429,9,431,12],[429,13,431,17],[429,18,431,18],[429,19,431,30],[399,43,401,47],[399,50,401,54],[400,32,400,40],[401,31,401,41],[392,0,392,2],[392,3,392,14],[411,31,411,41],[408,31,408,41],[408,1,410,5],[408,6,410,8],[408,9,410,12],[408,13,410,17],[408,18,410,18],[408,19,410,30],[408,43,410,47],[408,50,410,54],[409,32,409,40],[410,31,410,41],[393,0,394,4],[393,5,394,15],[393,16,393,40],[394,16,394,19],[394,20,394,26],[394,27,394,33],[394,34,394,40],[395,0,395,4],[395,5,395,14],[395,16,396,19],[395,20,396,26],[395,27,396,33],[395,34,396,40],[396,0,396,5],[374,19,376,30],[374,31,374,41],[374,43,376,47],[391,31,391,41],[388,31,388,41],[389,1,391,5],[389,6,391,8],[389,9,391,12],[389,13,391,17],[389,18,391,18],[389,19,391,30],[389,31,389,41],[389,43,391,47],[389,50,391,54],[390,32,390,40],[383,1,385,5],[383,6,385,8],[383,9,385,12],[383,13,385,17],[383,18,385,18],[383,19,385,30],[383,31,383,41],[383,43,385,47],[383,50,385,54],[384,32,384,40],[386,1,388,5],[386,6,388,8],[386,9,388,12],[386,13,388,17],[386,18,388,18],[386,19,388,30],[386,31,386,41],[366,32,366,40],[373,31,373,41],[370,31,370,41],[368,1,370,5],[368,6,370,8],[368,9,370,12],[368,13,370,17],[368,18,370,18],[368,19,370,30],[368,31,368,41],[368,43,370,47],[368,50,370,54],[369,32,369,40],[379,31,379,41],[376,31,376,41],[377,1,379,5],[377,6,379,8],[377,9,379,12],[377,13,379,17],[377,18,379,18],[377,19,379,30],[377,31,377,41],[377,43,379,47],[377,50,379,54],[378,32,378,40],[374,50,376,54],[375,32,375,40],[374,1,376,5],[374,6,376,8],[374,9,376,12],[374,13,376,17],[374,18,376,18],[350,43,352,47],[350,50,352,54],[351,32,351,40],[353,1,355,5],[353,6,355,8],[353,9,355,12],[353,13,355,17],[361,31,361,41],[358,31,358,41],[362,1,364,5],[362,6,364,8],[362,9,364,12],[362,13,364,17],[362,18,364,18],[362,19,364,30],[362,31,362,41],[362,43,364,47],[362,50,364,54],[363,32,363,40],[353,18,355,18],[353,19,355,30],[353,31,353,41],[353,43,355,47],[353,50,355,54],[354,32,354,40],[356,1,358,5],[356,6,358,8],[356,9,358,12],[356,13,358,17],[356,18,358,18],[356,19,358,30],[356,31,356,41],[346,0,346,4],[346,5,346,14],[346,16,347,19],[346,20,347,26],[346,27,347,33],[346,34,347,40],[347,0,347,5],[347,6,347,14],[348,0,348,4],[349,1,349,5],[349,6,349,8],[349,9,349,12],[349,13,349,17],[349,19,349,30],[349,31,349,40],[350,1,352,5],[350,6,352,8],[350,9,352,12],[350,13,352,17],[352,31,352,41],[350,18,352,18],[350,19,352,30],[350,31,350,41],[337,43,339,47],[337,50,339,54],[338,32,338,40],[339,31,339,41],[340,1,342,5],[340,6,342,8],[340,9,342,12],[340,13,342,17],[340,18,342,18],[337,1,339,5],[337,6,339,8],[337,9,339,12],[337,13,339,17],[337,18,339,18],[337,19,339,30],[334,19,336,30],[334,31,334,41],[334,43,336,47],[334,50,336,54],[335,32,335,40],[336,31,336,41],[340,19,342,30],[340,31,340,41],[340,43,342,47],[340,50,342,54],[341,32,341,40],[342,31,342,41],[331,43,333,47],[331,50,333,54],[332,32,332,40],[333,31,333,41],[334,1,336,5],[334,6,336,8],[334,9,336,12],[334,13,336,17],[334,18,336,18],[331,1,333,5],[331,6,333,8],[331,9,333,12],[331,13,333,17],[331,18,333,18],[331,19,333,30],[328,19,330,30],[328,31,328,41],[328,43,330,47],[328,50,330,54],[329,32,329,40],[330,31,330,41],[325,43,327,47],[325,50,327,54],[326,32,326,40],[327,31,327,41],[328,1,330,5],[328,6,330,8],[328,9,330,12],[328,13,330,17],[328,18,330,18],[325,1,327,5],[325,6,327,8],[325,9,327,12],[325,13,327,17],[325,18,327,18],[325,19,327,30],[322,19,324,30],[322,31,322,41],[322,43,324,47],[322,50,324,54],[323,32,323,40],[324,31,324,41],[319,43,321,47],[319,50,321,54],[320,32,320,40],[321,31,321,41],[322,1,324,5],[322,6,324,8],[322,9,324,12],[322,13,324,17],[322,18,324,18],[319,1,321,5],[319,6,321,8],[319,9,321,12],[319,13,321,17],[319,18,321,18],[319,19,321,30],[316,19,318,30],[316,31,316,41],[316,43,318,47],[316,50,318,54],[317,32,317,40],[318,31,318,41],[307,19,309,30],[304,19,306,30],[304,31,304,41],[304,43,306,47],[304,50,306,54],[305,32,305,40],[306,31,306,41],[313,43,315,47],[313,50,315,54],[314,32,314,40],[315,31,315,41],[316,1,318,5],[316,6,318,8],[316,9,318,12],[316,13,318,17],[316,18,318,18],[313,1,315,5],[313,6,315,8],[313,9,315,12],[313,13,315,17],[313,18,315,18],[313,19,315,30],[310,19,312,30],[310,31,310,41],[310,43,312,47],[310,50,312,54],[311,32,311,40],[312,31,312,41],[297,0,297,4],[301,31,301,41],[301,43,303,47],[301,50,303,54],[302,32,302,40],[303,31,303,41],[304,1,306,5],[304,6,306,8],[304,9,306,12],[304,13,306,17],[304,18,306,18],[301,1,303,5],[301,6,303,8],[301,9,303,12],[301,13,303,17],[301,18,303,18],[301,19,303,30],[297,5,297,14],[297,16,298,19],[297,20,298,26],[297,27,298,33],[297,34,298,40],[298,0,298,5],[298,6,298,14],[299,0,299,4],[300,1,300,5],[300,6,300,8],[300,9,300,12],[300,13,300,17],[300,19,300,30],[300,31,300,40],[294,0,294,2],[294,3,294,14],[295,0,296,4],[295,5,296,15],[295,16,295,40],[296,16,296,19],[296,20,296,26],[296,27,296,33],[296,34,296,40],[288,1,290,5],[288,6,290,8],[288,9,290,12],[288,13,290,17],[288,18,290,18],[288,19,290,30],[288,43,290,47],[288,50,290,54],[289,32,289,40],[290,31,290,41],[291,1,293,5],[291,6,293,8],[291,9,293,12],[291,13,293,17],[291,18,293,18],[291,19,293,30],[291,43,293,47],[291,50,293,54],[292,32,292,40],[293,31,293,41],[279,31,279,41],[276,31,276,41],[273,1,275,5],[273,6,275,8],[273,9,275,12],[273,13,275,17],[273,18,275,18],[273,19,275,30],[273,43,275,47],[273,50,275,54],[274,32,274,40],[275,31,275,41],[279,1,281,5],[279,6,281,8],[279,9,281,12],[279,13,281,17],[279,18,281,18],[279,19,281,30],[279,43,281,47],[279,50,281,54],[280,32,280,40],[281,31,281,41],[258,50,260,54],[259,32,259,40],[260,31,260,41],[267,31,267,41],[264,31,264,41],[261,1,263,5],[261,6,263,8],[261,9,263,12],[261,13,263,17],[261,18,263,18],[261,19,263,30],[261,43,263,47],[261,50,263,54],[262,32,262,40],[263,31,263,41],[264,1,266,5],[264,6,266,8],[264,9,266,12],[264,13,266,17],[264,18,266,18],[264,19,266,30],[264,43,266,47],[264,50,266,54],[265,32,265,40],[266,31,266,41],[267,1,269,5],[267,6,269,8],[267,9,269,12],[267,13,269,17],[267,18,269,18],[267,19,269,30],[261,31,261,41],[258,31,258,41],[258,1,260,5],[258,6,260,8],[258,9,260,12],[258,13,260,17],[258,18,260,18],[258,19,260,30],[252,13,254,17],[252,18,254,18],[252,19,254,30],[251,19,251,30],[251,31,251,40],[252,1,254,5],[252,6,254,8],[252,9,254,12],[258,43,260,47],[239,50,241,54],[240,32,240,40],[244,31,244,41],[242,1,244,5],[242,6,244,8],[242,9,244,12],[242,13,244,17],[242,18,244,18],[242,19,244,30],[242,31,242,41],[242,43,244,47],[242,50,244,54],[243,32,243,40],[248,0,248,4],[248,5,248,14],[248,16,249,19],[236,31,236,41],[236,43,238,47],[236,50,238,54],[237,32,237,40],[227,43,229,47],[227,50,229,54],[228,32,228,40],[224,1,226,5],[224,6,226,8],[224,9,226,12],[224,13,226,17],[224,18,226,18],[224,19,226,30],[224,31,224,41],[224,43,226,47],[224,50,226,54],[230,31,230,41],[230,43,232,47],[221,1,223,5],[221,6,223,8],[221,9,223,12],[221,13,223,17],[221,18,223,18],[221,19,223,30],[221,31,221,41],[221,43,223,47],[221,50,223,54],[222,32,222,40],[217,31,217,41],[214,31,214,41],[215,1,217,5],[215,6,217,8],[215,9,217,12],[215,13,217,17],[215,18,217,18],[215,19,217,30],[215,31,215,41],[215,43,217,47],[215,50,217,54],[216,32,216,40],[212,1,214,5],[212,6,214,8],[212,9,214,12],[212,13,214,17],[212,18,214,18],[212,19,214,30],[212,31,212,41],[212,43,214,47],[212,50,214,54],[213,32,213,40],[209,43,211,47],[205,31,205,41],[203,13,205,17],[203,18,205,18],[203,19,205,30],[203,31,203,41],[203,43,205,47],[203,50,205,54],[204,32,204,40],[206,1,208,5],[206,6,208,8],[206,9,208,12],[211,31,211,41],[208,31,208,41],[206,13,208,17],[206,18,208,18],[206,19,208,30],[206,31,206,41],[206,43,208,47],[206,50,208,54],[207,32,207,40],[209,1,211,5],[209,6,211,8],[209,9,211,12],[193,43,195,47],[193,50,195,54],[194,32,194,40],[195,31,195,41],[193,1,195,5],[193,6,195,8],[193,9,195,12],[193,13,195,17],[193,18,195,18],[193,19,195,30],[190,19,192,30],[190,31,190,41],[190,43,192,47],[190,50,192,54],[191,32,191,40],[192,31,192,41],[201,0,201,4],[199,27,200,33],[199,34,200,40],[200,0,200,5],[200,6,200,14],[196,0,196,2],[196,3,196,14],[197,0,198,4],[197,5,198,15],[197,16,197,40],[198,16,198,19],[198,20,198,26],[198,27,198,33],[198,34,198,40],[199,0,199,4],[199,5,199,14],[187,43,189,47],[187,50,189,54],[188,32,188,40],[189,31,189,41],[190,1,192,5],[190,6,192,8],[190,9,192,12],[190,13,192,17],[190,18,192,18],[187,1,189,5],[187,6,189,8],[187,9,189,12],[187,13,189,17],[187,18,189,18],[187,19,189,30],[184,19,186,30],[184,31,184,41],[184,43,186,47],[184,50,186,54],[185,32,185,40],[186,31,186,41],[181,43,183,47],[181,50,183,54],[182,32,182,40],[183,31,183,41],[184,1,186,5],[184,6,186,8],[184,9,186,12],[184,13,186,17],[184,18,186,18],[181,1,183,5],[181,6,183,8],[181,9,183,12],[181,13,183,17],[181,18,183,18],[181,19,183,30],[178,19,180,30],[178,31,178,41],[178,43,180,47],[178,50,180,54],[179,32,179,40],[180,31,180,41],[175,43,177,47],[175,50,177,54],[176,32,176,40],[177,31,177,41],[178,1,180,5],[178,6,180,8],[178,9,180,12],[178,13,180,17],[178,18,180,18],[175,1,177,5],[175,6,177,8],[175,9,177,12],[175,13,177,17],[175,18,177,18],[175,19,177,30],[172,19,174,30],[172,31,172,41],[172,43,174,47],[172,50,174,54],[173,32,173,40],[174,31,174,41],[169,43,171,47],[169,50,171,54],[170,32,170,40],[171,31,171,41],[172,1,174,5],[172,6,174,8],[172,9,174,12],[172,13,174,17],[172,18,174,18],[169,1,171,5],[169,6,171,8],[169,9,171,12],[169,13,171,17],[169,18,171,18],[169,19,171,30],[166,19,168,30],[166,31,166,41],[166,43,168,47],[166,50,168,54],[167,32,167,40],[168,31,168,41],[157,19,159,30],[154,19,156,30],[154,31,154,41],[154,43,156,47],[154,50,156,54],[155,32,155,40],[156,31,156,41],[154,1,156,5],[154,6,156,8],[154,9,156,12],[163,43,165,47],[163,50,165,54],[164,32,164,40],[165,31,165,41],[166,1,168,5],[166,6,168,8],[166,9,168,12],[166,13,168,17],[166,18,168,18],[163,1,165,5],[163,6,165,8],[163,9,165,12],[163,13,165,17],[163,18,165,18],[163,19,165,30],[160,19,162,30],[160,31,160,41],[160,43,162,47],[160,50,162,54],[161,32,161,40],[162,31,162,41],[136,32,136,40],[137,31,137,41],[140,31,140,41],[144,31,144,41],[141,1,143,5],[141,6,143,8],[141,9,143,12],[141,13,143,17],[141,18,143,18],[141,19,143,30],[141,43,143,47],[141,50,143,54],[142,32,142,40],[143,31,143,41],[150,0,150,4],[150,5,150,14],[150,16,151,19],[150,20,151,26],[150,27,151,33],[150,34,151,40],[151,0,151,5],[151,6,151,14],[144,1,146,5],[144,6,146,8],[144,9,146,12],[144,13,146,17],[144,18,146,18],[144,19,146,30],[144,43,146,47],[144,50,146,54],[145,32,145,40],[146,31,146,41],[120,6,122,8],[120,9,122,12],[120,13,122,17],[120,18,122,18],[120,19,122,30],[120,43,122,47],[120,50,122,54],[121,32,121,40],[122,31,122,41],[126,50,128,54],[127,32,127,40],[128,31,128,41],[135,31,135,41],[132,31,132,41],[129,1,131,5],[129,6,131,8],[129,9,131,12],[129,13,131,17],[129,18,131,18],[129,19,131,30],[129,43,131,47],[129,50,131,54],[130,32,130,40],[131,31,131,41],[135,1,137,5],[135,6,137,8],[135,9,137,12],[135,13,137,17],[135,18,137,18],[135,19,137,30],[135,43,137,47],[135,50,137,54],[105,43,107,47],[105,50,107,54],[106,32,106,40],[107,31,107,41],[98,0,98,2],[98,3,98,14],[117,31,117,41],[114,31,114,41],[114,1,116,5],[114,6,116,8],[114,9,116,12],[114,13,116,17],[114,18,116,18],[114,19,116,30],[114,43,116,47],[114,50,116,54],[115,32,115,40],[116,31,116,41],[99,0,100,4],[99,5,100,15],[99,16,99,40],[100,16,100,19],[100,20,100,26],[100,27,100,33],[100,34,100,40],[101,0,101,4],[101,5,101,14],[101,16,102,19],[101,20,102,26],[101,27,102,33],[101,34,102,40],[102,0,102,5],[80,9,82,12],[80,13,82,17],[80,18,82,18],[80,19,82,30],[80,31,80,41],[80,43,82,47],[97,31,97,41],[94,31,94,41],[95,1,97,5],[95,6,97,8],[95,9,97,12],[95,13,97,17],[95,18,97,18],[95,19,97,30],[95,31,95,41],[95,43,97,47],[95,50,97,54],[96,32,96,40],[89,1,91,5],[89,6,91,8],[89,9,91,12],[89,13,91,17],[89,18,91,18],[89,19,91,30],[89,31,89,41],[89,43,91,47],[89,50,91,54],[90,32,90,40],[92,1,94,5],[92,6,94,8],[92,9,94,12],[92,13,94,17],[71,31,71,41],[71,43,73,47],[71,50,73,54],[72,32,72,40],[79,31,79,41],[76,31,76,41],[74,1,76,5],[74,6,76,8],[74,9,76,12],[74,13,76,17],[74,18,76,18],[74,19,76,30],[74,31,74,41],[74,43,76,47],[74,50,76,54],[75,32,75,40],[85,31,85,41],[82,31,82,41],[83,1,85,5],[83,6,85,8],[83,9,85,12],[83,13,85,17],[83,18,85,18],[83,19,85,30],[83,31,83,41],[83,43,85,47],[83,50,85,54],[84,32,84,40],[80,50,82,54],[81,32,81,40],[80,1,82,5],[80,6,82,8],[56,43,58,47],[56,50,58,54],[57,32,57,40],[59,1,61,5],[59,6,61,8],[59,9,61,12],[59,13,61,17],[67,31,67,41]],"merged_total":2368,"flags":["merged_cut"]}
["Date: ",null,null,"02/22/2016"]
["Complex Name:",null,null,null,null,"Green Street Apartments",null,null,null,null,null,null,null,null,null,null,"Conditions Conducive Legend"]
[null,null,null,null,null,null,null,null,null,null,null,null,null,null,null,null,"DD - Dirty Dishes",null,null,null,"OF - Open Foods in Unit",null,null,null,null,null,null,"ER - Excess Rubbish in Unit",null,null,null,null,null,null,"RNC - Rubbish not in container"]
["Technician(s):",null,null,null,null,"Richard Thomas",null,null,null,null,null,null,null,null,null,null,"DL - Dirty Laundry",null,null,null,"SA - Stored/stacked articles",null,null,null,null,null,null,"G/F-FW - Grease/Food on floors or walls",null,null,null,null,null,null,"G/F-STC - Grease/Food Debris on stove, table or countertops"]
["# of Units Serviced",null,null,null,null,null,{"$f":"COUNTA(B8:F49,B57:F98,B106:F147,B155:F196,B204:F245,B253:F294,B302:F343,B351:F392,B400:F441,B449:F490,B498:F539,B547:F564)","v":1.0}]
[{"$f":"COUNTA(B8:B49)*3+H6+J6+L6+N6+P6+R6+T6+V6+X6+AA6+AC6","v":3.0},null,null,null,null,null,{"$f":"COUNTA(B57:F98)*3","v":0.0},{"$f":"IF(G6=0,0,G6+7)","v":0.0},{"$f":"COUNTA(B106:F147)*3","v":0.0},{"$f":"IF(I6=0,0,I6+7)","v":0.0},{"$f":"COUNTA(B155:F196)*3","v":0.0},{"$f":"IF(K6=0,0,K6+7)","v":0.0},{"$f":"COUNTA(B204:F245)*3","v":0.0},{"$f":"IF(M6=0,0,M6+7)","v":0.0},{"$f":"COUNTA(B253:F294)*3","v":0.0},{"$f":"IF(O6=0,0,O6+7)","v":0.0},{"$f":"COUNTA(B302:F343)*3","v":0.0},{"$f":"IF(Q6=0,0,Q6+7)","v":0.0},{"$f":"COUNTA(B351:F392)*3","v":0.0},{"$f":"IF(S6=0,0,S6+7)","v":0.0},{"$f":"COUNTA(B400:F441)*3","v":0.0},{"$f":"IF(U6=0,0,U6+7)","v":0.0},{"$f":"COUNTA(B449:F490)*3","v":0.0},{"$f":"IF(W6=0,0,W6+7)","v":0.0},{"$f":"COUNTA(B498:F539)*3","v":0.0},null,{"$f":"IF(Y6=0,0,Y6+7)","v":0.0},{"$f":"COUNTA(B547:F564)*3","v":0.0},{"$f":"IF(AB6=0,0,AB6+7)","v":0.0}]
[null,"Unit #  . ",null,null,null,null,"Unit Access  .",null,null," Treatment Location",null,null,null,"       Treatment Type\nT=Treatment     C=Cleanout\nG=Glue Traps",null,null,null,null,{"$f":"BD7","v":""},"PCT Comments\nIncludes Conditions Conducive, NJ Decal & Pets",null,null,null,null,null,null,null,null,null,null,null,"Resident's Signature",null,null,null,null,null,null,null,null,null,null,null,null,null,null,null,null,null,null,null,null,null,null,null,{"$f":"IF(BE7<>\"NJ\",\"\",\"NJ Decal\")","v":""},"PA"]
[null,"Bldg 1109 - 02",null,null,null,null,"Yes",null,null,{"$f":"BJ8","v":""},null,null,null,{"$f":"AR8","v":""},null,null,null,null,null,null,null,null,null,null,null,null,null,null,null,null,null,null,null,null,null,null,null,null,null,null,null,null,null,{"$f":"SUBSTITUTE($AY8,\",\",\", \")","v":""},null,null,null,null,null,null,null,null,null,null,null,null,null,null,null,null,null,{"$f":"SUBSTITUTE(BF8,\",\",\", \")","v":""}]
[]
[]
[null,null,null,null,null,null,"Yes",null,null,{"$f":"BJ11","v":"Kitchen & Bathroom"},null,null,null,{"$f":"AR11","v":""},null,null,null,null,null,null,null,null,null,null,null,null,null,null,null,null,null,null,null,null,null,null,null,null,null,null,null,null,null,{"$f":"SUBSTITUTE($AY11,\",\",\", \")","v":""},null,null,null,null,null,null,null,null,null,null,null,null,null,"Kitchen & Bathroom",null,null,null,{"$f":"SUBSTITUTE(BF11,\",\",\", \")","v":"Kitchen & Bathroom"}]
[]
[]
[null,null,null,null,null,null,"Yes",null,null,{"$f":"BJ14","v":"Kitchen & Bathroom"},null,null,null,{"$f":"AR14","v":""},null,null,null,null,null,null,null,null,null,null,null,null,null,null,null,null,null,null,null,null,null,null,null,null,null,null,null,null,null,{"$f":"SUBSTITUTE($AY14,\",\",\", \")","v":""},null,null,null,null,null,null,null,null,null,null,null,null,null,"Kitchen & Bathroom",null,null,null,{"$f":"SUBSTITUTE(BF14,\",\",\", \")","v":"Kitchen & Bathroom"}]
[]
[]
[null,null,null,null,null,null,"Yes",null,null,{"$f":"BJ17","v":"Kitchen & Bathroom"},null,null,null,{"$f":"AR17","v":""},null,null,null,null,null,null,null,null,null,null,null,null,null,null,null,null,null,null,null,null,null,null,null,null,null,null,null,null,null,{"$f":"SUBSTITUTE($AY17,\",\",\", \")","v":""},null,null,null,null,null,null,null,null,null,null,null,null,null,"Kitchen & Bathroom",null,null,null,{"$f":"SUBSTITUTE(BF17,\",\",\", \")","v":"Kitchen & Bathroom"}]
[]
[]
[null,null,null,null,null,null,"Yes",null,null,{"$f":"BJ20","v":"Kitchen & Bathroom"},null,null,null,{"$f":"AR20","v":""},null,null,null,null,null,null,null,null,null,null,null,null,null,null,null,null,null,null,null,null,null,null,null,null,null,null,null,null,null,{"$f":"SUBSTITUTE($AY20,\",\",\", \")","v":""},null,null,null,null,null,null,null,null,null,null,null,null,null,"Kitchen & Bathroom",null,null,null,{"$f":"SUBSTITUTE(BF20,\",\",\", \")","v":"Kitchen & Bathroom"}]
[]
[]
[null,null,null,null,null,null,"Yes",null,null,{"$f":"BJ23","v":"Kitchen & Bathroom"},null,null,null,{"$f":"AR23","v":""},null,null,null,null,null,null,null,null,null,null,null,null,null,null,null,null,null,null,null,null,null,null,null,null,null,null,null,null,null,{"$f":"SUBSTITUTE($AY23,\",\",\", \")","v":""},null,null,null,null,null,null,null,null,null,null,null,null,null,"Kitchen & Bathroom",null,null,null,{"$f":"SUBSTITUTE(BF23,\",\",\", \")","v":"Kitchen & Bathroom"}]
[]
[]
[null,null,null,null,null,null,"Yes",null,null,{"$f":"BJ26","v":"Kitchen & Bathroom"},null,null,null,{"$f":"AR26","v":""},null,null,null,null,null,null,null,null,null,null,null,null,null,null,null,null,null,null,null,null,null,null,null,null,null,null,null,null,null,{"$f":"SUBSTITUTE($AY26,\",\",\", \")","v":""},null,null,null,null,null,null,null,null,null,null,null,null,null,"Kitchen & Bathroom",null,null,null,{"$f":"SUBSTITUTE(BF26,\",\",\", \")","v":"Kitchen & Bathroom"}]
[]
[]
[null,null,null,null,null,null,"Yes",null,null,{"$f":"BJ29","v":"Kitchen & Bathroom"},null,null,null,{"$f":"AR29","v":""},null,null,null,null,null,null,null,null,null,null,null,null,null,null,null,null,null,null,null,null,null,null,null,null,null,null,null,null,null,{"$f":"SUBSTITUTE($AY29,\",\",\", \")","v":""},null,null,null,null,null,null,null,null,null,null,null,null,null,"Kitchen & Bathroom",null,null,null,{"$f":"SUBSTITUTE(BF29,\",\",\", \")","v":"Kitchen & Bathroom"}]
[]
[]
[null,null,null,null,null,null,"Yes",null,null,{"$f":"BJ32","v":"Kitchen & Bathroom"},null,null,null,{"$f":"AR32","v":""},null,null,null,null,null,null,null,null,null,null,null,null,null,null,null,null,null,null,null,null,null,null,null,null,null,null,null,null,null,{"$f":"SUBSTITUTE($AY32,\",\",\", \")","v":""},null,null,null,null,null,null,null,null,null,null,null,null,null,"Kitchen & Bathroom",null,null,null,{"$f":"SUBSTITUTE(BF32,\",\",\", \")","v":"Kitchen & Bathroom"}]
[]
[]
[null,null,null,null,null,null,"Yes",null,null,{"$f":"BJ35","v":"Kitchen & Bathroom"},null,null,null,{"$f":"AR35","v":""},null,null,null,null,null,null,null,null,null,null,null,null,null,null,null,null,null,null,null,null,null,null,null,null,null,null,null,null,null,{"$f":"SUBSTITUTE($AY35,\",\",\", \")","v":""},null,null,null,null,null,null,null,null,null,null,null,null,null,"Kitchen & Bathroom",null,null,null,{"$f":"SUBSTITUTE(BF35,\",\",\", \")","v":"Kitchen & Bathroom"}]
[]
[]
[null,null,null,null,null,null,"Yes",null,null,{"$f":"BJ38","v":"Kitchen & Bathroom"},null,null,null,{"$f":"AR38","v":""},null,null,null,null,null,null,null,null,null,null,null,null,null,null,null,null,null,null,null,null,null,null,null,null,null,null,null,null,null,{"$f":"SUBSTITUTE($AY38,\",\",\", \")","v":""},null,null,null,null,null,null,null,null,null,null,null,null,null,"Kitchen & Bathroom",null,null,null,{"$f":"SUBSTITUTE(BF38,\",\",\", \")","v":"Kitchen & Bathroom"}]
[]
[]
[null,null,null,null,null,null,"Yes",null,null,{"$f":"BJ41","v":"Kitchen & Bathroom"},null,null,null,{"$f":"AR41","v":""},null,null,null,null,null,null,null,null,null,null,null,null,null,null,null,null,null,null,null,null,null,null,null,null,null,null,null,null,null,{"$f":"SUBSTITUTE($AY41,\",\",\", \")","v":""},null,null,null,null,null,null,null,null,null,null,null,null,null,"Kitchen & Bathroom",null,null,null,{"$f":"SUBSTITUTE(BF41,\",\",\", \")","v":"Kitchen & Bathroom"}]
[]
[]
[null,null,null,null,null,null,"Yes",null,null,{"$f":"BJ44","v":"Kitchen & Bathroom"},null,null,null,{"$f":"AR44","v":""},null,null,null,null,null,null,null,null,null,null,null,null,null,null,null,null,null,null,null,null,null,null,null,null,null,null,null,null,null,{"$f":"SUBSTITUTE($AY44,\",\",\", \")","v":""},null,null,null,null,null,null,null,null,null,null,null,null,null,"Kitchen & Bathroom",null,null,null,{"$f":"SUBSTITUTE(BF44,\",\",\", \")","v":"Kitchen & Bathroom"}]
[]
[]
[null,null,null,null,null,null,"No Access",null,null,{"$f":"BJ47","v":"Kitchen & Bathroom"},null,null,null,{"$f":"AR47","v":""},null,null,null,null,null,"No key access",null,null,null,null,null,null,null,null,null,null,null,null,null,null,null,null,null,null,null,null,null,null,null,{"$f":"SUBSTITUTE($AY47,\",\",\", \")","v":""},null,null,null,null,null,null,null,null,null,null,null,null,null,"Kitchen & Bathroom",null,null,null,{"$f":"SUBSTITUTE(BF47,\",\",\", \")","v":"Kitchen & Bathroom"}]
[]
[]
["Date: ",null,null,"02/22/2016",null,null,null,null,null,null,null,null,null,null,null,null,null,null,null,null,null,null,null,null,null,null,null,null,null,null,null,null,null,null,null,null,null,null,null,null,null,null,null,null,null,null,null,null,null,null,null,null,null,null,null,null,null,null,{"$f":"SUBSTITUTE(J49,\",\",\", \")","v":""}]
["Complex Name:",null,null,null,null,"Green Street Apartments",null,null,null,null,null,null,null,null,null,null,"Conditions Conducive Legend",null,null,null,null,null,null,null,null,null,null,null,null,null,null,null,null,null,null,null,null,null,null,null,null,null,null,null,null,null,null,null,null,null,null,null,null,null,null,null,null,null,""]
[null,null,null,null,null,null,null,null,null,null,null,null,null,null,null,null,"DD - Dirty Dishes",null,null,null,"OF - Open Foods in Unit",null,null,null,null,null,null,"ER - Excess Rubbish in Unit",null,null,null,null,null,null,"RNC - Rubbish not in container",null,null,null,null,null,null,null,null,null,null,null,null,null,null,null,null,null,null,null,null,null,null,null,""]
["Technician(s):",null,null,null,null,"Richard Thomas",null,null,null,null,null,null,null,null,null,null,"DL - Dirty Laundry",null,null,null,"SA - Stored/stacked articles",null,null,null,null,null,null,"G/F-FW - Grease/Food on floors or walls",null,null,null,null,null,null,"G/F-STC - Grease/Food Debris on stove, table or countertops",null,null,null,null,null,null,null,null,null,null,null,null,null,null,null,null,null,null,null,null,null,null,null,""]
[null,null,null,null,null,null,null,null,null,null,null,null,null,null,null,null,null,null,null,null,null,null,null,null,null,null,null,null,null,null,null,null,null,null,null,null,null,null,null,null,null,null,null,null,null,null,null,null,null,null,null,null,null,null,null,null,null,null,""]
[{"$f":"COUNTA(B57:F613)*3","v":120.0},null,null,null,null,null,null,null,null,null,null,null,null,null,null,null,null,null,null,null,null,null,null,null,null,null,null,null,null,null,null,null,null,null,null,null,null,null,null,null,null,null,null,null,null,null,null,null,null,null,null,null,null,null,null,null,null,null,""]
[null,"Unit #  . ",null,null,null,null,"Unit Access  .",null,null," Treatment Location",null,null,null,"       Treatment Type\nT=Treatment     C=Cleanout\nG=Glue Traps",null,null,null,null,{"$f":"BD56","v":""},"PCT Comments\nIncludes Conditions Conducive, NJ Decal & Pets",null,null,null,null,null,null,null,null,null,null,null,"Resident's Signature",null,null,null,null,null,null,null,null,null,null,null,null,null,null,null,null,null,null,null,null,null,null,null,{"$f":"IF(BE56<>\"NJ\",\"\",\"NJ Decal\")","v":""},"PA",null,""]
[null,null,null,null,null,null,"Yes",null,null,{"$f":"BJ57","v":"Kitchen & Bathroom"},null,null,null,{"$f":"AR57","v":""},null,null,null,null,null,null,null,null,null,null,null,null,null,null,null,null,null,null,null,null,null,null,null,null,null,null,null,null,null,{"$f":"SUBSTITUTE($AY57,\",\",\", \")","v":""},null,null,null,null,null,null,null,null,null,null,null,null,null,"Kitchen & Bathroom",null,null,null,{"$f":"SUBSTITUTE(BF57,\",\",\", \")","v":"Kitchen & Bathroom"}]
[]
[]
[null,null,null,null,null,null,"Yes",null,null,{"$f":"BJ60","v":"Kitchen & Bathroom"},null,null,null,{"$f":"AR60","v":""},null,null,null,null,null,null,null,null,null,null,null,null,null,null,null,null,null,null,null,null,null,null,null,null,null,null,null,null,null,{"$f":"SUBSTITUTE($AY60,\",\",\", \")","v":""},null,null,null,null,null,null,null,null,null,null,null,null,null,"Kitchen & Bathroom",null,null,null,{"$f":"SUBSTITUTE(BF60,\",\",\", \")","v":"Kitchen & Bathroom"}]
[]
[]
[null,null,null,null,null,null,"Yes",null,null,{"$f":"BJ63","v":"Kitchen & Bathroom"},null,null,null,{"$f":"AR63","v":""},null,null,null,null,null,null,null,null,null,null,null,null,null,null,null,null,null,null,null,null,null,null,null,null,null,null,null,null,null,{"$f":"SUBSTITUTE($AY63,\",\",\", \")","v":""},null,null,null,null,null,null,null,null,null,null,null,null,null,"Kitchen & Bathroom",null,null,null,{"$f":"SUBSTITUTE(BF63,\",\",\", \")","v":"Kitchen & Bathroom"}]
[]
[]
[null,null,null,null,null,null,"Yes",null,null,{"$f":"BJ66","v":"Kitchen & Bathroom"},null,null,null,{"$f":"AR66","v":""},null,null,null,null,null,null,null,null,null,null,null,null,null,null,null,null,null,null,null,null,null,null,null,null,null,null,null,null,null,{"$f":"SUBSTITUTE($AY66,\",\",\", \")","v":""},null,null,null,null,null,null,null,null,null,null,null,null,null,"Kitchen & Bathroom",null,null,null,{"$f":"SUBSTITUTE(BF66,\",\",\", \")","v":"Kitchen & Bathroom"}]
[]
[]
[null,null,null,null,null,null,"Yes",null,null,{"$f":"BJ69","v":"Kitchen & Bathroom"},null,null,null,{"$f":"AR69","v":""},null,null,null,null,null,null,null,null,null,null,null,null,null,null,null,null,null,null,null,null,null,null,null,null,null,null,null,null,null,{"$f":"SUBSTITUTE($AY69,\",\",\", \")","v":""},null,null,null,null,null,null,null,null,null,null,null,null,null,"Kitchen & Bathroom",null,null,null,{"$f":"SUBSTITUTE(BF69,\",\",\", \")","v":"Kitchen & Bathroom"}]
[]
[]
[null,null,null,null,null,null,"Yes",null,null,{"$f":"BJ72","v":"Kitchen & Bathroom"},null,null,null,{"$f":"AR72","v":""},null,null,null,null,null,null,null,null,null,null,null,null,null,null,null,null,null,null,null,null,null,null,null,null,null,null,null,null,null,{"$f":"SUBSTITUTE($AY72,\",\",\", \")","v":""},null,null,null,null,null,null,null,null,null,null,null,null,null,"Kitchen & Bathroom",null,null,null,{"$f":"SUBSTITUTE(BF72,\",\",\", \")","v":"Kitchen & Bathroom"}]
[]
[]
[null,null,null,null,null,null,null,null,null,{"$f":"BJ75","v":""},null,null,null,{"$f":"AR75","v":""},null,null,null,null,null,null,null,null,null,null,null,null,null,null,null,null,null,null,null,null,null,null,null,null,null,null,null,null,null,{"$f":"SUBSTITUTE($AY75,\",\",\", \")","v":""},null,null,null,null,null,null,null,null,null,null,null,null,null,null,null,null,null,{"$f":"SUBSTITUTE(BF75,\",\",\", \")","v":""}]
[]
[]
[null,null,null,null,null,null,null,null,null,{"$f":"BJ78","v":""},null,null,null,{"$f":"AR78","v":""},null,null,null,null,null,null,null,null,null,null,null,null,null,null,null,null,null,null,null,null,null,null,null,null,null,null,null,null,null,{"$f":"SUBSTITUTE($AY78,\",\",\", \")","v":""},null,null,null,null,null,null,null,null,null,null,null,null,null,null,null,null,null,{"$f":"SUBSTITUTE(BF78,\",\",\", \")","v":""}]
[]
[]
[null,null,null,null,null,null,null,null,null,{"$f":"BJ81","v":""},null,null,null,{"$f":"AR81","v":""},null,null,null,null,null,null,null,null,null,null,null,null,null,null,null,null,null,null,null,null,null,null,null,null,null,null,null,null,null,{"$f":"SUBSTITUTE($AY81,\",\",\", \")","v":""},null,null,null,null,null,null,null,null,null,null,null,null,null,null,null,null,null,{"$f":"SUBSTITUTE(BF81,\",\",\", \")","v":""}]
[]
[]
[null,null,null,null,null,null,null,null,null,{"$f":"BJ84","v":""},null,null,null,{"$f":"AR84","v":""},null,null,null,null,null,null,null,null,null,null,null,null,null,null,null,null,null,null,null,null,null,null,null,null,null,null,null,null,null,{"$f":"SUBSTITUTE($AY84,\",\",\", \")","v":""},null,null,null,null,null,null,null,null,null,null,null,null,null,null,null,null,null,{"$f":"SUBSTITUTE(BF84,\",\",\", \")","v":""}]
[]
[]
[null,null,null,null,null,null,null,null,null,{"$f":"BJ87","v":""},null,null,null,{"$f":"AR87","v":""},null,null,null,null,null,null,null,null,null,null,null,null,null,null,null,null,null,null,null,null,null,null,null,null,null,null,null,null,null,{"$f":"SUBSTITUTE($AY87,\",\",\", \")","v":""},null,null,null,null,null,null,null,null,null,null,null,null,null,null,null,null,null,{"$f":"SUBSTITUTE(BF87,\",\",\", \")","v":""}]
[]
[]
[null,null,null,null,null,null,null,null,null,{"$f":"BJ90","v":""},null,null,null,{"$f":"AR90","v":""},null,null,null,null,null,null,null,null,null,null,null,null,null,null,null,null,null,null,null,null,null,null,null,null,null,null,null,null,null,{"$f":"SUBSTITUTE($AY90,\",\",\", \")","v":""},null,null,null,null,null,null,null,null,null,null,null,null,null,null,null,null,null,{"$f":"SUBSTITUTE(BF90,\",\",\", \")","v":""}]
[]
[]
[null,null,null,null,null,null,null,null,null,{"$f":"BJ93","v":""},null,null,null,{"$f":"AR93","v":""},null,null,null,null,null,null,null,null,null,null,null,null,null,null,null,null,null,null,null,null,null,null,null,null,null,null,null,null,null,{"$f":"SUBSTITUTE($AY93,\",\",\", \")","v":""},null,null,null,null,null,null,null,null,null,null,null,null,null,null,null,null,null,{"$f":"SUBSTITUTE(BF93,\",\",\", \")","v":""}]
[]
[]
[null,null,null,null,null,null,null,null,null,{"$f":"BJ96","v":""},null,null,null,{"$f":"AR96","v":""},null,null,null,null,null,null,null,null,null,null,null,null,null,null,null,null,null,null,null,null,null,null,null,null,null,null,null,null,null,{"$f":"SUBSTITUTE($AY96,\",\",\", \")","v":""},null,null,null,null,null,null,null,null,null,null,null,null,null,null,null,null,null,{"$f":"SUBSTITUTE(BF96,\",\",\", \")","v":""}]
[]
[]
["Date: ",null,null,"02/22/2016",null,null,null,null,null,null,null,null,null,null,null,null,null,null,null,null,null,null,null,null,null,null,null,null,null,null,null,null,null,null,null,null,null,null,null,null,null,null,null,null,null,null,null,null,null,null,null,null,null,null,null,null,null,{"$f":"SUBSTITUTE(J98,\",\",\", \")","v":""}]
["Complex Name:",null,null,null,null,"Green Street Apartments",null,null,null,null,null,null,null,null,null,null,"Conditions Conducive Legend",null,null,null,null,null,null,null,null,null,null,null,null,null,null,null,null,null,null,null,null,null,null,null,null,null,null,null,null,null,null,null,null,null,null,null,null,null,null,null,null,""]
[null,null,null,null,null,null,null,null,null,null,null,null,null,null,null,null,"DD - Dirty Dishes",null,null,null,"OF - Open Foods in Unit",null,null,null,null,null,null,"ER - Excess Rubbish in Unit",null,null,null,null,null,null,"RNC - Rubbish not in container",null,null,null,null,null,null,null,null,null,null,null,null,null,null,null,null,null,null,null,null,null,null,""]
["Technician(s):",null,null,null,null,"Richard Thomas",null,null,null,null,null,null,null,null,null,null,"DL - Dirty Laundry",null,null,null,"SA - Stored/stacked articles",null,null,null,null,null,null,"G/F-FW - Grease/Food on floors or walls",null,null,null,null,null,null,"G/F-STC - Grease/Food Debris on stove, table or countertops",null,null,null,null,null,null,null,null,null,null,null,null,null,null,null,null,null,null,null,null,null,null,""]
[null,null,null,null,null,null,null,null,null,null,null,null,null,null,null,null,null,null,null,null,null,null,null,null,null,null,null,null,null,null,null,null,null,null,null,null,null,null,null,null,null,null,null,null,null,null,null,null,null,null,null,null,null,null,null,null,null,""]
[{"$f":"COUNTA(B87:F652)*3","v":120.0},null,null,null,null,null,null,null,null,null,null,null,null,null,null,null,null,null,null,null,null,null,null,null,null,null,null,null,null,null,null,null,null,null,null,null,null,null,null,null,null,null,null,null,null,null,null,null,null,null,null,null,null,null,null,null,null,""]
[null,"Unit #  . ",null,null,null,null,"Unit Access  .",null,null," Treatment Location",null,null,null,"       Treatment Type\nT=Treatment     C=Cleanout\nG=Glue Traps",null,null,null,null,{"$f":"BD105","v":""},"PCT Comments\nIncludes Conditions Conducive, NJ Decal & Pets",null,null,null,null,null,null,null,null,null,null,null,"Resident's Signature",null,null,null,null,null,null,null,null,null,null,null,null,null,null,null,null,null,null,null,null,null,null,null,{"$f":"IF(BE105<>\"NJ\",\"\",\"NJ Decal\")","v":""},"PA",""]
[null,null,null,null,null,null,null,null,null,{"$f":"BJ106","v":""},null,null,null,{"$f":"AR106","v":""},null,null,null,null,null,null,null,null,null,null,null,null,null,null,null,null,null,null,null,null,null,null,null,null,null,null,null,null,null,{"$f":"SUBSTITUTE($AY106,\",\",\", \")","v":""},null,null,null,null,null,null,null,null,null,null,null,null,null,null,null,null,null,{"$f":"SUBSTITUTE(BF106,\",\",\", \")","v":""}]
[]
[]
[null,null,null,null,null,null,null,null,null,{"$f":"BJ109","v":""},null,null,null,{"$f":"AR109","v":""},null,null,null,null,null,null,null,null,null,null,null,null,null,null,null,null,null,null,null,null,null,null,null,null,null,null,null,null,null,{"$f":"SUBSTITUTE($AY109,\",\",\", \")","v":""},null,null,null,null,null,null,null,null,null,null,null,null,null,null,null,null,null,{"$f":"SUBSTITUTE(BF109,\",\",\", \")","v":""}]
[]
[]
[null,null,null,null,null,null,null,null,null,{"$f":"BJ112","v":""},null,null,null,{"$f":"AR112","v":""},null,null,null,null,null,null,null,null,null,null,null,null,null,null,null,null,null,null,null,null,null,null,null,null,null,null,null,null,null,{"$f":"SUBSTITUTE($AY112,\",\",\", \")","v":""},null,null,null,null,null,null,null,null,null,null,null,null,null,null,null,null,null,{"$f":"SUBSTITUTE(BF112,\",\",\", \")","v":""}]
[]
[]
[null,null,null,null,null,null,null,null,null,{"$f":"BJ115","v":""},null,null,null,{"$f":"AR115","v":""},null,null,null,null,null,null,null,null,null,null,null,null,null,null,null,null,null,null,null,null,null,null,null,null,null,null,null,null,null,{"$f":"SUBSTITUTE($AY115,\",\",\", \")","v":""},null,null,null,null,null,null,null,null,null,null,null,null,null,null,null,null,null,{"$f":"SUBSTITUTE(BF115,\",\",\", \")","v":""}]
[]
[]
[null,null,null,null,null,null,null,null,null,{"$f":"BJ118","v":""},null,null,null,{"$f":"AR118","v":""},null,null,null,null,null,null,null,null,null,null,null,null,null,null,null,null,null,null,null,null,null,null,null,null,null,null,null,null,null,{"$f":"SUBSTITUTE($AY118,\",\",\", \")","v":""},null,null,null,null,null,null,null,null,null,null,null,null,null,null,null,null,null,{"$f":"SUBSTITUTE(BF118,\",\",\", \")","v":""}]
[]
[]
[null,null,null,null,null,null,null,null,null,{"$f":"BJ121","v":""},null,null,null,{"$f":"AR121","v":""},null,null,null,null,null,null,null,null,null,null,null,null,null,null,null,null,null,null,null,null,null,null,null,null,null,null,null,null,null,{"$f":"SUBSTITUTE($AY121,\",\",\", \")","v":""},null,null,null,null,null,null,null,null,null,null,null,null,null,null,null,null,null,{"$f":"SUBSTITUTE(BF121,\",\",\", \")","v":""}]
[]
[]
[null,null,null,null,null,null,null,null,null,{"$f":"BJ124","v":""},null,null,null,{"$f":"AR124","v":""},null,null,null,null,null,null,null,null,null,null,null,null,null,null,null,null,null,null,null,null,null,null,null,null,null,null,null,null,null,{"$f":"SUBSTITUTE($AY124,\",\",\", \")","v":""},null,null,null,null,null,null,null,null,null,null,null,null,null,null,null,null,null,{"$f":"SUBSTITUTE(BF124,\",\",\", \")","v":""}]
[]
[]
[null,null,null,null,null,null,null,null,null,{"$f":"BJ127","v":""},null,null,null,{"$f":"AR127","v":""},null,null,null,null,null,null,null,null,null,null,null,null,null,null,null,null,null,null,null,null,null,null,null,null,null,null,null,null,null,{"$f":"SUBSTITUTE($AY127,\",\",\", \")","v":""},null,null,null,null,null,null,null,null,null,null,null,null,null,null,null,null,null,{"$f":"SUBSTITUTE(BF127,\",\",\", \")","v":""}]
[]
[]
[null,null,null,null,null,null,null,null,null,{"$f":"BJ130","v":""},null,null,null,{"$f":"AR130","v":""},null,null,null,null,null,null,null,null,null,null,null,null,null,null,null,null,null,null,null,null,null,null,null,null,null,null,null,null,null,{"$f":"SUBSTITUTE($AY130,\",\",\", \")","v":""},null,null,null,null,null,null,null,null,null,null,null,null,null,null,null,null,null,{"$f":"SUBSTITUTE(BF130,\",\",\", \")","v":""}]
[]
[]
[null,null,null,null,null,null,null,null,null,{"$f":"BJ133","v":""},null,null,null,{"$f":"AR133","v":""},null,null,null,null,null,null,null,null,null,null,null,null,null,null,null,null,null,null,null,null,null,null,null,null,null,null,null,null,null,{"$f":"SUBSTITUTE($AY133,\",\",\", \")","v":""},null,null,null,null,null,null,null,null,null,null,null,null,null,null,null,null,null,{"$f":"SUBSTITUTE(BF133,\",\",\", \")","v":""}]
[]
[]
[null,null,null,null,null,null,null,null,null,{"$f":"BJ136","v":""},null,null,null,{"$f":"AR136","v":""},null,null,null,null,null,null,null,null,null,null,null,null,null,null,null,null,null,null,null,null,null,null,null,null,null,null,null,null,null,{"$f":"SUBSTITUTE($AY136,\",\",\", \")","v":""},null,null,null,null,null,null,null,null,null,null,null,null,null,null,null,null,null,{"$f":"SUBSTITUTE(BF136,\",\",\", \")","v":""}]
[]
[]
[null,null,null,null,null,null,null,null,null,{"$f":"BJ139","v":""},null,null,null,{"$f":"AR139","v":""},null,null,null,null,null,null,null,null,null,null,null,null,null,null,null,null,null,null,null,null,null,null,null,null,null,null,null,null,null,{"$f":"SUBSTITUTE($AY139,\",\",\", \")","v":""},null,null,null,null,null,null,null,null,null,null,null,null,null,null,null,null,null,{"$f":"SUBSTITUTE(BF139,\",\",\", \")","v":""}]
[]
[]
[null,null,null,null,null,null,null,null,null,{"$f":"BJ142","v":""},null,null,null,{"$f":"AR142","v":""},null,null,null,null,null,null,null,null,null,null,null,null,null,null,null,null,null,null,null,null,null,null,null,null,null,null,null,null,null,{"$f":"SUBSTITUTE($AY142,\",\",\", \")","v":""},null,null,null,null,null,null,null,null,null,null,null,null,null,null,null,null,null,{"$f":"SUBSTITUTE(BF142,\",\",\", \")","v":""}]
[]
[]
[null,null,null,null,null,null,null,null,null,{"$f":"BJ145","v":""},null,null,null,{"$f":"AR145","v":""},null,null,null,null,null,null,null,null,null,null,null,null,null,null,null,null,null,null,null,null,null,null,null,null,null,null,null,null,null,{"$f":"SUBSTITUTE($AY145,\",\",\", \")","v":""},null,null,null,null,null,null,null,null,null,null,null,null,null,null,null,null,null,{"$f":"SUBSTITUTE(BF145,\",\",\", \")","v":""}]
[]
[]
["Date: ",null,null,"02/22/2016",null,null,null,null,null,null,null,null,null,null,null,null,null,null,null,null,null,null,null,null,null,null,null,null,null,null,null,null,null,null,null,null,null,null,null,null,null,null,null,null,null,null,null,null,null,null,null,null,null,null,null,null,null,{"$f":"SUBSTITUTE(J147,\",\",\", \")","v":""}]
["Complex Name:",null,null,null,null,"Green Street Apartments",null,null,null,null,null,null,null,null,null,null,"Conditions Conducive Legend",null,null,null,null,null,null,null,null,null,null,null,null,null,null,null,null,null,null,null,null,null,null,null,null,null,null,null,null,null,null,null,null,null,null,null,null,null,null,null,null,""]
[null,null,null,null,null,null,null,null,null,null,null,null,null,null,null,null,"DD - Dirty Dishes",null,null,null,"OF - Open Foods in Unit",null,null,null,null,null,null,"ER - Excess Rubbish in Unit",null,null,null,null,null,null,"RNC - Rubbish not in container",null,null,null,null,null,null,null,null,null,null,null,null,null,null,null,null,null,null,null,null,null,null,""]
["Technician(s):",null,null,null,null,"Richard Thomas",null,null,null,null,null,null,null,null,null,null,"DL - Dirty Laundry",null,null,null,"SA - Stored/stacked articles",null,null,null,null,null,null,"G/F-FW - Grease/Food on floors or walls",null,null,null,null,null,null,"G/F-STC - Grease/Food Debris on stove, table or countertops",null,null,null,null,null,null,null,null,null,null,null,null,null,null,null,null,null,null,null,null,null,null,""]
[null,null,null,null,null,null,null,null,null,null,null,null,null,null,null,null,null,null,null,null,null,null,null,null,null,null,null,null,null,null,null,null,null,null,null,null,null,null,null,null,null,null,null,null,null,null,null,null,null,null,null,null,null,null,null,null,null,""]
[{"$f":"COUNTA(B164:F732)*3","v":96.0},null,null,null,null,null,null,null,null,null,null,null,null,null,null,null,null,null,null,null,null,null,null,null,null,null,null,null,null,null,null,null,null,null,null,null,null,null,null,null,null,null,null,null,null,null,null,null,null,null,null,null,null,null,null,null,null,""]
[null,"Unit #  . ",null,null,null,null,"Unit Access  .",null,null," Treatment Location",null,null,null,"       Treatment Type\nT=Treatment     C=Cleanout\nG=Glue Traps",null,null,null,null,{"$f":"BD154","v":""},"PCT Comments\nIncludes Conditions Conducive, NJ Decal & Pets",null,null,null,null,null,null,null,null,null,null,null,"Resident's Signature",null,null,null,null,null,null,null,null,null,null,null,null,null,null,null,null,null,null,null,null,null,null,null,{"$f":"IF(BE154<>\"NJ\",\"\",\"NJ Decal\")","v":""},"PA",""]
[null,null,null,null,null,null,null,null,null,{"$f":"BJ155","v":""},null,null,null,{"$f":"AR155","v":""},null,null,null,null,null,null,null,null,null,null,null,null,null,null,null,null,null,null,null,null,null,null,null,null,null,null,null,null,null,{"$f":"SUBSTITUTE($AY155,\",\",\", \")","v":""},null,null,null,null,null,null,null,null,null,null,null,null,null,null,null,null,null,{"$f":"SUBSTITUTE(BF155,\",\",\", \")","v":""}]
[]
[]
[null,null,null,null,null,null,null,null,null,{"$f":"BJ158","v":""},null,null,null,{"$f":"AR158","v":""},null,null,null,null,null,null,null,null,null,null,null,null,null,null,null,null,null,null,null,null,null,null,null,null,null,null,null,null,null,{"$f":"SUBSTITUTE($AY158,\",\",\", \")","v":""},null,null,null,null,null,null,null,null,null,null,null,null,null,null,null,null,null,{"$f":"SUBSTITUTE(BF158,\",\",\", \")","v":""}]
[]
[]
[null,null,null,null,null,null,null,null,null,{"$f":"BJ161","v":""},null,null,null,{"$f":"AR161","v":""},null,null,null,null,null,null,null,null,null,null,null,null,null,null,null,null,null,null,null,null,null,null,null,null,null,null,null,null,null,{"$f":"SUBSTITUTE($AY161,\",\",\", \")","v":""},null,null,null,null,null,null,null,null,null,null,null,null,null,null,null,null,null,{"$f":"SUBSTITUTE(BF161,\",\",\", \")","v":""}]
[]
[]
[null,null,null,null,null,null,null,null,null,{"$f":"BJ164","v":""},null,null,null,{"$f":"AR164","v":""},null,null,null,null,null,null,null,null,null,null,null,null,null,null,null,null,null,null,null,null,null,null,null,null,null,null,null,null,null,{"$f":"SUBSTITUTE($AY164,\",\",\", \")","v":""},null,null,null,null,null,null,null,null,null,null,null,null,null,null,null,null,null,{"$f":"SUBSTITUTE(BF164,\",\",\", \")","v":""}]
[]
[]
[null,null,null,null,null,null,null,null,null,{"$f":"BJ167","v":""},null,null,null,{"$f":"AR167","v":""},null,null,null,null,null,null,null,null,null,null,null,null,null,null,null,null,null,null,null,null,null,null,null,null,null,null,null,null,null,{"$f":"SUBSTITUTE($AY167,\",\",\", \")","v":""},null,null,null,null,null,null,null,null,null,null,null,null,null,null,null,null,null,{"$f":"SUBSTITUTE(BF167,\",\",\", \")","v":""}]
[]
[]
[null,null,null,null,null,null,null,null,null,{"$f":"BJ170","v":""},null,null,null,{"$f":"AR170","v":""},null,null,null,null,null,null,null,null,null,null,null,null,null,null,null,null,null,null,null,null,null,null,null,null,null,null,null,null,null,{"$f":"SUBSTITUTE($AY170,\",\",\", \")","v":""},null,null,null,null,null,null,null,null,null,null,null,null,null,null,null,null,null,{"$f":"SUBSTITUTE(BF170,\",\",\", \")","v":""}]
[]
[]
[null,null,null,null,null,null,null,null,null,{"$f":"BJ173","v":""},null,null,null,{"$f":"AR173","v":""},null,null,null,null,null,null,null,null,null,null,null,null,null,null,null,null,null,null,null,null,null,null,null,null,null,null,null,null,null,{"$f":"SUBSTITUTE($AY173,\",\",\", \")","v":""},null,null,null,null,null,null,null,null,null,null,null,null,null,null,null,null,null,{"$f":"SUBSTITUTE(BF173,\",\",\", \")","v":""}]
[]
[]
[null,null,null,null,null,null,null,null,null,{"$f":"BJ176","v":""},null,null,null,{"$f":"AR176","v":""},null,null,null,null,null,null,null,null,null,null,null,null,null,null,null,null,null,null,null,null,null,null,null,null,null,null,null,null,null,{"$f":"SUBSTITUTE($AY176,\",\",\", \")","v":""},null,null,null,null,null,null,null,null,null,null,null,null,null,null,null,null,null,{"$f":"SUBSTITUTE(BF176,\",\",\", \")","v":""}]
[]
[]
[null,null,null,null,null,null,null,null,null,{"$f":"BJ179","v":""},null,null,null,{"$f":"AR179","v":""},null,null,null,null,null,null,null,null,null,null,null,null,null,null,null,null,null,null,null,null,null,null,null,null,null,null,null,null,null,{"$f":"SUBSTITUTE($AY179,\",\",\", \")","v":""},null,null,null,null,null,null,null,null,null,null,null,null,null,null,null,null,null,{"$f":"SUBSTITUTE(BF179,\",\",\", \")","v":""}]
[]
[]
[null,null,null,null,null,null,null,null,null,{"$f":"BJ182","v":""},null,null,null,{"$f":"AR182","v":""},null,null,null,null,null,null,null,null,null,null,null,null,null,null,null,null,null,null,null,null,null,null,null,null,null,null,null,null,null,{"$f":"SUBSTITUTE($AY182,\",\",\", \")","v":""},null,null,null,null,null,null,null,null,null,null,null,null,null,null,null,null,null,{"$f":"SUBSTITUTE(BF182,\",\",\", \")","v":""}]
[]
[]
[null,null,null,null,null,null,null,null,null,{"$f":"BJ185","v":""},null,null,null,{"$f":"AR185","v":""},null,null,null,null,null,null,null,null,null,null,null,null,null,null,null,null,null,null,null,null,null,null,null,null,null,null,null,null,null,{"$f":"SUBSTITUTE($AY185,\",\",\", \")","v":""},null,null,null,null,null,null,null,null,null,null,null,null,null,null,null,null,null,{"$f":"SUBSTITUTE(BF185,\",\",\", \")","v":""}]
[]
[]
[null,null,null,null,null,null,null,null,null,{"$f":"BJ188","v":""},null,null,null,{"$f":"AR188","v":""},null,null,null,null,null,null,null,null,null,null,null,null,null,null,null,null,null,null,null,null,null,null,null,null,null,null,null,null,null,{"$f":"SUBSTITUTE($AY188,\",\",\", \")","v":""},null,null,null,null,null,null,null,null,null,null,null,null,null,null,null,null,null,{"$f":"SUBSTITUTE(BF188,\",\",\", \")","v":""}]
[]
[]
[null,null,null,null,null,null,null,null,null,{"$f":"BJ191","v":""},null,null,null,{"$f":"AR191","v":""},null,null,null,null,null,null,null,null,null,null,null,null,null,null,null,null,null,null,null,null,null,null,null,null,null,null,null,null,null,{"$f":"SUBSTITUTE($AY191,\",\",\", \")","v":""},null,null,null,null,null,null,null,null,null,null,null,null,null,null,null,null,null,{"$f":"SUBSTITUTE(BF191,\",\",\", \")","v":""}]
[]
[]
[null,null,null,null,null,null,null,null,null,{"$f":"BJ194","v":""},null,null,null,{"$f":"AR194","v":""},null,null,null,null,null,null,null,null,null,null,null,null,null,null,null,null,null,null,null,null,null,null,null,null,null,null,null,null,null,{"$f":"SUBSTITUTE($AY194,\",\",\", \")","v":""},null,null,null,null,null,null,null,null,null,null,null,null,null,null,null,null,null,{"$f":"SUBSTITUTE(BF194,\",\",\", \")","v":""}]
[]
[]
["Date: ",null,null,"02/22/2016",null,null,null,null,null,null,null,null,null,null,null,null,null,null,null,null,null,null,null,null,null,null,null,null,null,null,null,null,null,null,null,null,null,null,null,null,null,null,null,null,null,null,null,null,null,null,null,null,null,null,null,null,null,{"$f":"SUBSTITUTE(J196,\",\",\", \")","v":""}]
["Complex Name:",null,null,null,null,"Green Street Apartments",null,null,null,null,null,null,null,null,null,null,"Conditions Conducive Legend",null,null,null,null,null,null,null,null,null,null,null,null,null,null,null,null,null,null,null,null,null,null,null,null,null,null,null,null,null,null,null,null,null,null,null,null,null,null,null,null,""]
[null,null,null,null,null,null,null,null,null,null,null,null,null,null,null,null,"DD - Dirty Dishes",null,null,null,"OF - Open Foods in Unit",null,null,null,null,null,null,"ER - Excess Rubbish in Unit",null,null,null,null,null,null,"RNC - Rubbish not in container",null,null,null,null,null,null,null,null,null,null,null,null,null,null,null,null,null,null,null,null,null,null,""]
["Technician(s):",null,null,null,null,"Richard Thomas",null,null,null,null,null,null,null,null,null,null,"DL - Dirty Laundry",null,null,null,"SA - Stored/stacked articles",null,null,null,null,null,null,"G/F-FW - Grease/Food on floors or walls",null,null,null,null,null,null,"G/F-STC - Grease/Food Debris on stove, table or countertops",null,null,null,null,null,null,null,null,null,null,null,null,null,null,null,null,null,null,null,null,null,null,""]
[null,null,null,null,null,null,null,null,null,null,null,null,null,null,null,null,null,null,null,null,null,null,null,null,null,null,null,null,null,null,null,null,null,null,null,null,null,null,null,null,null,null,null,null,null,null,null,null,null,null,null,null,null,null,null,null,null,""]
[{"$f":"COUNTA(B191:F771)*3","v":96.0},null,null,null,null,null,null,null,null,null,null,null,null,null,null,null,null,null,null,null,null,null,null,null,null,null,null,null,null,null,null,null,null,null,null,null,null,null,null,null,null,null,null,null,null,null,null,null,null,null,null,null,null,null,null,null,null,""]
[null,"Unit #  . ",null,null,null,null,"Unit Access  .",null,null," Treatment Location",null,null,null,"       Treatment Type\nT=Treatment     C=Cleanout\nG=Glue Traps",null,null,null,null,{"$f":"BD203","v":""},"PCT Comments\nIncludes Conditions Conducive, NJ Decal & Pets",null,null,null,null,null,null,null,null,null,null,null,"Resident's Signature",null,null,null,null,null,null,null,null,null,null,null,null,null,null,null,null,null,null,null,null,null,null,null,{"$f":"IF(BE203<>\"NJ\",\"\",\"NJ Decal\")","v":""},"PA",""]
[null,null,null,null,null,null,null,null,null,{"$f":"BJ204","v":""},null,null,null,{"$f":"AR204","v":""},null,null,null,null,null,null,null,null,null,null,null,null,null,null,null,null,null,null,null,null,null,null,null,null,null,null,null,null,null,{"$f":"SUBSTITUTE($AY204,\",\",\", \")","v":""},null,null,null,null,null,null,null,null,null,null,null,null,null,null,null,null,null,{"$f":"SUBSTITUTE(BF204,\",\",\", \")","v":""}]
[]
[]
[null,null,null,null,null,null,null,null,null,{"$f":"BJ207","v":""},null,null,null,{"$f":"AR207","v":""},null,null,null,null,null,null,null,null,null,null,null,null,null,null,null,null,null,null,null,null,null,null,null,null,null,null,null,null,null,{"$f":"SUBSTITUTE($AY207,\",\",\", \")","v":""},null,null,null,null,null,null,null,null,null,null,null,null,null,null,null,null,null,{"$f":"SUBSTITUTE(BF207,\",\",\", \")","v":""}]
[]
[]
[null,null,null,null,null,null,null,null,null,{"$f":"BJ210","v":""},null,null,null,{"$f":"AR210","v":""},null,null,null,null,null,null,null,null,null,null,null,null,null,null,null,null,null,null,null,null,null,null,null,null,null,null,null,null,null,{"$f":"SUBSTITUTE($AY210,\",\",\", \")","v":""},null,null,null,null,null,null,null,null,null,null,null,null,null,null,null,null,null,{"$f":"SUBSTITUTE(BF210,\",\",\", \")","v":""}]
[]
[]
[null,null,null,null,null,null,null,null,null,{"$f":"BJ213","v":""},null,null,null,{"$f":"AR213","v":""},null,null,null,null,null,null,null,null,null,null,null,null,null,null,null,null,null,null,null,null,null,null,null,null,null,null,null,null,null,{"$f":"SUBSTITUTE($AY213,\",\",\", \")","v":""},null,null,null,null,null,null,null,null,null,null,null,null,null,null,null,null,null,{"$f":"SUBSTITUTE(BF213,\",\",\", \")","v":""}]
[]
[]
[null,null,null,null,null,null,null,null,null,{"$f":"BJ216","v":""},null,null,null,{"$f":"AR216","v":""},null,null,null,null,null,null,null,null,null,null,null,null,null,null,null,null,null,null,null,null,null,null,null,null,null,null,null,null,null,{"$f":"SUBSTITUTE($AY216,\",\",\", \")","v":""},null,null,null,null,null,null,null,null,null,null,null,null,null,null,null,null,null,{"$f":"SUBSTITUTE(BF216,\",\",\", \")","v":""}]
[]
[]
[null,null,null,null,null,null,null,null,null,{"$f":"BJ219","v":""},null,null,null,{"$f":"AR219","v":""},null,null,null,null,null,null,null,null,null,null,null,null,null,null,null,null,null,null,null,null,null,null,null,null,null,null,null,null,null,{"$f":"SUBSTITUTE($AY219,\",\",\", \")","v":""},null,null,null,null,null,null,null,null,null,null,null,null,null,null,null,null,null,{"$f":"SUBSTITUTE(BF219,\",\",\", \")","v":""}]
[]
[]
[null,null,null,null,null,null,null,null,null,{"$f":"BJ222","v":""},null,null,null,{"$f":"AR222","v":""},null,null,null,null,null,null,null,null,null,null,null,null,null,null,null,null,null,null,null,null,null,null,null,null,null,null,null,null,null,{"$f":"SUBSTITUTE($AY222,\",\",\", \")","v":""},null,null,null,null,null,null,null,null,null,null,null,null,null,null,null,null,null,{"$f":"SUBSTITUTE(BF222,\",\",\", \")","v":""}]
[]
[]
[null,null,null,null,null,null,null,null,null,{"$f":"BJ225","v":""},null,null,null,{"$f":"AR225","v":""},null,null,null,null,null,null,null,null,null,null,null,null,null,null,null,null,null,null,null,null,null,null,null,null,null,null,null,null,null,{"$f":"SUBSTITUTE($AY225,\",\",\", \")","v":""},null,null,null,null,null,null,null,null,null,null,null,null,null,null,null,null,null,{"$f":"SUBSTITUTE(BF225,\",\",\", \")","v":""}]
[]
[]
[null,null,null,null,null,null,null,null,null,{"$f":"BJ228","v":""},null,null,null,{"$f":"AR228","v":""},null,null,null,null,null,null,null,null,null,null,null,null,null,null,null,null,null,null,null,null,null,null,null,null,null,null,null,null,null,{"$f":"SUBSTITUTE($AY228,\",\",\", \")","v":""},null,null,null,null,null,null,null,null,null,null,null,null,null,null,null,null,null,{"$f":"SUBSTITUTE(BF228,\",\",\", \")","v":""}]
[]
[]
[null,null,null,null,null,null,null,null,null,{"$f":"BJ231","v":""},null,null,null,{"$f":"AR231","v":""},null,null,null,null,null,null,null,null,null,null,null,null,null,null,null,null,null,null,null,null,null,null,null,null,null,null,null,null,null,{"$f":"SUBSTITUTE($AY231,\",\",\", \")","v":""},null,null,null,null,null,null,null,null,null,null,null,null,null,null,null,null,null,{"$f":"SUBSTITUTE(BF231,\",\",\", \")","v":""}]
[]
[]
[null,null,null,null,null,null,null,null,null,{"$f":"BJ234","v":""},null,null,null,{"$f":"AR234","v":""},null,null,null,null,null,null,null,null,null,null,null,null,null,null,null,null,null,null,null,null,null,null,null,null,null,null,null,null,null,{"$f":"SUBSTITUTE($AY234,\",\",\", \")","v":""},null,null,null,null,null,null,null,null,null,null,null,null,null,null,null,null,null,{"$f":"SUBSTITUTE(BF234,\",\",\", \")","v":""}]
[]
[]
[null,null,null,null,null,null,null,null,null,{"$f":"BJ237","v":""},null,null,null,{"$f":"AR237","v":""},null,null,null,null,null,null,null,null,null,null,null,null,null,null,null,null,null,null,null,null,null,null,null,null,null,null,null,null,null,{"$f":"SUBSTITUTE($AY237,\",\",\", \")","v":""},null,null,null,null,null,null,null,null,null,null,null,null,null,null,null,null,null,{"$f":"SUBSTITUTE(BF237,\",\",\", \")","v":""}]
[]
[]
[null,null,null,null,null,null,null,null,null,{"$f":"BJ240","v":""},null,null,null,{"$f":"AR240","v":""},null,null,null,null,null,null,null,null,null,null,null,null,null,null,null,null,null,null,null,null,null,null,null,null,null,null,null,null,null,{"$f":"SUBSTITUTE($AY240,\",\",\", \")","v":""},null,null,null,null,null,null,null,null,null,null,null,null,null,null,null,null,null,{"$f":"SUBSTITUTE(BF240,\",\",\", \")","v":""}]
[]
[]
[null,null,null,null,null,null,null,null,null,{"$f":"BJ243","v":""},null,null,null,{"$f":"AR243","v":""},null,null,null,null,null,null,null,null,null,null,null,null,null,null,null,null,null,null,null,null,null,null,null,null,null,null,null,null,null,{"$f":"SUBSTITUTE($AY243,\",\",\", \")","v":""},null,null,null,null,null,null,null,null,null,null,null,null,null,null,null,null,null,{"$f":"SUBSTITUTE(BF243,\",\",\", \")","v":""}]
[]
[]
["Date: ",null,null,"02/22/2016",null,null,null,null,null,null,null,null,null,null,null,null,null,null,null,null,null,null,null,null,null,null,null,null,null,null,null,null,null,null,null,null,null,null,null,null,null,null,null,null,null,null,null,null,null,null,null,null,null,null,null,null,null,{"$f":"SUBSTITUTE(J245,\",\",\", \")","v":""}]
["Complex Name:",null,null,null,null,"Green Street Apartments",null,null,null,null,null,null,null,null,null,null,"Conditions Conducive Legend",null,null,null,null,null,null,null,null,null,null,null,null,null,null,null,null,null,null,null,null,null,null,null,null,null,null,null,null,null,null,null,null,null,null,null,null,null,null,null,null,""]
[null,null,null,null,null,null,null,null,null,null,null,null,null,null,null,null,"DD - Dirty Dishes",null,null,null,"OF - Open Foods in Unit",null,null,null,null,null,null,"ER - Excess Rubbish in Unit",null,null,null,null,null,null,"RNC - Rubbish not in container",null,null,null,null,null,null,null,null,null,null,null,null,null,null,null,null,null,null,null,null,null,null,""]
["Technician(s):",null,null,null,null,"Richard Thomas",null,null,null,null,null,null,null,null,null,null,"DL - Dirty Laundry",null,null,null,"SA - Stored/stacked articles",null,null,null,null,null,null,"G/F-FW - Grease/Food on floors or walls",null,null,null,null,null,null,"G/F-STC - Grease/Food Debris on stove, table or countertops",null,null,null,null,null,null,null,null,null,null,null,null,null,null,null,null,null,null,null,null,null,null,""]
[null,null,null,null,null,null,null,null,null,null,null,null,null,null,null,null,null,null,null,null,null,null,null,null,null,null,null,null,null,null,null,null,null,null,null,null,null,null,null,null,null,null,null,null,null,null,null,null,null,null,null,null,null,null,null,null,null,""]
[{"$f":"COUNTA(B228:F810)*3","v":84.0},null,null,null,null,null,null,null,null,null,null,null,null,null,null,null,null,null,null,null,null,null,null,null,null,null,null,null,null,null,null,null,null,null,null,null,null,null,null,null,null,null,null,null,null,null,null,null,null,null,null,null,null,null,null,null,null,""]
[null,"Unit #  . ",null,null,null,null,"Unit Access  .",null,null," Treatment Location",null,null,null,"       Treatment Type\nT=Treatment     C=Cleanout\nG=Glue Traps",null,null,null,null,{"$f":"BD252","v":""},"PCT Comments\nIncludes Conditions Conducive, NJ Decal & Pets",null,null,null,null,null,null,null,null,null,null,null,"Resident's Signature",null,null,null,null,null,null,null,null,null,null,null,null,null,null,null,null,null,null,null,null,null,null,null,{"$f":"IF(BE252<>\"NJ\",\"\",\"NJ Decal\")","v":""},"PA",""]
[null,null,null,null,null,null,null,null,null,{"$f":"BJ253","v":""},null,null,null,{"$f":"AR253","v":""},null,null,null,null,null,null,null,null,null,null,null,null,null,null,null,null,null,null,null,null,null,null,null,null,null,null,null,null,null,{"$f":"SUBSTITUTE($AY253,\",\",\", \")","v":""},null,null,null,null,null,null,null,null,null,null,null,null,null,null,null,null,null,{"$f":"SUBSTITUTE(BF253,\",\",\", \")","v":""}]
[]
[]
[null,null,null,null,null,null,null,null,null,{"$f":"BJ256","v":""},null,null,null,{"$f":"AR256","v":""},null,null,null,null,null,null,null,null,null,null,null,null,null,null,null,null,null,null,null,null,null,null,null,null,null,null,null,null,null,{"$f":"SUBSTITUTE($AY256,\",\",\", \")","v":""},null,null,null,null,null,null,null,null,null,null,null,null,null,null,null,null,null,{"$f":"SUBSTITUTE(BF256,\",\",\", \")","v":""}]
[]
[]
[null,null,null,null,null,null,null,null,null,{"$f":"BJ259","v":""},null,null,null,{"$f":"AR259","v":""},null,null,null,null,null,null,null,null,null,null,null,null,null,null,null,null,null,null,null,null,null,null,null,null,null,null,null,null,null,{"$f":"SUBSTITUTE($AY259,\",\",\", \")","v":""},null,null,null,null,null,null,null,null,null,null,null,null,null,null,null,null,null,{"$f":"SUBSTITUTE(BF259,\",\",\", \")","v":""}]
[]
[]
[null,null,null,null,null,null,null,null,null,{"$f":"BJ262","v":""},null,null,null,{"$f":"AR262","v":""},null,null,null,null,null,null,null,null,null,null,null,null,null,null,null,null,null,null,null,null,null,null,null,null,null,null,null,null,null,{"$f":"SUBSTITUTE($AY262,\",\",\", \")","v":""},null,null,null,null,null,null,null,null,null,null,null,null,null,null,null,null,null,{"$f":"SUBSTITUTE(BF262,\",\",\", \")","v":""}]
[]
[]
[null,null,null,null,null,null,null,null,null,{"$f":"BJ265","v":""},null,null,null,{"$f":"AR265","v":""},null,null,null,null,null,null,null,null,null,null,null,null,null,null,null,null,null,null,null,null,null,null,null,null,null,null,null,null,null,{"$f":"SUBSTITUTE($AY265,\",\",\", \")","v":""},null,null,null,null,null,null,null,null,null,null,null,null,null,null,null,null,null,{"$f":"SUBSTITUTE(BF265,\",\",\", \")","v":""}]
[]
[]
[null,null,null,null,null,null,null,null,null,{"$f":"BJ268","v":""},null,null,null,{"$f":"AR268","v":""},null,null,null,null,null,null,null,null,null,null,null,null,null,null,null,null,null,null,null,null,null,null,null,null,null,null,null,null,null,{"$f":"SUBSTITUTE($AY268,\",\",\", \")","v":""},null,null,null,null,null,null,null,null,null,null,null,null,null,null,null,null,null,{"$f":"SUBSTITUTE(BF268,\",\",\", \")","v":""}]
[]
[]
[null,null,null,null,null,null,null,null,null,{"$f":"BJ271","v":""},null,null,null,{"$f":"AR271","v":""},null,null,null,null,null,null,null,null,null,null,null,null,null,null,null,null,null,null,null,null,null,null,null,null,null,null,null,null,null,{"$f":"SUBSTITUTE($AY271,\",\",\", \")","v":""},null,null,null,null,null,null,null,null,null,null,null,null,null,null,null,null,null,{"$f":"SUBSTITUTE(BF271,\",\",\", \")","v":""}]
[]
[]
[null,null,null,null,null,null,null,null,null,{"$f":"BJ274","v":""},null,null,null,{"$f":"AR274","v":""},null,null,null,null,null,null,null,null,null,null,null,null,null,null,null,null,null,null,null,null,null,null,null,null,null,null,null,null,null,{"$f":"SUBSTITUTE($AY274,\",\",\", \")","v":""},null,null,null,null,null,null,null,null,null,null,null,null,null,null,null,null,null,{"$f":"SUBSTITUTE(BF274,\",\",\", \")","v":""}]
[]
[]
[null,null,null,null,null,null,null,null,null,{"$f":"BJ277","v":""},null,null,null,{"$f":"AR277","v":""},null,null,null,null,null,null,null,null,null,null,null,null,null,null,null,null,null,null,null,null,null,null,null,null,null,null,null,null,null,{"$f":"SUBSTITUTE($AY277,\",\",\", \")","v":""},null,null,null,null,null,null,null,null,null,null,null,null,null,null,null,null,null,{"$f":"SUBSTITUTE(BF277,\",\",\", \")","v":""}]
[]
[]
[null,null,null,null,null,null,null,null,null,{"$f":"BJ280","v":""},null,null,null,{"$f":"AR280","v":""},null,null,null,null,null,null,null,null,null,null,null,null,null,null,null,null,null,null,null,null,null,null,null,null,null,null,null,null,null,{"$f":"SUBSTITUTE($AY280,\",\",\", \")","v":""},null,null,null,null,null,null,null,null,null,null,null,null,null,null,null,null,null,{"$f":"SUBSTITUTE(BF280,\",\",\", \")","v":""}]
[]
[]
[null,null,null,null,null,null,null,null,null,{"$f":"BJ283","v":""},null,null,null,{"$f":"AR283","v":""},null,null,null,null,null,null,null,null,null,null,null,null,null,null,null,null,null,null,null,null,null,null,null,null,null,null,null,null,null,{"$f":"SUBSTITUTE($AY283,\",\",\", \")","v":""},null,null,null,null,null,null,null,null,null,"{Roach_Infestation5(1)}",null,null,null,null,null,null,null,{"$f":"SUBSTITUTE(BF283,\",\",\", \")","v":""}]
[]
[]
[null,null,null,null,null,null,null,null,null,{"$f":"BJ286","v":""},null,null,null,{"$f":"AR286","v":""},null,null,null,null,null,null,null,null,null,null,null,null,null,null,null,null,null,null,null,null,null,null,null,null,null,null,null,null,null,{"$f":"SUBSTITUTE($AY286,\",\",\", \")","v":""},null,null,null,null,null,null,null,null,null,"{Roach_Infestation5(2)}",null,null,null,null,null,null,null,{"$f":"SUBSTITUTE(BF286,\",\",\", \")","v":""}]
[]
[]
[null,null,null,null,null,null,null,null,null,{"$f":"BJ289","v":""},null,null,null,{"$f":"AR289","v":""},null,null,null,null,null,null,null,null,null,null,null,null,null,null,null,null,null,null,null,null,null,null,null,null,null,null,null,null,null,{"$f":"SUBSTITUTE($AY289,\",\",\", \")","v":""},null,null,null,null,null,null,null,null,null,"{Roach_Infestation5(3)}",null,null,null,null,null,null,null,{"$f":"SUBSTITUTE(BF289,\",\",\", \")","v":""}]
[]
[]
[null,null,null,null,null,null,null,null,null,{"$f":"BJ292","v":""},null,null,null,{"$f":"AR292","v":""},null,null,null,null,null,null,null,null,null,null,null,null,null,null,null,null,null,null,null,null,null,null,null,null,null,null,null,null,null,{"$f":"SUBSTITUTE($AY292,\",\",\", \")","v":""},null,null,null,null,null,null,null,null,null,"{Roach_Infestation5(4)}",null,null,null,null,null,null,null,{"$f":"SUBSTITUTE(BF292,\",\",\", \")","v":""}]
[]
[]
["Date: ",null,null,"02/22/2016",null,null,null,null,null,null,null,null,null,null,null,null,null,null,null,null,null,null,null,null,null,null,null,null,null,null,null,null,null,null,null,null,null,null,null,null,null,null,null,null,null,null,null,null,null,null,null,null,null,null,null,null,null,{"$f":"SUBSTITUTE(J294,\",\",\", \")","v":""}]
["Complex Name:",null,null,null,null,"Green Street Apartments",null,null,null,null,null,null,null,null,null,null,"Conditions Conducive Legend",null,null,null,null,null,null,null,null,null,null,null,null,null,null,null,null,null,null,null,null,null,null,null,null,null,null,null,null,null,null,null,null,null,null,null,null,null,null,null,null,""]
[null,null,null,null,null,null,null,null,null,null,null,null,null,null,null,null,"DD - Dirty Dishes",null,null,null,"OF - Open Foods in Unit",null,null,null,null,null,null,"ER - Excess Rubbish in Unit",null,null,null,null,null,null,"RNC - Rubbish not in container",null,null,null,null,null,null,null,null,null,null,null,null,null,null,null,null,null,null,null,null,null,null,""]
["Technician(s):",null,null,null,null,"Richard Thomas",null,null,null,null,null,null,null,null,null,null,"DL - Dirty Laundry",null,null,null,"SA - Stored/stacked articles",null,null,null,null,null,null,"G/F-FW - Grease/Food on floors or walls",null,null,null,null,null,null,"G/F-STC - Grease/Food Debris on stove, table or countertops",null,null,null,null,null,null,null,null,null,null,null,null,null,null,null,null,null,null,null,null,null,null,""]
[null,null,null,null,null,null,null,null,null,null,null,null,null,null,null,null,null,null,null,null,null,null,null,null,null,null,null,null,null,null,null,null,null,null,null,null,null,null,null,null,null,null,null,null,null,null,null,null,null,null,null,null,null,null,null,null,null,""]
[{"$f":"COUNTA(B302:F891)*3","v":60.0},null,null,null,null,null,null,null,null,null,null,null,null,null,null,null,null,null,null,null,null,null,null,null,null,null,null,null,null,null,null,null,null,null,null,null,null,null,null,null,null,null,null,null,null,null,null,null,null,null,null,null,null,null,null,null,null,""]
[null,"Unit #  . ",null,null,null,null,"Unit Access  .",null,null," Treatment Location",null,null,null,"       Treatment Type\nT=Treatment     C=Cleanout\nG=Glue Traps",null,null,null,null,{"$f":"BD301","v":""},"PCT Comments\nIncludes Conditions Conducive, NJ Decal & Pets",null,null,null,null,null,null,null,null,null,null,null,"Resident's Signature",null,null,null,null,null,null,null,null,null,null,null,null,null,null,null,null,null,null,null,null,null,null,null,{"$f":"IF(BE301<>\"NJ\",\"\",\"NJ Decal\")","v":""},"PA",""]
[null,null,null,null,null,null,null,null,null,{"$f":"BJ302","v":""},null,null,null,{"$f":"AR302","v":""},null,null,null,null,null,null,null,null,null,null,null,null,null,null,null,null,null,null,null,null,null,null,null,null,null,null,null,null,null,{"$f":"SUBSTITUTE($AY302,\",\",\", \")","v":""},null,null,null,null,null,null,null,null,null,"{Roach_Infestation5(5)}",null,null,null,null,null,null,null,{"$f":"SUBSTITUTE(BF302,\",\",\", \")","v":""}]
[]
[]
[null,null,null,null,null,null,null,null,null,{"$f":"BJ305","v":""},null,null,null,{"$f":"AR305","v":""},null,null,null,null,null,null,null,null,null,null,null,null,null,null,null,null,null,null,null,null,null,null,null,null,null,null,null,null,null,{"$f":"SUBSTITUTE($AY305,\",\",\", \")","v":""},null,null,null,null,null,null,null,null,null,"{Roach_Infestation5(6)}",null,null,null,null,null,null,null,{"$f":"SUBSTITUTE(BF305,\",\",\", \")","v":""}]
[]
[]
[null,null,null,null,null,null,null,null,null,{"$f":"BJ308","v":""},null,null,null,{"$f":"AR308","v":""},null,null,null,null,null,null,null,null,null,null,null,null,null,null,null,null,null,null,null,null,null,null,null,null,null,null,null,null,null,{"$f":"SUBSTITUTE($AY308,\",\",\", \")","v":""},null,null,null,null,null,null,null,null,null,"{Roach_Infestation5(7)}",null,null,null,null,null,null,null,{"$f":"SUBSTITUTE(BF308,\",\",\", \")","v":""}]
[]
[]
[null,null,null,null,null,null,null,null,null,{"$f":"BJ311","v":""},null,null,null,{"$f":"AR311","v":""},null,null,null,null,null,null,null,null,null,null,null,null,null,null,null,null,null,null,null,null,null,null,null,null,null,null,null,null,null,{"$f":"SUBSTITUTE($AY311,\",\",\", \")","v":""},null,null,null,null,null,null,null,null,null,"{Roach_Infestation5(8)}",null,null,null,null,null,null,null,{"$f":"SUBSTITUTE(BF311,\",\",\", \")","v":""}]
[]
[]
[null,null,null,null,null,null,null,null,null,{"$f":"BJ314","v":""},null,null,null,{"$f":"AR314","v":""},null,null,null,null,null,null,null,null,null,null,null,null,null,null,null,null,null,null,null,null,null,null,null,null,null,null,null,null,null,{"$f":"SUBSTITUTE($AY314,\",\",\", \")","v":""},null,null,null,null,null,null,null,null,null,"{Roach_Infestation5(9)}",null,null,null,null,null,null,null,{"$f":"SUBSTITUTE(BF314,\",\",\", \")","v":""}]
[]
[]
[null,null,null,null,null,null,null,null,null,{"$f":"BJ317","v":""},null,null,null,{"$f":"AR317","v":""},null,null,null,null,null,null,null,null,null,null,null,null,null,null,null,null,null,null,null,null,null,null,null,null,null,null,null,null,null,{"$f":"SUBSTITUTE($AY317,\",\",\", \")","v":""},null,null,null,null,null,null,null,null,null,"{Roach_Infestation5(10)}",null,null,null,null,null,null,null,{"$f":"SUBSTITUTE(BF317,\",\",\", \")","v":""}]
[]
[]
[null,null,null,null,null,null,null,null,null,{"$f":"BJ320","v":""},null,null,null,{"$f":"AR320","v":""},null,null,null,null,null,null,null,null,null,null,null,null,null,null,null,null,null,null,null,null,null,null,null,null,null,null,null,null,null,{"$f":"SUBSTITUTE($AY320,\",\",\", \")","v":""},null,null,null,null,null,null,null,null,null,"{Roach_Infestation5(11)}",null,null,null,null,null,null,null,{"$f":"SUBSTITUTE(BF320,\",\",\", \")","v":""}]
[]
[]
[null,null,null,null,null,null,null,null,null,{"$f":"BJ323","v":""},null,null,null,{"$f":"AR323","v":""},null,null,null,null,null,null,null,null,null,null,null,null,null,null,null,null,null,null,null,null,null,null,null,null,null,null,null,null,null,{"$f":"SUBSTITUTE($AY323,\",\",\", \")","v":""},null,null,null,null,null,null,null,null,null,"{Roach_Infestation5(12)}",null,null,null,null,null,null,null,{"$f":"SUBSTITUTE(BF323,\",\",\", \")","v":""}]
[]
[]
[null,null,null,null,null,null,null,null,null,{"$f":"BJ326","v":""},null,null,null,{"$f":"AR326","v":""},null,null,null,null,null,null,null,null,null,null,null,null,null,null,null,null,null,null,null,null,null,null,null,null,null,null,null,null,null,{"$f":"SUBSTITUTE($AY326,\",\",\", \")","v":""},null,null,null,null,null,null,null,null,null,"{Roach_Infestation5(13)}",null,null,null,null,null,null,null,{"$f":"SUBSTITUTE(BF326,\",\",\", \")","v":""}]
[]
[]
[null,null,null,null,null,null,null,null,null,{"$f":"BJ329","v":""},null,null,null,{"$f":"AR329","v":""},null,null,null,null,null,null,null,null,null,null,null,null,null,null,null,null,null,null,null,null,null,null,null,null,null,null,null,null,null,{"$f":"SUBSTITUTE($AY329,\",\",\", \")","v":""},null,null,null,null,null,null,null,null,null,"{Roach_Infestation5(14)}",null,null,null,null,null,null,null,{"$f":"SUBSTITUTE(BF329,\",\",\", \")","v":""}]
[]
[]
[null,null,null,null,null,null,null,null,null,{"$f":"BJ332","v":""},null,null,null,{"$f":"AR332","v":""},null,null,null,null,null,null,null,null,null,null,null,null,null,null,null,null,null,null,null,null,null,null,null,null,null,null,null,null,null,{"$f":"SUBSTITUTE($AY332,\",\",\", \")","v":""},null,null,null,null,null,null,null,null,null,"{Roach_Infestation5(15)}",null,null,null,null,null,null,null,{"$f":"SUBSTITUTE(BF332,\",\",\", \")","v":""}]
[]
[]
[null,null,null,null,null,null,null,null,null,{"$f":"BJ335","v":""},null,null,null,{"$f":"AR335","v":""},null,null,null,null,null,null,null,null,null,null,null,null,null,null,null,null,null,null,null,null,null,null,null,null,null,null,null,null,null,{"$f":"SUBSTITUTE($AY335,\",\",\", \")","v":""},null,null,null,null,null,null,null,null,null,"{Roach_Infestation5(16)}",null,null,null,null,null,null,null,{"$f":"SUBSTITUTE(BF335,\",\",\", \")","v":""}]
[]
[]
[null,null,null,null,null,null,null,null,null,{"$f":"BJ338","v":""},null,null,null,{"$f":"AR338","v":""},null,null,null,null,null,null,null,null,null,null,null,null,null,null,null,null,null,null,null,null,null,null,null,null,null,null,null,null,null,{"$f":"SUBSTITUTE($AY338,\",\",\", \")","v":""},null,null,null,null,null,null,null,null,null,"{Roach_Infestation5(17)}",null,null,null,null,null,null,null,{"$f":"SUBSTITUTE(BF338,\",\",\", \")","v":""}]
[]
[]
[null,null,null,null,null,null,null,null,null,{"$f":"BJ341","v":""},null,null,null,{"$f":"AR341","v":""},null,null,null,null,null,null,null,null,null,null,null,null,null,null,null,null,null,null,null,null,null,null,null,null,null,null,null,null,null,{"$f":"SUBSTITUTE($AY341,\",\",\", \")","v":""},null,null,null,null,null,null,null,null,null,"{Roach_Infestation5(18)}",null,null,null,null,null,null,null,{"$f":"SUBSTITUTE(BF341,\",\",\", \")","v":""}]
[]
[]
["Date: ",null,null,"02/22/2016",null,null,null,null,null,null,null,null,null,null,null,null,null,null,null,null,null,null,null,null,null,null,null,null,null,null,null,null,null,null,null,null,null,null,null,null,null,null,null,null,null,null,null,null,null,null,null,null,null,null,null,null,null,{"$f":"SUBSTITUTE(J343,\",\",\", \")","v":""}]
["Complex Name:",null,null,null,null,"Green Street Apartments",null,null,null,null,null,null,null,null,null,null,"Conditions Conducive Legend",null,null,null,null,null,null,null,null,null,null,null,null,null,null,null,null,null,null,null,null,null,null,null,null,null,null,null,null,null,null,null,null,null,null,null,null,null,null,null,null,""]
[null,null,null,null,null,null,null,null,null,null,null,null,null,null,null,null,"DD - Dirty Dishes",null,null,null,"OF - Open Foods in Unit",null,null,null,null,null,null,"ER - Excess Rubbish in Unit",null,null,null,null,null,null,"RNC - Rubbish not in container",null,null,null,null,null,null,null,null,null,null,null,null,null,null,null,null,null,null,null,null,null,null,""]
["Technician(s):",null,null,null,null,"Richard Thomas",null,null,null,null,null,null,null,null,null,null,"DL - Dirty Laundry",null,null,null,"SA - Stored/stacked articles",null,null,null,null,null,null,"G/F-FW - Grease/Food on floors or walls",null,null,null,null,null,null,"G/F-STC - Grease/Food Debris on stove, table or countertops",null,null,null,null,null,null,null,null,null,null,null,null,null,null,null,null,null,null,null,null,null,null,""]
[null,null,null,null,null,null,null,null,null,null,null,null,null,null,null,null,null,null,null,null,null,null,null,null,null,null,null,null,null,null,null,null,null,null,null,null,null,null,null,null,null,null,null,null,null,null,null,null,null,null,null,null,null,null,null,null,null,""]
[{"$f":"COUNTA(B332:F930)*3","v":60.0},null,null,null,null,null,null,null,null,null,null,null,null,null,null,null,null,null,null,null,null,null,null,null,null,null,null,null,null,null,null,null,null,null,null,null,null,null,null,null,null,null,null,null,null,null,null,null,null,null,null,null,null,null,null,null,null,""]
[null,"Unit #  . ",null,null,null,null,"Unit Access  .",null,null," Treatment Location",null,null,null,"       Treatment Type\nT=Treatment     C=Cleanout\nG=Glue Traps",null,null,null,null,{"$f":"BD350","v":""},"PCT Comments\nIncludes Conditions Conducive, NJ Decal & Pets",null,null,null,null,null,null,null,null,null,null,null,"Resident's Signature",null,null,null,null,null,null,null,null,null,null,null,null,null,null,null,null,null,null,null,null,null,null,null,{"$f":"IF(BE350<>\"NJ\",\"\",\"NJ Decal\")","v":""},"PA",""]
[null,null,null,null,null,null,null,null,null,{"$f":"BJ351","v":""},null,null,null,{"$f":"AR351","v":""},null,null,null,null,null,null,null,null,null,null,null,null,null,null,null,null,null,null,null,null,null,null,null,null,null,null,null,null,null,{"$f":"SUBSTITUTE($AY351,\",\",\", \")","v":""},null,null,null,null,null,null,null,null,null,"{Roach_Infestation5(19)}",null,null,null,null,null,null,null,{"$f":"SUBSTITUTE(BF351,\",\",\", \")","v":""}]
[]
[]
[null,null,null,null,null,null,null,null,null,{"$f":"BJ354","v":""},null,null,null,{"$f":"AR354","v":""},null,null,null,null,null,null,null,null,null,null,null,null,null,null,null,null,null,null,null,null,null,null,null,null,null,null,null,null,null,{"$f":"SUBSTITUTE($AY354,\",\",\", \")","v":""},null,null,null,null,null,null,null,null,null,"{Roach_Infestation5(20)}",null,null,null,null,null,null,null,{"$f":"SUBSTITUTE(BF354,\",\",\", \")","v":""}]
[]
[]
[null,null,null,null,null,null,null,null,null,{"$f":"BJ357","v":""},null,null,null,{"$f":"AR357","v":""},null,null,null,null,null,null,null,null,null,null,null,null,null,null,null,null,null,null,null,null,null,null,null,null,null,null,null,null,null,{"$f":"SUBSTITUTE($AY357,\",\",\", \")","v":""},null,null,null,null,null,null,null,null,null,"{Roach_Infestation6(1)}",null,null,null,null,null,null,null,{"$f":"SUBSTITUTE(BF357,\",\",\", \")","v":""}]
[]
[]
[null,null,null,null,null,null,null,null,null,{"$f":"BJ360","v":""},null,null,null,{"$f":"AR360","v":""},null,null,null,null,null,null,null,null,null,null,null,null,null,null,null,null,null,null,null,null,null,null,null,null,null,null,null,null,null,{"$f":"SUBSTITUTE($AY360,\",\",\", \")","v":""},null,null,null,null,null,null,null,null,null,"{Roach_Infestation6(2)}",null,null,null,null,null,null,null,{"$f":"SUBSTITUTE(BF360,\",\",\", \")","v":""}]
[]
[]
[null,null,null,null,null,null,null,null,null,{"$f":"BJ363","v":""},null,null,null,{"$f":"AR363","v":""},null,null,null,null,null,null,null,null,null,null,null,null,null,null,null,null,null,null,null,null,null,null,null,null,null,null,null,null,null,{"$f":"SUBSTITUTE($AY363,\",\",\", \")","v":""},null,null,null,null,null,null,null,null,null,"{Roach_Infestation6(3)}",null,null,null,null,null,null,null,{"$f":"SUBSTITUTE(BF363,\",\",\", \")","v":""}]
[]
[]
[null,null,null,null,null,null,null,null,null,{"$f":"BJ366","v":""},null,null,null,{"$f":"AR366","v":""},null,null,null,null,null,null,null,null,null,null,null,null,null,null,null,null,null,null,null,null,null,null,null,null,null,null,null,null,null,{"$f":"SUBSTITUTE($AY366,\",\",\", \")","v":""},null,null,null,null,null,null,null,null,null,"{Roach_Infestation6(4)}",null,null,null,null,null,null,null,{"$f":"SUBSTITUTE(BF366,\",\",\", \")","v":""}]
[]
[]
[null,null,null,null,null,null,null,null,null,{"$f":"BJ369","v":""},null,null,null,{"$f":"AR369","v":""},null,null,null,null,null,null,null,null,null,null,null,null,null,null,null,null,null,null,null,null,null,null,null,null,null,null,null,null,null,{"$f":"SUBSTITUTE($AY369,\",\",\", \")","v":""},null,null,null,null,null,null,null,null,null,"{Roach_Infestation6(5)}",null,null,null,null,null,null,null,{"$f":"SUBSTITUTE(BF369,\",\",\", \")","v":""}]
[]
[]
[null,null,null,null,null,null,null,null,null,{"$f":"BJ372","v":""},null,null,null,{"$f":"AR372","v":""},null,null,null,null,null,null,null,null,null,null,null,null,null,null,null,null,null,null,null,null,null,null,null,null,null,null,null,null,null,{"$f":"SUBSTITUTE($AY372,\",\",\", \")","v":""},null,null,null,null,null,null,null,null,null,"{Roach_Infestation6(6)}",null,null,null,null,null,null,null,{"$f":"SUBSTITUTE(BF372,\",\",\", \")","v":""}]
[]
[]
[null,null,null,null,null,null,null,null,null,{"$f":"BJ375","v":""},null,null,null,{"$f":"AR375","v":""},null,null,null,null,null,null,null,null,null,null,null,null,null,null,null,null,null,null,null,null,null,null,null,null,null,null,null,null,null,{"$f":"SUBSTITUTE($AY375,\",\",\", \")","v":""},null,null,null,null,null,null,null,null,null,"{Roach_Infestation6(7)}",null,null,null,null,null,null,null,{"$f":"SUBSTITUTE(BF375,\",\",\", \")","v":""}]
[]
[]
[null,null,null,null,null,null,null,null,null,{"$f":"BJ378","v":""},null,null,null,{"$f":"AR378","v":""},null,null,null,null,null,null,null,null,null,null,null,null,null,null,null,null,null,null,null,null,null,null,null,null,null,null,null,null,null,{"$f":"SUBSTITUTE($AY378,\",\",\", \")","v":""},null,null,null,null,null,null,null,null,null,"{Roach_Infestation6(8)}",null,null,null,null,null,null,null,{"$f":"SUBSTITUTE(BF378,\",\",\", \")","v":""}]
[]
[]
[null,null,null,null,null,null,null,null,null,{"$f":"BJ381","v":""},null,null,null,{"$f":"AR381","v":""},null,null,null,null,null,null,null,null,null,null,null,null,null,null,null,null,null,null,null,null,null,null,null,null,null,null,null,null,null,{"$f":"SUBSTITUTE($AY381,\",\",\", \")","v":""},null,null,null,null,null,null,null,null,null,"{Roach_Infestation6(9)}",null,null,null,null,null,null,null,{"$f":"SUBSTITUTE(BF381,\",\",\", \")","v":""}]
[]
[]
[null,null,null,null,null,null,null,null,null,{"$f":"BJ384","v":""},null,null,null,{"$f":"AR384","v":""},null,null,null,null,null,null,null,null,null,null,null,null,null,null,null,null,null,null,null,null,null,null,null,null,null,null,null,null,null,{"$f":"SUBSTITUTE($AY384,\",\",\", \")","v":""},null,null,null,null,null,null,null,null,null,"{Roach_Infestation6(10)}",null,null,null,null,null,null,null,{"$f":"SUBSTITUTE(BF384,\",\",\", \")","v":""}]
[]
[]
[null,null,null,null,null,null,null,null,null,{"$f":"BJ387","v":""},null,null,null,{"$f":"AR387","v":""},null,null,null,null,null,null,null,null,null,null,null,null,null,null,null,null,null,null,null,null,null,null,null,null,null,null,null,null,null,{"$f":"SUBSTITUTE($AY387,\",\",\", \")","v":""},null,null,null,null,null,null,null,null,null,"{Roach_Infestation6(11)}",null,null,null,null,null,null,null,{"$f":"SUBSTITUTE(BF387,\",\",\", \")","v":""}]
[]
[]
[null,null,null,null,null,null,null,null,null,{"$f":"BJ390","v":""},null,null,null,{"$f":"AR390","v":""},null,null,null,null,null,null,null,null,null,null,null,null,null,null,null,null,null,null,null,null,null,null,null,null,null,null,null,null,null,{"$f":"SUBSTITUTE($AY390,\",\",\", \")","v":""},null,null,null,null,null,null,null,null,null,"{Roach_Infestation6(12)}",null,null,null,null,null,null,null,{"$f":"SUBSTITUTE(BF390,\",\",\", \")","v":""}]
[]
[]
["Date: ",null,null,"02/22/2016",null,null,null,null,null,null,null,null,null,null,null,null,null,null,null,null,null,null,null,null,null,null,null,null,null,null,null,null,null,null,null,null,null,null,null,null,null,null,null,null,null,null,null,null,null,null,null,null,null,null,null,null,null,{"$f":"SUBSTITUTE(J392,\",\",\", \")","v":""}]
["Complex Name:",null,null,null,null,"Green Street Apartments",null,null,null,null,null,null,null,null,null,null,"Conditions Conducive Legend",null,null,null,null,null,null,null,null,null,null,null,null,null,null,null,null,null,null,null,null,null,null,null,null,null,null,null,null,null,null,null,null,null,null,null,null,null,null,null,null,""]
[null,null,null,null,null,null,null,null,null,null,null,null,null,null,null,null,"DD - Dirty Dishes",null,null,null,"OF - Open Foods in Unit",null,null,null,null,null,null,"ER - Excess Rubbish in Unit",null,null,null,null,null,null,"RNC - Rubbish not in container",null,null,null,null,null,null,null,null,null,null,null,null,null,null,null,null,null,null,null,null,null,null,""]
["Technician(s):",null,null,null,null,"Richard Thomas",null,null,null,null,null,null,null,null,null,null,"DL - Dirty Laundry",null,null,null,"SA - Stored/stacked articles",null,null,null,null,null,null,"G/F-FW - Grease/Food on floors or walls",null,null,null,null,null,null,"G/F-STC - Grease/Food Debris on stove, table or countertops",null,null,null,null,null,null,null,null,null,null,null,null,null,null,null,null,null,null,null,null,null,null,""]
[null,null,null,null,null,null,null,null,null,null,null,null,null,null,null,null,null,null,null,null,null,null,null,null,null,null,null,null,null,null,null,null,null,null,null,null,null,null,null,null,null,null,null,null,null,null,null,null,null,null,null,null,null,null,null,null,null,""]
[{"$f":"COUNTA(B369:F969)*3","v":48.0},null,null,null,null,null,null,null,null,null,null,null,null,null,null,null,null,null,null,null,null,null,null,null,null,null,null,null,null,null,null,null,null,null,null,null,null,null,null,null,null,null,null,null,null,null,null,null,null,null,null,null,null,null,null,null,null,""]
[null,"Unit #  . ",null,null,null,null,"Unit Access  .",null,null," Treatment Location",null,null,null,"       Treatment Type\nT=Treatment     C=Cleanout\nG=Glue Traps",null,null,null,null,{"$f":"BD399","v":""},"PCT Comments\nIncludes Conditions Conducive, NJ Decal & Pets",null,null,null,null,null,null,null,null,null,null,null,"Resident's Signature",null,null,null,null,null,null,null,null,null,null,null,null,null,null,null,null,null,null,null,null,null,null,null,{"$f":"IF(BE399<>\"NJ\",\"\",\"NJ Decal\")","v":""},"PA",""]
[null,null,null,null,null,null,null,null,null,{"$f":"BJ400","v":""},null,null,null,{"$f":"AR400","v":""},null,null,null,null,null,null,null,null,null,null,null,null,null,null,null,null,null,null,null,null,null,null,null,null,null,null,null,null,null,{"$f":"SUBSTITUTE($AY400,\",\",\", \")","v":""},null,null,null,null,null,null,null,null,null,"{Roach_Infestation6(13)}",null,null,null,null,null,null,null,{"$f":"SUBSTITUTE(BF400,\",\",\", \")","v":""}]
[]
[]
[null,null,null,null,null,null,null,null,null,{"$f":"BJ403","v":""},null,null,null,{"$f":"AR403","v":""},null,null,null,null,null,null,null,null,null,null,null,null,null,null,null,null,null,null,null,null,null,null,null,null,null,null,null,null,null,{"$f":"SUBSTITUTE($AY403,\",\",\", \")","v":""},null,null,null,null,null,null,null,null,null,"{Roach_Infestation6(14)}",null,null,null,null,null,null,null,{"$f":"SUBSTITUTE(BF403,\",\",\", \")","v":""}]
[]
[]
[null,null,null,null,null,null,null,null,null,{"$f":"BJ406","v":""},null,null,null,{"$f":"AR406","v":""},null,null,null,null,null,null,null,null,null,null,null,null,null,null,null,null,null,null,null,null,null,null,null,null,null,null,null,null,null,{"$f":"SUBSTITUTE($AY406,\",\",\", \")","v":""},null,null,null,null,null,null,null,null,null,"{Roach_Infestation6(15)}",null,null,null,null,null,null,null,{"$f":"SUBSTITUTE(BF406,\",\",\", \")","v":""}]
[]
[]
[null,null,null,null,null,null,null,null,null,{"$f":"BJ409","v":""},null,null,null,{"$f":"AR409","v":""},null,null,null,null,null,null,null,null,null,null,null,null,null,null,null,null,null,null,null,null,null,null,null,null,null,null,null,null,null,{"$f":"SUBSTITUTE($AY409,\",\",\", \")","v":""},null,null,null,null,null,null,null,null,null,"{Roach_Infestation6(16)}",null,null,null,null,null,null,null,{"$f":"SUBSTITUTE(BF409,\",\",\", \")","v":""}]
[]
[]
[null,null,null,null,null,null,null,null,null,{"$f":"BJ412","v":""},null,null,null,{"$f":"AR412","v":""},null,null,null,null,null,null,null,null,null,null,null,null,null,null,null,null,null,null,null,null,null,null,null,null,null,null,null,null,null,{"$f":"SUBSTITUTE($AY412,\",\",\", \")","v":""},null,null,null,null,null,null,null,null,null,"{Roach_Infestation6(17)}",null,null,null,null,null,null,null,{"$f":"SUBSTITUTE(BF412,\",\",\", \")","v":""}]
[]
[]
[null,null,null,null,null,null,null,null,null,{"$f":"BJ415","v":""},null,null,null,{"$f":"AR415","v":""},null,null,null,null,null,null,null,null,null,null,null,null,null,null,null,null,null,null,null,null,null,null,null,null,null,null,null,null,null,{"$f":"SUBSTITUTE($AY415,\",\",\", \")","v":""},null,null,null,null,null,null,null,null,null,"{Roach_Infestation6(18)}",null,null,null,null,null,null,null,{"$f":"SUBSTITUTE(BF415,\",\",\", \")","v":""}]
[]
[]
[null,null,null,null,null,null,null,null,null,{"$f":"BJ418","v":""},null,null,null,{"$f":"AR418","v":""},null,null,null,null,null,null,null,null,null,null,null,null,null,null,null,null,null,null,null,null,null,null,null,null,null,null,null,null,null,{"$f":"SUBSTITUTE($AY418,\",\",\", \")","v":""},null,null,null,null,null,null,null,null,null,"{Roach_Infestation6(19)}",null,null,null,null,null,null,null,{"$f":"SUBSTITUTE(BF418,\",\",\", \")","v":""}]
[]
[]
[null,null,null,null,null,null,null,null,null,{"$f":"BJ421","v":""},null,null,null,{"$f":"AR421","v":""},null,null,null,null,null,null,null,null,null,null,null,null,null,null,null,null,null,null,null,null,null,null,null,null,null,null,null,null,null,{"$f":"SUBSTITUTE($AY421,\",\",\", \")","v":""},null,null,null,null,null,null,null,null,null,"{Roach_Infestation6(20)}",null,null,null,null,null,null,null,{"$f":"SUBSTITUTE(BF421,\",\",\", \")","v":""}]
[]
[]
[null,null,null,null,null,null,null,null,null,{"$f":"BJ424","v":""},null,null,null,{"$f":"AR424","v":""},null,null,null,null,null,null,null,null,null,null,null,null,null,null,null,null,null,null,null,null,null,null,null,null,null,null,null,null,null,{"$f":"SUBSTITUTE($AY424,\",\",\", \")","v":""},null,null,null,null,null,null,null,null,null,"{Roach_Infestation7(1)}",null,null,null,null,null,null,null,{"$f":"SUBSTITUTE(BF424,\",\",\", \")","v":""}]
[]
[]
[null,null,null,null,null,null,null,null,null,{"$f":"BJ427","v":""},null,null,null,{"$f":"AR427","v":""},null,null,null,null,null,null,null,null,null,null,null,null,null,null,null,null,null,null,null,null,null,null,null,null,null,null,null,null,null,{"$f":"SUBSTITUTE($AY427,\",\",\", \")","v":""},null,null,null,null,null,null,null,null,null,"{Roach_Infestation7(2)}",null,null,null,null,null,null,null,{"$f":"SUBSTITUTE(BF427,\",\",\", \")","v":""}]
[]
[]
[null,null,null,null,null,null,null,null,null,{"$f":"BJ430","v":""},null,null,null,{"$f":"AR430","v":""},null,null,null,null,null,null,null,null,null,null,null,null,null,null,null,null,null,null,null,null,null,null,null,null,null,null,null,null,null,{"$f":"SUBSTITUTE($AY430,\",\",\", \")","v":""},null,null,null,null,null,null,null,null,null,"{Roach_Infestation7(3)}",null,null,null,null,null,null,null,{"$f":"SUBSTITUTE(BF430,\",\",\", \")","v":""}]
[]
[]
[null,null,null,null,null,null,null,null,null,{"$f":"BJ433","v":""},null,null,null,{"$f":"AR433","v":""},null,null,null,null,null,null,null,null,null,null,null,null,null,null,null,null,null,null,null,null,null,null,null,null,null,null,null,null,null,{"$f":"SUBSTITUTE($AY433,\",\",\", \")","v":""},null,null,null,null,null,null,null,null,null,"{Roach_Infestation7(4)}",null,null,null,null,null,null,null,{"$f":"SUBSTITUTE(BF433,\",\",\", \")","v":""}]
[]
[]
[null,null,null,null,null,null,null,null,null,{"$f":"BJ436","v":""},null,null,null,{"$f":"AR436","v":""},null,null,null,null,null,null,null,null,null,null,null,null,null,null,null,null,null,null,null,null,null,null,null,null,null,null,null,null,null,{"$f":"SUBSTITUTE($AY436,\",\",\", \")","v":""},null,null,null,null,null,null,null,null,null,"{Roach_Infestation7(5)}",null,null,null,null,null,null,null,{"$f":"SUBSTITUTE(BF436,\",\",\", \")","v":""}]
[]
[]
[null,null,null,null,null,null,null,null,null,{"$f":"BJ439","v":""},null,null,null,{"$f":"AR439","v":""},null,null,null,null,null,null,null,null,null,null,null,null,null,null,null,null,null,null,null,null,null,null,null,null,null,null,null,null,null,{"$f":"SUBSTITUTE($AY439,\",\",\", \")","v":""},null,null,null,null,null,null,null,null,null,"{Roach_Infestation7(6)}",null,null,null,null,null,null,null,{"$f":"SUBSTITUTE(BF439,\",\",\", \")","v":""}]
[]
[]
["Date: ",null,null,"02/22/2016",null,null,null,null,null,null,null,null,null,null,null,null,null,null,null,null,null,null,null,null,null,null,null,null,null,null,null,null,null,null,null,null,null,null,null,null,null,null,null,null,null,null,null,null,null,null,null,null,null,null,null,null,null,{"$f":"SUBSTITUTE(J441,\",\",\", \")","v":""}]
["Complex Name:",null,null,null,null,"Green Street Apartments",null,null,null,null,null,null,null,null,null,null,"Conditions Conducive Legend",null,null,null,null,null,null,null,null,null,null,null,null,null,null,null,null,null,null,null,null,null,null,null,null,null,null,null,null,null,null,null,null,null,null,null,null,null,null,null,null,""]
[null,null,null,null,null,null,null,null,null,null,null,null,null,null,null,null,"DD - Dirty Dishes",null,null,null,"OF - Open Foods in Unit",null,null,null,null,null,null,"ER - Excess Rubbish in Unit",null,null,null,null,null,null,"RNC - Rubbish not in container",null,null,null,null,null,null,null,null,null,null,null,null,null,null,null,null,null,null,null,null,null,null,""]
["Technician(s):",null,null,null,null,"Richard Thomas",null,null,null,null,null,null,null,null,null,null,"DL - Dirty Laundry",null,null,null,"SA - Stored/stacked articles",null,null,null,null,null,null,"G/F-FW - Grease/Food on floors or walls",null,null,null,null,null,null,"G/F-STC - Grease/Food Debris on stove, table or countertops",null,null,null,null,null,null,null,null,null,null,null,null,null,null,null,null,null,null,null,null,null,null,""]
[null,null,null,null,null,null,null,null,null,null,null,null,null,null,null,null,null,null,null,null,null,null,null,null,null,null,null,null,null,null,null,null,null,null,null,null,null,null,null,null,null,null,null,null,null,null,null,null,null,null,null,null,null,null,null,null,null,""]
[{"$f":"COUNTA(B418:F1018)*3","v":36.0},null,null,null,null,null,null,null,null,null,null,null,null,null,null,null,null,null,null,null,null,null,null,null,null,null,null,null,null,null,null,null,null,null,null,null,null,null,null,null,null,null,null,null,null,null,null,null,null,null,null,null,null,null,null,null,null,""]
[null,"Unit #  . ",null,null,null,null,"Unit Access  .",null,null," Treatment Location",null,null,null,"       Treatment Type\nT=Treatment     C=Cleanout\nG=Glue Traps",null,null,null,null,{"$f":"BD448","v":""},"PCT Comments\nIncludes Conditions Conducive, NJ Decal & Pets",null,null,null,null,null,null,null,null,null,null,null,"Resident's Signature",null,null,null,null,null,null,null,null,null,null,null,null,null,null,null,null,null,null,null,null,null,null,null,{"$f":"IF(BE448<>\"NJ\",\"\",\"NJ Decal\")","v":""},"PA",""]
[null,null,null,null,null,null,null,null,null,{"$f":"BJ449","v":""},null,null,null,{"$f":"AR449","v":""},null,null,null,null,null,null,null,null,null,null,null,null,null,null,null,null,null,null,null,null,null,null,null,null,null,null,null,null,null,{"$f":"SUBSTITUTE($AY449,\",\",\", \")","v":""},null,null,null,null,null,null,null,null,null,"{Roach_Infestation7(7)}",null,null,null,null,null,null,null,{"$f":"SUBSTITUTE(BF449,\",\",\", \")","v":""}]
[]
[]
[null,null,null,null,null,null,null,null,null,{"$f":"BJ452","v":""},null,null,null,{"$f":"AR452","v":""},null,null,null,null,null,null,null,null,null,null,null,null,null,null,null,null,null,null,null,null,null,null,null,null,null,null,null,null,null,{"$f":"SUBSTITUTE($AY452,\",\",\", \")","v":""},null,null,null,null,null,null,null,null,null,"{Roach_Infestation7(8)}",null,null,null,null,null,null,null,{"$f":"SUBSTITUTE(BF452,\",\",\", \")","v":""}]
[]
[]
[null,null,null,null,null,null,null,null,null,{"$f":"BJ455","v":""},null,null,null,{"$f":"AR455","v":""},null,null,null,null,null,null,null,null,null,null,null,null,null,null,null,null,null,null,null,null,null,null,null,null,null,null,null,null,null,{"$f":"SUBSTITUTE($AY455,\",\",\", \")","v":""},null,null,null,null,null,null,null,null,null,"{Roach_Infestation7(9)}",null,null,null,null,null,null,null,{"$f":"SUBSTITUTE(BF455,\",\",\", \")","v":""}]
[]
[]
[null,null,null,null,null,null,null,null,null,{"$f":"BJ458","v":""},null,null,null,{"$f":"AR458","v":""},null,null,null,null,null,null,null,null,null,null,null,null,null,null,null,null,null,null,null,null,null,null,null,null,null,null,null,null,null,{"$f":"SUBSTITUTE($AY458,\",\",\", \")","v":""},null,null,null,null,null,null,null,null,null,"{Roach_Infestation7(10)}",null,null,null,null,null,null,null,{"$f":"SUBSTITUTE(BF458,\",\",\", \")","v":""}]
[]
[]
[null,null,null,null,null,null,null,null,null,{"$f":"BJ461","v":""},null,null,null,{"$f":"AR461","v":""},null,null,null,null,null,null,null,null,null,null,null,null,null,null,null,null,null,null,null,null,null,null,null,null,null,null,null,null,null,{"$f":"SUBSTITUTE($AY461,\",\",\", \")","v":""},null,null,null,null,null,null,null,null,null,"{Roach_Infestation7(11)}",null,null,null,null,null,null,null,{"$f":"SUBSTITUTE(BF461,\",\",\", \")","v":""}]
[]
[]
[null,null,null,null,null,null,null,null,null,{"$f":"BJ464","v":""},null,null,null,{"$f":"AR464","v":""},null,null,null,null,null,null,null,null,null,null,null,null,null,null,null,null,null,null,null,null,null,null,null,null,null,null,null,null,null,{"$f":"SUBSTITUTE($AY464,\",\",\", \")","v":""},null,null,null,null,null,null,null,null,null,"{Roach_Infestation7(12)}",null,null,null,null,null,null,null,{"$f":"SUBSTITUTE(BF464,\",\",\", \")","v":""}]
[]
[]
[null,null,null,null,null,null,null,null,null,{"$f":"BJ467","v":""},null,null,null,{"$f":"AR467","v":""},null,null,null,null,null,null,null,null,null,null,null,null,null,null,null,null,null,null,null,null,null,null,null,null,null,null,null,null,null,{"$f":"SUBSTITUTE($AY467,\",\",\", \")","v":""},null,null,null,null,null,null,null,null,null,"{Roach_Infestation7(13)}",null,null,null,null,null,null,null,{"$f":"SUBSTITUTE(BF467,\",\",\", \")","v":""}]
[]
[]
[null,null,null,null,null,null,null,null,null,{"$f":"BJ470","v":""},null,null,null,{"$f":"AR470","v":""},null,null,null,null,null,null,null,null,null,null,null,null,null,null,null,null,null,null,null,null,null,null,null,null,null,null,null,null,null,{"$f":"SUBSTITUTE($AY470,\",\",\", \")","v":""},null,null,null,null,null,null,null,null,null,"{Roach_Infestation7(14)}",null,null,null,null,null,null,null,{"$f":"SUBSTITUTE(BF470,\",\",\", \")","v":""}]
[]
[]
[null,null,null,null,null,null,null,null,null,{"$f":"BJ473","v":""},null,null,null,{"$f":"AR473","v":""},null,null,null,null,null,null,null,null,null,null,null,null,null,null,null,null,null,null,null,null,null,null,null,null,null,null,null,null,null,{"$f":"SUBSTITUTE($AY473,\",\",\", \")","v":""},null,null,null,null,null,null,null,null,null,"{Roach_Infestation7(15)}",null,null,null,null,null,null,null,{"$f":"SUBSTITUTE(BF473,\",\",\", \")","v":""}]
[]
[]
[null,null,null,null,null,null,null,null,null,{"$f":"BJ476","v":""},null,null,null,{"$f":"AR476","v":""},null,null,null,null,null,null,null,null,null,null,null,null,null,null,null,null,null,null,null,null,null,null,null,null,null,null,null,null,null,{"$f":"SUBSTITUTE($AY476,\",\",\", \")","v":""},null,null,null,null,null,null,null,null,null,"{Roach_Infestation7(16)}",null,null,null,null,null,null,null,{"$f":"SUBSTITUTE(BF476,\",\",\", \")","v":""}]
[]
[]
[null,null,null,null,null,null,null,null,null,{"$f":"BJ479","v":""},null,null,null,{"$f":"AR479","v":""},null,null,null,null,null,null,null,null,null,null,null,null,null,null,null,null,null,null,null,null,null,null,null,null,null,null,null,null,null,{"$f":"SUBSTITUTE($AY479,\",\",\", \")","v":""},null,null,null,null,null,null,null,null,null,"{Roach_Infestation7(17)}",null,null,null,null,null,null,null,{"$f":"SUBSTITUTE(BF479,\",\",\", \")","v":""}]
[]
[]
[null,null,null,null,null,null,null,null,null,{"$f":"BJ482","v":""},null,null,null,{"$f":"AR482","v":""},null,null,null,null,null,null,null,null,null,null,null,null,null,null,null,null,null,null,null,null,null,null,null,null,null,null,null,null,null,{"$f":"SUBSTITUTE($AY482,\",\",\", \")","v":""},null,null,null,null,null,null,null,null,null,"{Roach_Infestation7(18)}",null,null,null,null,null,null,null,{"$f":"SUBSTITUTE(BF482,\",\",\", \")","v":""}]
[]
[]
[null,null,null,null,null,null,null,null,null,{"$f":"BJ485","v":""},null,null,null,{"$f":"AR485","v":""},null,null,null,null,null,null,null,null,null,null,null,null,null,null,null,null,null,null,null,null,null,null,null,null,null,null,null,null,null,{"$f":"SUBSTITUTE($AY485,\",\",\", \")","v":""},null,null,null,null,null,null,null,null,null,"{Roach_Infestation7(19)}",null,null,null,null,null,null,null,{"$f":"SUBSTITUTE(BF485,\",\",\", \")","v":""}]
[]
[]
[null,null,null,null,null,null,null,null,null,{"$f":"BJ488","v":""},null,null,null,{"$f":"AR488","v":""},null,null,null,null,null,null,null,null,null,null,null,null,null,null,null,null,null,null,null,null,null,null,null,null,null,null,null,null,null,{"$f":"SUBSTITUTE($AY488,\",\",\", \")","v":""},null,null,null,null,null,null,null,null,null,"{Roach_Infestation7(20)}",null,null,null,null,null,null,null,{"$f":"SUBSTITUTE(BF488,\",\",\", \")","v":""}]
[]
[]
["Date: ",null,null,"02/22/2016",null,null,null,null,null,null,null,null,null,null,null,null,null,null,null,null,null,null,null,null,null,null,null,null,null,null,null,null,null,null,null,null,null,null,null,null,null,null,null,null,null,null,null,null,null,null,null,null,null,null,null,null,null,{"$f":"SUBSTITUTE(J490,\",\",\", \")","v":""}]
["Complex Name:",null,null,null,null,"Green Street Apartments",null,null,null,null,null,null,null,null,null,null,"Conditions Conducive Legend",null,null,null,null,null,null,null,null,null,null,null,null,null,null,null,null,null,null,null,null,null,null,null,null,null,null,null,null,null,null,null,null,null,null,null,null,null,null,null,null,""]
[null,null,null,null,null,null,null,null,null,null,null,null,null,null,null,null,"DD - Dirty Dishes",null,null,null,"OF - Open Foods in Unit",null,null,null,null,null,null,"ER - Excess Rubbish in Unit",null,null,null,null,null,null,"RNC - Rubbish not in container",null,null,null,null,null,null,null,null,null,null,null,null,null,null,null,null,null,null,null,null,null,null,""]
["Technician(s):",null,null,null,null,"Richard Thomas",null,null,null,null,null,null,null,null,null,null,"DL - Dirty Laundry",null,null,null,"SA - Stored/stacked articles",null,null,null,null,null,null,"G/F-FW - Grease/Food on floors or walls",null,null,null,null,null,null,"G/F-STC - Grease/Food Debris on stove, table or countertops",null,null,null,null,null,null,null,null,null,null,null,null,null,null,null,null,null,null,null,null,null,null,""]
[null,null,null,null,null,null,null,null,null,null,null,null,null,null,null,null,null,null,null,null,null,null,null,null,null,null,null,null,null,null,null,null,null,null,null,null,null,null,null,null,null,null,null,null,null,null,null,null,null,null,null,null,null,null,null,null,null,""]
[{"$f":"COUNTA(B467:F1067)*3","v":24.0},null,null,null,null,null,null,null,null,null,null,null,null,null,null,null,null,null,null,null,null,null,null,null,null,null,null,null,null,null,null,null,null,null,null,null,null,null,null,null,null,null,null,null,null,null,null,null,null,null,null,null,null,null,null,null,null,""]
[null,"Unit #  . ",null,null,null,null,"Unit Access  .",null,null," Treatment Location",null,null,null,"       Treatment Type\nT=Treatment     C=Cleanout\nG=Glue Traps",null,null,null,null,{"$f":"BD497","v":""},"PCT Comments\nIncludes Conditions Conducive, NJ Decal & Pets",null,null,null,null,null,null,null,null,null,null,null,"Resident's Signature",null,null,null,null,null,null,null,null,null,null,null,null,null,null,null,null,null,null,null,null,null,null,null,{"$f":"IF(BE497<>\"NJ\",\"\",\"NJ Decal\")","v":""},"PA",""]
[null,null,null,null,null,null,null,null,null,{"$f":"BJ498","v":""},null,null,null,{"$f":"AR498","v":""},null,null,null,null,null,null,null,null,null,null,null,null,null,null,null,null,null,null,null,null,null,null,null,null,null,null,null,null,null,{"$f":"SUBSTITUTE($AY498,\",\",\", \")","v":""},null,null,null,null,null,null,null,null,null,"{Roach_Infestation7(1)}",null,null,null,null,null,null,null,{"$f":"SUBSTITUTE(BF498,\",\",\", \")","v":""}]
[]
[]
[null,null,null,null,null,null,null,null,null,{"$f":"BJ501","v":""},null,null,null,{"$f":"AR501","v":""},null,null,null,null,null,null,null,null,null,null,null,null,null,null,null,null,null,null,null,null,null,null,null,null,null,null,null,null,null,{"$f":"SUBSTITUTE($AY501,\",\",\", \")","v":""},null,null,null,null,null,null,null,null,null,"{Roach_Infestation7(2)}",null,null,null,null,null,null,null,{"$f":"SUBSTITUTE(BF501,\",\",\", \")","v":""}]
[]
[]
[null,null,null,null,null,null,null,null,null,{"$f":"BJ504","v":""},null,null,null,{"$f":"AR504","v":""},null,null,null,null,null,null,null,null,null,null,null,null,null,null,null,null,null,null,null,null,null,null,null,null,null,null,null,null,null,{"$f":"SUBSTITUTE($AY504,\",\",\", \")","v":""},null,null,null,null,null,null,null,null,null,"{Roach_Infestation7(3)}",null,null,null,null,null,null,null,{"$f":"SUBSTITUTE(BF504,\",\",\", \")","v":""}]
[]
[]
[null,null,null,null,null,null,null,null,null,{"$f":"BJ507","v":""},null,null,null,{"$f":"AR507","v":""},null,null,null,null,null,null,null,null,null,null,null,null,null,null,null,null,null,null,null,null,null,null,null,null,null,null,null,null,null,{"$f":"SUBSTITUTE($AY507,\",\",\", \")","v":""},null,null,null,null,null,null,null,null,null,"{Roach_Infestation7(4)}",null,null,null,null,null,null,null,{"$f":"SUBSTITUTE(BF507,\",\",\", \")","v":""}]
[]
[]
[null,null,null,null,null,null,null,null,null,{"$f":"BJ510","v":""},null,null,null,{"$f":"AR510","v":""},null,null,null,null,null,null,null,null,null,null,null,null,null,null,null,null,null,null,null,null,null,null,null,null,null,null,null,null,null,{"$f":"SUBSTITUTE($AY510,\",\",\", \")","v":""},null,null,null,null,null,null,null,null,null,"{Roach_Infestation7(5)}",null,null,null,null,null,null,null,{"$f":"SUBSTITUTE(BF510,\",\",\", \")","v":""}]
[]
[]
[null,null,null,null,null,null,null,null,null,{"$f":"BJ513","v":""},null,null,null,{"$f":"AR513","v":""},null,null,null,null,null,null,null,null,null,null,null,null,null,null,null,null,null,null,null,null,null,null,null,null,null,null,null,null,null,{"$f":"SUBSTITUTE($AY513,\",\",\", \")","v":""},null,null,null,null,null,null,null,null,null,"{Roach_Infestation7(6)}",null,null,null,null,null,null,null,{"$f":"SUBSTITUTE(BF513,\",\",\", \")","v":""}]
[]
[]
[null,null,null,null,null,null,null,null,null,{"$f":"BJ516","v":""},null,null,null,{"$f":"AR516","v":""},null,null,null,null,null,null,null,null,null,null,null,null,null,null,null,null,null,null,null,null,null,null,null,null,null,null,null,null,null,{"$f":"SUBSTITUTE($AY516,\",\",\", \")","v":""},null,null,null,null,null,null,null,null,null,"{Roach_Infestation7(7)}",null,null,null,null,null,null,null,{"$f":"SUBSTITUTE(BF516,\",\",\", \")","v":""}]
[]
[]
[null,null,null,null,null,null,null,null,null,{"$f":"BJ519","v":""},null,null,null,{"$f":"AR519","v":""},null,null,null,null,null,null,null,null,null,null,null,null,null,null,null,null,null,null,null,null,null,null,null,null,null,null,null,null,null,{"$f":"SUBSTITUTE($AY519,\",\",\", \")","v":""},null,null,null,null,null,null,null,null,null,"{Roach_Infestation7(8)}",null,null,null,null,null,null,null,{"$f":"SUBSTITUTE(BF519,\",\",\", \")","v":""}]
[]
[]
[null,null,null,null,null,null,null,null,null,{"$f":"BJ522","v":""},null,null,null,{"$f":"AR522","v":""},null,null,null,null,null,null,null,null,null,null,null,null,null,null,null,null,null,null,null,null,null,null,null,null,null,null,null,null,null,{"$f":"SUBSTITUTE($AY522,\",\",\", \")","v":""},null,null,null,null,null,null,null,null,null,"{Roach_Infestation7(9)}",null,null,null,null,null,null,null,{"$f":"SUBSTITUTE(BF522,\",\",\", \")","v":""}]
[]
[]
[null,null,null,null,null,null,null,null,null,{"$f":"BJ525","v":""},null,null,null,{"$f":"AR525","v":""},null,null,null,null,null,null,null,null,null,null,null,null,null,null,null,null,null,null,null,null,null,null,null,null,null,null,null,null,null,{"$f":"SUBSTITUTE($AY525,\",\",\", \")","v":""},null,null,null,null,null,null,null,null,null,"{Roach_Infestation7(10)}",null,null,null,null,null,null,null,{"$f":"SUBSTITUTE(BF525,\",\",\", \")","v":""}]
[]
[]
[null,null,null,null,null,null,null,null,null,{"$f":"BJ528","v":""},null,null,null,{"$f":"AR528","v":""},null,null,null,null,null,null,null,null,null,null,null,null,null,null,null,null,null,null,null,null,null,null,null,null,null,null,null,null,null,{"$f":"SUBSTITUTE($AY528,\",\",\", \")","v":""},null,null,null,null,null,null,null,null,null,"{Roach_Infestation7(11)}",null,null,null,null,null,null,null,{"$f":"SUBSTITUTE(BF528,\",\",\", \")","v":""}]
[]
[]
[null,null,null,null,null,null,null,null,null,{"$f":"BJ531","v":""},null,null,null,{"$f":"AR531","v":""},null,null,null,null,null,null,null,null,null,null,null,null,null,null,null,null,null,null,null,null,null,null,null,null,null,null,null,null,null,{"$f":"SUBSTITUTE($AY531,\",\",\", \")","v":""},null,null,null,null,null,null,null,null,null,"{Roach_Infestation7(12)}",null,null,null,null,null,null,null,{"$f":"SUBSTITUTE(BF531,\",\",\", \")","v":""}]
[]
[]
[null,null,null,null,null,null,null,null,null,{"$f":"BJ534","v":""},null,null,null,{"$f":"AR534","v":""},null,null,null,null,null,null,null,null,null,null,null,null,null,null,null,null,null,null,null,null,null,null,null,null,null,null,null,null,null,{"$f":"SUBSTITUTE($AY534,\",\",\", \")","v":""},null,null,null,null,null,null,null,null,null,"{Roach_Infestation7(13)}",null,null,null,null,null,null,null,{"$f":"SUBSTITUTE(BF534,\",\",\", \")","v":""}]
[]
[]
[null,null,null,null,null,null,null,null,null,{"$f":"BJ537","v":""},null,null,null,{"$f":"AR537","v":""},null,null,null,null,null,null,null,null,null,null,null,null,null,null,null,null,null,null,null,null,null,null,null,null,null,null,null,null,null,{"$f":"SUBSTITUTE($AY537,\",\",\", \")","v":""},null,null,null,null,null,null,null,null,null,"{Roach_Infestation7(14)}",null,null,null,null,null,null,null,{"$f":"SUBSTITUTE(BF537,\",\",\", \")","v":""}]
[]
[]
["Date: ",null,null,"02/22/2016",null,null,null,null,null,null,null,null,null,null,null,null,null,null,null,null,null,null,null,null,null,null,null,null,null,null,null,null,null,null,null,null,null,null,null,null,null,null,null,null,null,null,null,null,null,null,null,null,null,null,null,null,null,{"$f":"SUBSTITUTE(J539,\",\",\", \")","v":""}]
["Complex Name:",null,null,null,null,"Green Street Apartments",null,null,null,null,null,null,null,null,null,null,"Conditions Conducive Legend",null,null,null,null,null,null,null,null,null,null,null,null,null,null,null,null,null,null,null,null,null,null,null,null,null,null,null,null,null,null,null,null,null,null,null,null,null,null,null,null,""]
[null,null,null,null,null,null,null,null,null,null,null,null,null,null,null,null,"DD - Dirty Dishes",null,null,null,"OF - Open Foods in Unit",null,null,null,null,null,null,"ER - Excess Rubbish in Unit",null,null,null,null,null,null,"RNC - Rubbish not in container",null,null,null,null,null,null,null,null,null,null,null,null,null,null,null,null,null,null,null,null,null,null,""]
["Technician(s):",null,null,null,null,"Richard Thomas",null,null,null,null,null,null,null,null,null,null,"DL - Dirty Laundry",null,null,null,"SA - Stored/stacked articles",null,null,null,null,null,null,"G/F-FW - Grease/Food on floors or walls",null,null,null,null,null,null,"G/F-STC - Grease/Food Debris on stove, table or countertops",null,null,null,null,null,null,null,null,null,null,null,null,null,null,null,null,null,null,null,null,null,null,""]
[null,null,null,null,null,null,null,null,null,null,null,null,null,null,null,null,null,null,null,null,null,null,null,null,null,null,null,null,null,null,null,null,null,null,null,null,null,null,null,null,null,null,null,null,null,null,null,null,null,null,null,null,null,null,null,null,null,""]
[{"$f":"COUNTA(B516:F1116)*3","v":12.0},null,null,null,null,null,null,null,null,null,null,null,null,null,null,null,null,null,null,null,null,null,null,null,null,null,null,null,null,null,null,null,null,null,null,null,null,null,null,null,null,null,null,null,null,null,null,null,null,null,null,null,null,null,null,null,null,""]
[null,"Unit #  . ",null,null,null,null,"Unit Access  .",null,null," Treatment Location",null,null,null,"       Treatment Type\nT=Treatment     C=Cleanout\nG=Glue Traps",null,null,null,null,{"$f":"BD546","v":""},"PCT Comments\nIncludes Conditions Conducive, NJ Decal & Pets",null,null,null,null,null,null,null,null,null,null,null,"Resident's Signature",null,null,null,null,null,null,null,null,null,null,null,null,null,null,null,null,null,null,null,null,null,null,null,{"$f":"IF(BE546<>\"NJ\",\"\",\"NJ Decal\")","v":""},"PA",""]
[null,null,null,null,null,null,null,null,null,{"$f":"BJ547","v":""},null,null,null,{"$f":"AR547","v":""},null,null,null,null,null,null,null,null,null,null,null,null,null,null,null,null,null,null,null,null,null,null,null,null,null,null,null,null,null,{"$f":"SUBSTITUTE($AY547,\",\",\", \")","v":""},null,null,null,null,null,null,null,null,null,"{Roach_Infestation7(15)}",null,null,null,null,null,null,null,{"$f":"SUBSTITUTE(BF547,\",\",\", \")","v":""}]
[]
[]
[null,null,null,null,null,null,null,null,null,{"$f":"BJ550","v":""},null,null,null,{"$f":"AR550","v":""},null,null,null,null,null,null,null,null,null,null,null,null,null,null,null,null,null,null,null,null,null,null,null,null,null,null,null,null,null,{"$f":"SUBSTITUTE($AY550,\",\",\", \")","v":""},null,null,null,null,null,null,null,null,null,"{Roach_Infestation7(16)}",null,null,null,null,null,null,null,{"$f":"SUBSTITUTE(BF550,\",\",\", \")","v":""}]
[]
[]
[null,null,null,null,null,null,null,null,null,{"$f":"BJ553","v":""},null,null,null,{"$f":"AR553","v":""},null,null,null,null,null,null,null,null,null,null,null,null,null,null,null,null,null,null,null,null,null,null,null,null,null,null,null,null,null,{"$f":"SUBSTITUTE($AY553,\",\",\", \")","v":""},null,null,null,null,null,null,null,null,null,"{Roach_Infestation7(17)}",null,null,null,null,null,null,null,{"$f":"SUBSTITUTE(BF553,\",\",\", \")","v":""}]
[]
[]
[null,null,null,null,null,null,null,null,null,{"$f":"BJ556","v":""},null,null,null,{"$f":"AR556","v":""},null,null,null,null,null,null,null,null,null,null,null,null,null,null,null,null,null,null,null,null,null,null,null,null,null,null,null,null,null,{"$f":"SUBSTITUTE($AY556,\",\",\", \")","v":""},null,null,null,null,null,null,null,null,null,"{Roach_Infestation7(18)}",null,null,null,null,null,null,null,{"$f":"SUBSTITUTE(BF556,\",\",\", \")","v":""}]
[]
[]
[null,null,null,null,null,null,null,null,null,{"$f":"BJ559","v":""},null,null,null,{"$f":"AR559","v":""},null,null,null,null,null,null,null,null,null,null,null,null,null,null,null,null,null,null,null,null,null,null,null,null,null,null,null,null,null,{"$f":"SUBSTITUTE($AY559,\",\",\", \")","v":""},null,null,null,null,null,null,null,null,null,"{Roach_Infestation7(19)}",null,null,null,null,null,null,null,{"$f":"SUBSTITUTE(BF559,\",\",\", \")","v":""}]
[]
[]
[null,null,null,null,null,null,null,null,null,{"$f":"BJ562","v":""},null,null,null,{"$f":"AR562","v":""},null,null,null,null,null,null,null,null,null,null,null,null,null,null,null,null,null,null,null,null,null,null,null,null,null,null,null,null,null,{"$f":"SUBSTITUTE($AY562,\",\",\", \")","v":""},null,null,null,null,null,null,null,null,null,"{Roach_Infestation7(20)}",null,null,null,null,null,null,null,{"$f":"SUBSTITUTE(BF562,\",\",\", \")","v":""}]

{"sheet":"Sanitation Report 2","index":2,"n_rows":485,"n_cols":54,"rows_kept":485,"cut":false,"hidden":true,"merged":[[484,19,486,30],[484,31,484,41],[484,43,486,47],[484,50,486,54],[485,32,485,40],[486,31,486,41],[481,31,481,41],[481,43,483,47],[481,50,483,54],[482,32,482,40],[483,31,483,41],[484,1,486,5],[484,6,486,8],[484,9,486,12],[484,13,486,17],[484,18,486,18],[481,1,483,5],[481,6,483,8],[481,9,483,12],[481,13,483,17],[481,18,483,18],[481,19,483,30],[476,32,476,40],[477,31,477,41],[478,1,480,5],[478,6,480,8],[478,9,480,12],[478,13,480,17],[478,18,480,18],[475,1,477,5],[475,6,477,8],[475,9,477,12],[475,13,477,17],[475,18,477,18],[475,19,477,30],[472,19,474,30],[472,31,472,41],[472,43,474,47],[472,50,474,54],[473,32,473,40],[474,31,474,41],[478,19,480,30],[478,31,478,41],[478,43,480,47],[478,50,480,54],[479,32,479,40],[480,31,480,41],[475,31,475,41],[475,43,477,47],[475,50,477,54],[469,31,469,41],[469,43,471,47],[469,50,471,54],[470,32,470,40],[471,31,471,41],[472,1,474,5],[472,6,474,8],[472,9,474,12],[472,13,474,17],[472,18,474,18],[469,1,471,5],[469,6,471,8],[469,9,471,12],[469,13,471,17],[469,18,471,18],[469,19,471,30],[466,19,468,30],[466,31,466,41],[466,43,468,47],[466,50,468,54],[467,32,467,40],[468,31,468,41],[463,31,463,41],[463,43,465,47],[463,50,465,54],[464,32,464,40],[465,31,465,41],[466,1,468,5],[466,6,468,8],[466,9,468,12],[466,13,468,17],[466,18,468,18],[463,1,465,5],[463,6,465,8],[463,9,465,12],[463,13,465,17],[463,18,465,18],[463,19,465,30],[460,19,462,30],[460,31,460,41],[460,43,462,47],[460,50,462,54],[461,32,461,40],[462,31,462,41],[457,31,457,41],[457,43,459,47],[457,50,459,54],[458,32,458,40],[459,31,459,41],[460,1,462,5],[460,6,462,8],[460,9,462,12],[460,13,462,17],[460,18,462,18],[457,1,459,5],[457,6,459,8],[457,9,459,12],[457,13,459,17],[457,18,459,18],[457,19,459,30],[454,19,456,30],[454,31,454,41],[454,43,456,47],[454,50,456,54],[455,32,455,40],[456,31,456,41],[451,31,451,41],[451,43,453,47],[451,50,453,54],[452,32,452,40],[453,31,453,41],[454,1,456,5],[454,6,456,8],[454,9,456,12],[454,13,456,17],[454,18,456,18],[451,1,453,5],[451,6,453,8],[451,9,453,12],[451,13,453,17],[451,18,453,18],[451,19,453,30],[448,19,450,30],[448,31,448,41],[448,43,450,47],[448,50,450,54],[449,32,449,40],[450,31,450,41],[445,31,445,41],[445,43,447,47],[445,50,447,54],[446,32,446,40],[447,31,447,41],[448,1,450,5],[448,6,450,8],[448,9,450,12],[448,13,450,17],[448,18,450,18],[445,1,447,5],[445,6,447,8],[445,9,447,12],[445,13,447,17],[445,18,447,18],[445,19,447,30],[442,19,444,30],[442,31,442,41],[442,43,444,47],[442,50,444,54],[443,32,443,40],[444,31,444,41],[439,31,439,41],[439,43,441,47],[439,50,441,54],[440,32,440,40],[441,31,441,41],[442,1,444,5],[442,6,444,8],[442,9,444,12],[442,13,444,17],[442,18,444,18],[439,1,441,5],[439,6,441,8],[439,9,441,12],[439,13,441,17],[439,18,441,18],[439,19,441,30],[436,19,438,30],[436,31,436,41],[436,43,438,47],[436,50,438,54],[437,32,437,40],[438,31,438,41],[433,31,433,41],[433,43,435,47],[433,50,435,54],[434,32,434,40],[435,31,435,41],[436,1,438,5],[436,6,438,8],[436,9,438,12],[436,13,438,17],[436,18,438,18],[433,1,435,5],[433,6,435,8],[433,9,435,12],[433,13,435,17],[433,18,435,18],[433,19,435,30],[430,19,432,30],[430,31,430,41],[430,43,432,47],[430,50,432,54],[431,32,431,40],[432,31,432,41],[427,31,427,41],[427,43,429,47],[427,50,429,54],[428,32,428,40],[429,31,429,41],[430,1,432,5],[430,6,432,8],[430,9,432,12],[430,13,432,17],[430,18,432,18],[427,1,429,5],[427,6,429,8],[427,9,429,12],[427,13,429,17],[427,18,429,18],[427,19,429,30],[424,19,426,30],[424,31,424,41],[424,43,426,47],[424,50,426,54],[425,32,425,40],[426,31,426,41],[421,31,421,41],[421,43,423,47],[421,50,423,54],[422,32,422,40],[423,31,423,41],[424,1,426,5],[424,6,426,8],[424,9,426,12],[424,13,426,17],[424,18,426,18],[421,1,423,5],[421,6,423,8],[421,9,423,12],[421,13,423,17],[421,18,423,18],[421,19,423,30],[418,19,420,30],[418,31,418,41],[418,43,420,47],[418,50,420,54],[419,32,419,40],[420,31,420,41],[415,31,415,41],[415,43,417,47],[415,50,417,54],[416,32,416,40],[417,31,417,41],[418,1,420,5],[418,6,420,8],[418,9,420,12],[418,13,420,17],[418,18,420,18],[415,1,417,5],[415,6,417,8],[415,9,417,12],[415,13,417,17],[415,18,417,18],[415,19,417,30],[412,19,414,30],[412,31,412,41],[412,43,414,47],[412,50,414,54],[413,32,413,40],[414,31,414,41],[409,31,409,41],[409,43,411,47],[409,50,411,54],[410,32,410,40],[411,31,411,41],[412,1,414,5],[412,6,414,8],[412,9,414,12],[412,13,414,17],[412,18,414,18],[409,1,411,5],[409,6,411,8],[409,9,411,12],[409,13,411,17],[409,18,411,18],[409,19,411,30],[406,19,408,30],[406,31,406,41],[406,43,408,47],[406,50,408,54],[407,32,407,40],[408,31,408,41],[403,31,403,41],[403,43,405,47],[403,50,405,54],[404,32,404,40],[405,31,405,41],[406,1,408,5],[406,6,408,8],[406,9,408,12],[406,13,408,17],[406,18,408,18],[403,1,405,5],[403,6,405,8],[403,9,405,12],[403,13,405,17],[403,18,405,18],[403,19,405,30],[400,19,402,30],[400,31,400,41],[400,43,402,47],[400,50,402,54],[401,32,401,40],[402,31,402,41],[397,31,397,41],[397,43,399,47],[397,50,399,54],[398,32,398,40],[399,31,399,41],[400,1,402,5],[400,6,402,8],[400,9,402,12],[400,13,402,17],[400,18,402,18],[397,1,399,5],[397,6,399,8],[397,9,399,12],[397,13,399,17],[397,18,399,18],[397,19,399,30],[394,19,396,30],[394,31,394,41],[394,43,396,47],[394,50,396,54],[395,32,395,40],[396,31,396,41],[391,31,391,41],[391,43,393,47],[391,50,393,54],[392,32,392,40],[393,31,393,41],[394,1,396,5],[394,6,396,8],[394,9,396,12],[394,13,396,17],[394,18,396,18],[391,1,393,5],[391,6,393,8],[391,9,393,12],[391,13,393,17],[391,18,393,18],[391,19,393,30],[388,19,390,30],[388,31,388,41],[388,43,390,47],[388,50,390,54],[389,32,389,40],[390,31,390,41],[385,31,385,41],[385,43,387,47],[385,50,387,54],[386,32,386,40],[387,31,387,41],[388,1,390,5],[388,6,390,8],[388,9,390,12],[388,13,390,17],[388,18,390,18],[385,1,387,5],[385,6,387,8],[385,9,387,12],[385,13,387,17],[385,18,387,18],[385,19,387,30],[382,19,384,30],[382,31,382,41],[382,43,384,47],[382,50,384,54],[383,32,383,40],[384,31,384,41],[379,31,379,41],[379,43,381,47],[379,50,381,54],[380,32,380,40],[381,31,381,41],[382,1,384,5],[382,6,384,8],[382,9,384,12],[382,13,384,17],[382,18,384,18],[379,1,381,5],[379,6,381,8],[379,9,381,12],[379,13,381,17],[379,18,381,18],[379,19,381,30],[376,19,378,30],[376,31,376,41],[376,43,378,47],[376,50,378,54],[377,32,377,40],[378,31,378,41],[373,31,373,41],[373,43,375,47],[373,50,375,54],[374,32,374,40],[375,31,375,41],[376,1,378,5],[376,6,378,8],[376,9,378,12],[376,13,378,17],[376,18,378,18],[373,1,375,5],[373,6,375,8],[373,9,375,12],[373,13,375,17],[373,18,375,18],[373,19,375,30],[370,19,372,30],[370,31,370,41],[370,43,372,47],[370,50,372,54],[371,32,371,40],[372,31,372,41],[367,31,367,41],[367,43,369,47],[367,50,369,54],[368,32,368,40],[369,31,369,41],[370,1,372,5],[370,6,372,8],[370,9,372,12],[370,13,372,17],[370,18,372,18],[367,1,369,5],[367,6,369,8],[367,9,369,12],[367,13,369,17],[367,18,369,18],[367,19,369,30],[364,19,366,30],[364,31,364,41],[364,43,366,47],[364,50,366,54],[365,32,365,40],[366,31,366,41],[361,31,361,41],[361,43,363,47],[361,50,363,54],[362,32,362,40],[363,31,363,41],[364,1,366,5],[364,6,366,8],[364,9,366,12],[364,13,366,17],[364,18,366,18],[361,1,363,5],[361,6,363,8],[361,9,363,12],[361,13,363,17],[361,18,363,18],[361,19,363,30],[358,19,360,30],[358,31,358,41],[358,43,360,47],[358,50,360,54],[359,32,359,40],[360,31,360,41],[355,31,355,41],[355,43,357,47],[355,50,357,54],[356,32,356,40],[357,31,357,41],[358,1,360,5],[358,6,360,8],[358,9,360,12],[358,13,360,17],[358,18,360,18],[355,1,357,5],[355,6,357,8],[355,9,357,12],[355,13,357,17],[355,18,357,18],[355,19,357,30],[352,19,354,30],[352,31,352,41],[352,43,354,47],[352,50,354,54],[353,32,353,40],[354,31,354,41],[349,31,349,41],[349,43,351,47],[349,50,351,54],[350,32,350,40],[351,31,351,41],[352,1,354,5],[352,6,354,8],[352,9,354,12],[352,13,354,17],[352,18,354,18],[349,1,351,5],[349,6,351,8],[349,9,351,12],[349,13,351,17],[349,18,351,18],[349,19,351,30],[346,19,348,30],[346,31,346,41],[346,43,348,47],[346,50,348,54],[347,32,347,40],[348,31,348,41],[343,31,343,41],[343,43,345,47],[343,50,345,54],[344,32,344,40],[345,31,345,41],[346,1,348,5],[346,6,348,8],[346,9,348,12],[346,13,348,17],[346,18,348,18],[343,1,345,5],[343,6,345,8],[343,9,345,12],[343,13,345,17],[343,18,345,18],[343,19,345,30],[340,19,342,30],[340,31,340,41],[340,43,342,47],[340,50,342,54],[341,32,341,40],[342,31,342,41],[337,31,337,41],[337,43,339,47],[337,50,339,54],[338,32,338,40],[339,31,339,41],[340,1,342,5],[340,6,342,8],[340,9,342,12],[340,13,342,17],[340,18,342,18],[337,1,339,5],[337,6,339,8],[337,9,339,12],[337,13,339,17],[337,18,339,18],[337,19,339,30],[334,19,336,30],[334,31,334,41],[334,43,336,47],[334,50,336,54],[335,32,335,40],[336,31,336,41],[331,31,331,41],[331,43,333,47],[331,50,333,54],[332,32,332,40],[333,31,333,41],[334,1,336,5],[334,6,336,8],[334,9,336,12],[334,13,336,17],[334,18,336,18],[331,1,333,5],[331,6,333,8],[331,9,333,12],[331,13,333,17],[331,18,333,18],[331,19,333,30],[328,19,330,30],[328,31,328,41],[328,43,330,47],[328,50,330,54],[329,32,329,40],[330,31,330,41],[325,31,325,41],[325,43,327,47],[325,50,327,54],[326,32,326,40],[327,31,327,41],[328,1,330,5],[328,6,330,8],[328,9,330,12],[328,13,330,17],[328,18,330,18],[325,1,327,5],[325,6,327,8],[325,9,327,12],[325,13,327,17],[325,18,327,18],[325,19,327,30],[322,19,324,30],[322,31,322,41],[322,43,324,47],[322,50,324,54],[323,32,323,40],[324,31,324,41],[319,31,319,41],[319,43,321,47],[319,50,321,54],[320,32,320,40],[321,31,321,41],[322,1,324,5],[322,6,324,8],[322,9,324,12],[322,13,324,17],[322,18,324,18],[319,1,321,5],[319,6,321,8],[319,9,321,12],[319,13,321,17],[319,18,321,18],[319,19,321,30],[316,19,318,30],[316,31,316,41],[316,43,318,47],[316,50,318,54],[317,32,317,40],[318,31,318,41],[313,31,313,41],[313,43,315,47],[313,50,315,54],[314,32,314,40],[315,31,315,41],[316,1,318,5],[316,6,318,8],[316,9,318,12],[316,13,318,17],[316,18,318,18],[313,1,315,5],[313,6,315,8],[313,9,315,12],[313,13,315,17],[313,18,315,18],[313,19,315,30],[310,19,312,30],[310,31,310,41],[310,43,312,47],[310,50,312,54],[311,32,311,40],[312,31,312,41],[307,31,307,41],[307,43,309,47],[307,50,309,54],[308,32,308,40],[309,31,309,41],[310,1,312,5],[310,6,312,8],[310,9,312,12],[310,13,312,17],[310,18,312,18],[307,1,309,5],[307,6,309,8],[307,9,309,12],[307,13,309,17],[307,18,309,18],[307,19,309,30],[304,19,306,30],[304,31,304,41],[304,43,306,47],[304,50,306,54],[305,32,305,40],[306,31,306,41],[301,31,301,41],[301,43,303,47],[301,50,303,54],[302,32,302,40],[303,31,303,41],[304,1,306,5],[304,6,306,8],[304,9,306,12],[304,13,306,17],[304,18,306,18],[301,1,303,5],[301,6,303,8],[301,9,303,12],[301,13,303,17],[301,18,303,18],[301,19,303,30],[298,19,300,30],[298,31,298,41],[298,43,300,47],[298,50,300,54],[299,32,299,40],[300,31,300,41],[295,31,295,41],[295,43,297,47],[295,50,297,54],[296,32,296,40],[297,31,297,41],[298,1,300,5],[298,6,300,8],[298,9,300,12],[298,13,300,17],[298,18,300,18],[295,1,297,5],[295,6,297,8],[295,9,297,12],[295,13,297,17],[295,18,297,18],[295,19,297,30],[292,19,294,30],[292,31,292,41],[292,43,294,47],[292,50,294,54],[293,32,293,40],[294,31,294,41],[289,31,289,41],[289,43,291,47],[289,50,291,54],[290,32,290,40],[291,31,291,41],[292,1,294,5],[292,6,294,8],[292,9,294,12],[292,13,294,17],[292,18,294,18],[289,1,291,5],[289,6,291,8],[289,9,291,12],[289,13,291,17],[289,18,291,18],[289,19,291,30],[286,19,288,30],[286,31,286,41],[286,43,288,47],[286,50,288,54],[287,32,287,40],[288,31,288,41],[283,31,283,41],[283,43,285,47],[283,50,285,54],[284,32,284,40],[285,31,285,41],[286,1,288,5],[286,6,288,8],[286,9,288,12],[286,13,288,17],[286,18,288,18],[283,1,285,5],[283,6,285,8],[283,9,285,12],[283,13,285,17],[283,18,285,18],[283,19,285,30],[280,19,282,30],[280,31,280,41],[280,43,282,47],[280,50,282,54],[281,32,281,40],[282,31,282,41],[277,31,277,41],[277,43,279,47],[277,50,279,54],[278,32,278,40],[279,31,279,41],[280,1,282,5],[280,6,282,8],[280,9,282,12],[280,13,282,17],[280,18,282,18],[277,1,279,5],[277,6,279,8],[277,9,279,12],[277,13,279,17],[277,18,279,18],[277,19,279,30],[274,19,276,30],[274,31,274,41],[274,43,276,47],[274,50,276,54],[275,32,275,40],[276,31,276,41],[271,31,271,41],[271,43,273,47],[271,50,273,54],[272,32,272,40],[273,31,273,41],[274,1,276,5],[274,6,276,8],[274,9,276,12],[274,13,276,17],[274,18,276,18],[271,1,273,5],[271,6,273,8],[271,9,273,12],[271,13,273,17],[271,18,273,18],[271,19,273,30],[268,19,270,30],[268,31,268,41],[268,43,270,47],[268,50,270,54],[269,32,269,40],[270,31,270,41],[265,31,265,41],[265,43,267,47],[265,50,267,54],[266,32,266,40],[267,31,267,41],[268,1,270,5],[268,6,270,8],[268,9,270,12],[268,13,270,17],[268,18,270,18],[265,1,267,5],[265,6,267,8],[265,9,267,12],[265,13,267,17],[265,18,267,18],[265,19,267,30],[262,19,264,30],[262,31,262,41],[262,43,264,47],[262,50,264,54],[263,32,263,40],[264,31,264,41],[259,31,259,41],[259,43,261,47],[259,50,261,54],[260,32,260,40],[261,31,261,41],[262,1,264,5],[262,6,264,8],[262,9,264,12],[262,13,264,17],[262,18,264,18],[259,1,261,5],[259,6,261,8],[259,9,261,12],[259,13,261,17],[259,18,261,18],[259,19,261,30],[256,19,258,30],[256,31,256,41],[256,43,258,47],[256,50,258,54],[257,32,257,40],[258,31,258,41],[253,31,253,41],[253,43,255,47],[253,50,255,54],[254,32,254,40],[255,31,255,41],[256,1,258,5],[256,6,258,8],[256,9,258,12],[256,13,258,17],[256,18,258,18],[253,1,255,5],[253,6,255,8],[253,9,255,12],[253,13,255,17],[253,18,255,18],[253,19,255,30],[250,19,252,30],[250,31,250,41],[250,43,252,47],[250,50,252,54],[251,32,251,40],[252,31,252,41],[247,31,247,41],[247,43,249,47],[247,50,249,54],[248,32,248,40],[249,31,249,41],[250,1,252,5],[250,6,252,8],[250,9,252,12],[250,13,252,17],[250,18,252,18],[247,1,249,5],[247,6,249,8],[247,9,249,12],[247,13,249,17],[247,18,249,18],[247,19,249,30],[244,19,246,30],[244,31,244,41],[244,43,246,47],[244,50,246,54],[245,32,245,40],[246,31,246,41],[241,31,241,41],[241,43,243,47],[241,50,243,54],[242,32,242,40],[243,31,243,41],[244,1,246,5],[244,6,246,8],[244,9,246,12],[244,13,246,17],[244,18,246,18],[241,1,243,5],[241,6,243,8],[241,9,243,12],[241,13,243,17],[241,18,243,18],[241,19,243,30],[238,19,240,30],[238,31,238,41],[238,43,240,47],[238,50,240,54],[239,32,239,40],[240,31,240,41],[235,31,235,41],[235,43,237,47],[235,50,237,54],[236,32,236,40],[237,31,237,41],[238,1,240,5],[238,6,240,8],[238,9,240,12],[238,13,240,17],[238,18,240,18],[235,1,237,5],[235,6,237,8],[235,9,237,12],[235,13,237,17],[235,18,237,18],[235,19,237,30],[232,19,234,30],[232,31,232,41],[232,43,234,47],[232,50,234,54],[233,32,233,40],[234,31,234,41],[229,31,229,41],[229,43,231,47],[229,50,231,54],[230,32,230,40],[231,31,231,41],[232,1,234,5],[232,6,234,8],[232,9,234,12],[232,13,234,17],[232,18,234,18],[229,1,231,5],[229,6,231,8],[229,9,231,12],[229,13,231,17],[229,18,231,18],[229,19,231,30],[226,19,228,30],[226,31,226,41],[226,43,228,47],[226,50,228,54],[227,32,227,40],[228,31,228,41],[223,31,223,41],[223,43,225,47],[223,50,225,54],[224,32,224,40],[225,31,225,41],[226,1,228,5],[226,6,228,8],[226,9,228,12],[226,13,228,17],[226,18,228,18],[223,1,225,5],[223,6,225,8],[223,9,225,12],[223,13,225,17],[223,18,225,18],[223,19,225,30],[220,19,222,30],[220,31,220,41],[220,43,222,47],[220,50,222,54],[221,32,221,40],[222,31,222,41],[217,31,217,41],[217,43,219,47],[217,50,219,54],[218,32,218,40],[219,31,219,41],[220,1,222,5],[220,6,222,8],[220,9,222,12],[220,13,222,17],[220,18,222,18],[217,1,219,5],[217,6,219,8],[217,9,219,12],[217,13,219,17],[217,18,219,18],[217,19,219,30],[214,19,216,30],[214,31,214,41],[214,43,216,47],[214,50,216,54],[215,32,215,40],[216,31,216,41],[211,31,211,41],[211,43,213,47],[211,50,213,54],[212,32,212,40]],"merged_total":1779,"flags":["merged_cut"]}
[null,"No"]
[null,"Date: ",null,null,null,null,null,null,null,null,null,null,null,null,null,null,null,null,null,null,null,null,null,null,null,null,"Conditions Conducive Legend"]
[null,null,null,null,null,null,null,null,null,null,null,null,null,null,null,null,null,null,null,null,null,null,null,null,null,null,"C - Clutter",null,null,null,null,null,null,"DL - Dirty Laundry"]
[null,"Complex Name:",null,null,null,null,null,null,null,null,null,null,null,null,null,null,null,null,null,null,null,null,null,null,null,null,"DD - Dirty Dishes",null,null,null,null,null,null,"OF - Open Foods in Unit"]
[null,"Technician(s):",null,null,null,null,null,null,null,null,null,null,null,null,null,null,null,null,null,null,null,null,null,null,null,null,"GFSTC - Grease/Food Debris on stove/table/countertops",null,null,null,null,null,null,"RNC - Rubbish not in container"]
[]
[null,"Unit #  . ",null,null,null,null,"Unit Access  .",null,null," Treatment Location",null,null,null,"       Treatment Type\nT=Treatment     C=Cleanout\nG=Glue Traps",null,null,null,null,"NJ Decal","PCT Comments\nIncludes Conditions Conducive, NJ Decal & Pets",null,null,null,null,null,null,null,null,null,null,null,"Resident's Signature"]
[null,null,null,null,null,null,null,null,null,null,null,null,null,{"$f":"AR8","v":""},null,null,null,null,null,null,null,null,null,null,null,null,null,null,null,null,null,null,null,null,null,null,null,null,null,null,null,null,null,{"$f":"SUBSTITUTE($AY8,\",\",\", \")","v":""}]
[]
[]
[null,null,null,null,null,null,null,null,null,null,null,null,null,{"$f":"AR11","v":""},null,null,null,null,null,null,null,null,null,null,null,null,null,null,null,null,null,null,null,null,null,null,null,null,null,null,null,null,null,{"$f":"SUBSTITUTE($AY11,\",\",\", \")","v":""}]
[]
[]
[null,null,null,null,null,null,null,null,null,null,null,null,null,{"$f":"AR14","v":""},null,null,null,null,null,null,null,null,null,null,null,null,null,null,null,null,null,null,null,null,null,null,null,null,null,null,null,null,null,{"$f":"SUBSTITUTE($AY14,\",\",\", \")","v":""}]
[]
[]
[null,"{<script> if (value == \") {hideRow(\"17:19\");\"}</script>\"project\"=\"Cranford Forms\",\"form\"=\"NJ1 - Sanitation Rpt\",\"common-field\"=\"Customer_Name\",\"field\"=\"Unit1(4)\"}",null,null,null,null,null,null,null,null,null,null,null,{"$f":"AR17","v":""},null,null,null,null,null,null,null,null,null,null,null,null,null,null,null,null,null,null,null,null,null,null,null,null,null,null,null,null,null,{"$f":"SUBSTITUTE($AY17,\",\",\", \")","v":""}]
[]
[]
[null,"{<script> if (value == \") {hideRow(\"20:22\");\"}</script>\"project\"=\"Cranford Forms\",\"form\"=\"NJ1 - Sanitation Rpt\",\"common-field\"=\"Customer_Name\",\"field\"=\"Unit1(5)\"}",null,null,null,null,null,null,null,null,null,null,null,{"$f":"AR20","v":""},null,null,null,null,null,null,null,null,null,null,null,null,null,null,null,null,null,null,null,null,null,null,null,null,null,null,null,null,null,{"$f":"SUBSTITUTE($AY20,\",\",\", \")","v":""}]
[]
[]
[null,null,null,null,null,null,null,null,null,null,null,null,null,{"$f":"AR23","v":""},null,null,null,null,null,null,null,null,null,null,null,null,null,null,null,null,null,null,null,null,null,null,null,null,null,null,null,null,null,{"$f":"SUBSTITUTE($AY23,\",\",\", \")","v":""}]
[]
[]
[null,null,null,null,null,null,null,null,null,null,null,null,null,{"$f":"AR26","v":""},null,null,null,null,null,null,null,null,null,null,null,null,null,null,null,null,null,null,null,null,null,null,null,null,null,null,null,null,null,{"$f":"SUBSTITUTE($AY26,\",\",\", \")","v":""}]
[]
[]
[null,null,null,null,null,null,null,null,null,null,null,null,null,{"$f":"AR29","v":""},null,null,null,null,null,null,null,null,null,null,null,null,null,null,null,null,null,null,null,null,null,null,null,null,null,null,null,null,null,{"$f":"SUBSTITUTE($AY29,\",\",\", \")","v":""}]
[]
[]
[null,null,null,null,null,null,null,null,null,null,null,null,null,{"$f":"AR32","v":""},null,null,null,null,null,null,null,null,null,null,null,null,null,null,null,null,null,null,null,null,null,null,null,null,null,null,null,null,null,{"$f":"SUBSTITUTE($AY32,\",\",\", \")","v":""}]
[]
[]
[null,null,null,null,null,null,null,null,null,null,null,null,null,{"$f":"AR35","v":""},null,null,null,null,null,null,null,null,null,null,null,null,null,null,null,null,null,null,null,null,null,null,null,null,null,null,null,null,null,{"$f":"SUBSTITUTE($AY35,\",\",\", \")","v":""}]
[]
[]
[null,null,null,null,null,null,null,null,null,null,null,null,null,{"$f":"AR38","v":""},null,null,null,null,null,null,null,null,null,null,null,null,null,null,null,null,null,null,null,null,null,null,null,null,null,null,null,null,null,{"$f":"SUBSTITUTE($AY38,\",\",\", \")","v":""}]
[]
[]
[null,null,null,null,null,null,null,null,null,null,null,null,null,{"$f":"AR41","v":""},null,null,null,null,null,null,null,null,null,null,null,null,null,null,null,null,null,null,null,null,null,null,null,null,null,null,null,null,null,{"$f":"SUBSTITUTE($AY41,\",\",\", \")","v":""}]
[]
[]
[null,null,null,null,null,null,null,null,null,null,null,null,null,{"$f":"AR44","v":""},null,null,null,null,null,null,null,null,null,null,null,null,null,null,null,null,null,null,null,null,null,null,null,null,null,null,null,null,null,{"$f":"SUBSTITUTE($AY44,\",\",\", \")","v":""}]
[]
[]
[null,null,null,null,null,null,null,null,null,null,null,null,null,{"$f":"AR47","v":""},null,null,null,null,null,null,null,null,null,null,null,null,null,null,null,null,null,null,null,null,null,null,null,null,null,null,null,null,null,{"$f":"SUBSTITUTE($AY47,\",\",\", \")","v":""}]
[]
[]
[null,null,null,null,null,null,null,null,null,null,null,null,null,{"$f":"AR50","v":""},null,null,null,null,null,null,null,null,null,null,null,null,null,null,null,null,null,null,null,null,null,null,null,null,null,null,null,null,null,{"$f":"SUBSTITUTE($AY50,\",\",\", \")","v":""}]
[]
[]
[null,null,null,null,null,null,null,null,null,null,null,null,null,{"$f":"AR53","v":""},null,null,null,null,null,null,null,null,null,null,null,null,null,null,null,null,null,null,null,null,null,null,null,null,null,null,null,null,null,{"$f":"SUBSTITUTE($AY53,\",\",\", \")","v":""}]
[]
[]
[null,null,null,null,null,null,null,null,null,null,null,null,null,{"$f":"AR56","v":""},null,null,null,null,null,null,null,null,null,null,null,null,null,null,null,null,null,null,null,null,null,null,null,null,null,null,null,null,null,{"$f":"SUBSTITUTE($AY56,\",\",\", \")","v":""}]
[]
[]
[null,null,null,null,null,null,null,null,null,null,null,null,null,{"$f":"AR59","v":""},null,null,null,null,null,null,null,null,null,null,null,null,null,null,null,null,null,null,null,null,null,null,null,null,null,null,null,null,null,{"$f":"SUBSTITUTE($AY59,\",\",\", \")","v":""}]
[]
[]
[null,null,null,null,null,null,null,null,null,null,null,null,null,{"$f":"AR62","v":""},null,null,null,null,null,null,null,null,null,null,null,null,null,null,null,null,null,null,null,null,null,null,null,null,null,null,null,null,null,{"$f":"SUBSTITUTE($AY62,\",\",\", \")","v":""}]
[]
[]
[null,null,null,null,null,null,null,null,null,null,null,null,null,{"$f":"AR65","v":""},null,null,null,null,null,null,null,null,null,null,null,null,null,null,null,null,null,null,null,null,null,null,null,null,null,null,null,null,null,{"$f":"SUBSTITUTE($AY65,\",\",\", \")","v":""}]
[]
[]
[null,null,null,null,null,null,null,null,null,null,null,null,null,{"$f":"AR68","v":""},null,null,null,null,null,null,null,null,null,null,null,null,null,null,null,null,null,null,null,null,null,null,null,null,null,null,null,null,null,{"$f":"SUBSTITUTE($AY68,\",\",\", \")","v":""}]
[]
[]
[null,null,null,null,null,null,null,null,null,null,null,null,null,{"$f":"AR71","v":""},null,null,null,null,null,null,null,null,null,null,null,null,null,null,null,null,null,null,null,null,null,null,null,null,null,null,null,null,null,{"$f":"SUBSTITUTE($AY71,\",\",\", \")","v":""}]
[]
[]
[null,null,null,null,null,null,null,null,null,null,null,null,null,{"$f":"AR74","v":""},null,null,null,null,null,null,null,null,null,null,null,null,null,null,null,null,null,null,null,null,null,null,null,null,null,null,null,null,null,{"$f":"SUBSTITUTE($AY74,\",\",\", \")","v":""}]
[]
[]
[null,null,null,null,null,null,null,null,null,null,null,null,null,{"$f":"AR77","v":""},null,null,null,null,null,null,null,null,null,null,null,null,null,null,null,null,null,null,null,null,null,null,null,null,null,null,null,null,null,{"$f":"SUBSTITUTE($AY77,\",\",\", \")","v":""}]
[]
[]
[null,null,null,null,null,null,null,null,null,null,null,null,null,{"$f":"AR80","v":""},null,null,null,null,null,null,null,null,null,null,null,null,null,null,null,null,null,null,null,null,null,null,null,null,null,null,null,null,null,{"$f":"SUBSTITUTE($AY80,\",\",\", \")","v":""}]
[]
[]
[null,null,null,null,null,null,null,null,null,null,null,null,null,{"$f":"AR83","v":""},null,null,null,null,null,null,null,null,null,null,null,null,null,null,null,null,null,null,null,null,null,null,null,null,null,null,null,null,null,{"$f":"SUBSTITUTE($AY83,\",\",\", \")","v":""}]
[]
[]
[null,null,null,null,null,null,null,null,null,null,null,null,null,{"$f":"AR86","v":""},null,null,null,null,null,null,null,null,null,null,null,null,null,null,null,null,null,null,null,null,null,null,null,null,null,null,null,null,null,{"$f":"SUBSTITUTE($AY86,\",\",\", \")","v":""}]
[]
[]
[null,null,null,null,null,null,null,null,null,null,null,null,null,{"$f":"AR89","v":""},null,null,null,null,null,null,null,null,null,null,null,null,null,null,null,null,null,null,null,null,null,null,null,null,null,null,null,null,null,{"$f":"SUBSTITUTE($AY89,\",\",\", \")","v":""}]
[]
[]
[null,null,null,null,null,null,null,null,null,null,null,null,null,{"$f":"AR92","v":""},null,null,null,null,null,null,null,null,null,null,null,null,null,null,null,null,null,null,null,null,null,null,null,null,null,null,null,null,null,{"$f":"SUBSTITUTE($AY92,\",\",\", \")","v":""}]
[]
[]
[null,null,null,null,null,null,null,null,null,null,null,null,null,{"$f":"AR95","v":""},null,null,null,null,null,null,null,null,null,null,null,null,null,null,null,null,null,null,null,null,null,null,null,null,null,null,null,null,null,{"$f":"SUBSTITUTE($AY95,\",\",\", \")","v":""}]
[]
[]
[null,null,null,null,null,null,null,null,null,null,null,null,null,{"$f":"AR98","v":""},null,null,null,null,null,null,null,null,null,null,null,null,null,null,null,null,null,null,null,null,null,null,null,null,null,null,null,null,null,{"$f":"SUBSTITUTE($AY98,\",\",\", \")","v":""}]
[]
[]
[null,null,null,null,null,null,null,null,null,null,null,null,null,{"$f":"AR101","v":""},null,null,null,null,null,null,null,null,null,null,null,null,null,null,null,null,null,null,null,null,null,null,null,null,null,null,null,null,null,{"$f":"SUBSTITUTE($AY101,\",\",\", \")","v":""}]
[]
[]
[null,null,null,null,null,null,null,null,null,null,null,null,null,{"$f":"AR104","v":""},null,null,null,null,null,null,null,null,null,null,null,null,null,null,null,null,null,null,null,null,null,null,null,null,null,null,null,null,null,{"$f":"SUBSTITUTE($AY104,\",\",\", \")","v":""}]
[]
[]
[null,null,null,null,null,null,null,null,null,null,null,null,null,{"$f":"AR107","v":""},null,null,null,null,null,null,null,null,null,null,null,null,null,null,null,null,null,null,null,null,null,null,null,null,null,null,null,null,null,{"$f":"SUBSTITUTE($AY107,\",\",\", \")","v":""}]
[]
[]
[null,null,null,null,null,null,null,null,null,null,null,null,null,{"$f":"AR110","v":""},null,null,null,null,null,null,null,null,null,null,null,null,null,null,null,null,null,null,null,null,null,null,null,null,null,null,null,null,null,{"$f":"SUBSTITUTE($AY110,\",\",\", \")","v":""}]
[]
[]
[null,null,null,null,null,null,null,null,null,null,null,null,null,{"$f":"AR113","v":""},null,null,null,null,null,null,null,null,null,null,null,null,null,null,null,null,null,null,null,null,null,null,null,null,null,null,null,null,null,{"$f":"SUBSTITUTE($AY113,\",\",\", \")","v":""}]
[]
[]
[null,null,null,null,null,null,null,null,null,null,null,null,null,{"$f":"AR116","v":""},null,null,null,null,null,null,null,null,null,null,null,null,null,null,null,null,null,null,null,null,null,null,null,null,null,null,null,null,null,{"$f":"SUBSTITUTE($AY116,\",\",\", \")","v":""}]
[]
[]
[null,null,null,null,null,null,null,null,null,null,null,null,null,{"$f":"AR119","v":""},null,null,null,null,null,null,null,null,null,null,null,null,null,null,null,null,null,null,null,null,null,null,null,null,null,null,null,null,null,{"$f":"SUBSTITUTE($AY119,\",\",\", \")","v":""}]
[]
[]
[null,null,null,null,null,null,null,null,null,null,null,null,null,{"$f":"AR122","v":""},null,null,null,null,null,null,null,null,null,null,null,null,null,null,null,null,null,null,null,null,null,null,null,null,null,null,null,null,null,{"$f":"SUBSTITUTE($AY122,\",\",\", \")","v":""}]
[]
[]
[null,null,null,null,null,null,null,null,null,null,null,null,null,{"$f":"AR125","v":""},null,null,null,null,null,null,null,null,null,null,null,null,null,null,null,null,null,null,null,null,null,null,null,null,null,null,null,null,null,{"$f":"SUBSTITUTE($AY125,\",\",\", \")","v":""}]
[]
[]
[null,null,null,null,null,null,null,null,null,null,null,null,null,{"$f":"AR128","v":""},null,null,null,null,null,null,null,null,null,null,null,null,null,null,null,null,null,null,null,null,null,null,null,null,null,null,null,null,null,{"$f":"SUBSTITUTE($AY128,\",\",\", \")","v":""}]
[]
[]
[null,null,null,null,null,null,null,null,null,null,null,null,null,{"$f":"AR131","v":""},null,null,null,null,null,null,null,null,null,null,null,null,null,null,null,null,null,null,null,null,null,null,null,null,null,null,null,null,null,{"$f":"SUBSTITUTE($AY131,\",\",\", \")","v":""}]
[]
[]
[null,null,null,null,null,null,null,null,null,null,null,null,null,{"$f":"AR134","v":""},null,null,null,null,null,null,null,null,null,null,null,null,null,null,null,null,null,null,null,null,null,null,null,null,null,null,null,null,null,{"$f":"SUBSTITUTE($AY134,\",\",\", \")","v":""}]
[]
[]
[null,null,null,null,null,null,null,null,null,null,null,null,null,{"$f":"AR137","v":""},null,null,null,null,null,null,null,null,null,null,null,null,null,null,null,null,null,null,null,null,null,null,null,null,null,null,null,null,null,{"$f":"SUBSTITUTE($AY137,\",\",\", \")","v":""}]
[]
[]
[null,null,null,null,null,null,null,null,null,null,null,null,null,{"$f":"AR140","v":""},null,null,null,null,null,null,null,null,null,null,null,null,null,null,null,null,null,null,null,null,null,null,null,null,null,null,null,null,null,{"$f":"SUBSTITUTE($AY140,\",\",\", \")","v":""}]
[]
[]
[null,null,null,null,null,null,null,null,null,null,null,null,null,{"$f":"AR143","v":""},null,null,null,null,null,null,null,null,null,null,null,null,null,null,null,null,null,null,null,null,null,null,null,null,null,null,null,null,null,{"$f":"SUBSTITUTE($AY143,\",\",\", \")","v":""}]
[]
[]
[null,null,null,null,null,null,null,null,null,null,null,null,null,{"$f":"AR146","v":""},null,null,null,null,null,null,null,null,null,null,null,null,null,null,null,null,null,null,null,null,null,null,null,null,null,null,null,null,null,{"$f":"SUBSTITUTE($AY146,\",\",\", \")","v":""}]
[]
[]
[null,null,null,null,null,null,null,null,null,null,null,null,null,{"$f":"AR149","v":""},null,null,null,null,null,null,null,null,null,null,null,null,null,null,null,null,null,null,null,null,null,null,null,null,null,null,null,null,null,{"$f":"SUBSTITUTE($AY149,\",\",\", \")","v":""}]
[]
[]
[null,null,null,null,null,null,null,null,null,null,null,null,null,{"$f":"AR152","v":""},null,null,null,null,null,null,null,null,null,null,null,null,null,null,null,null,null,null,null,null,null,null,null,null,null,null,null,null,null,{"$f":"SUBSTITUTE($AY152,\",\",\", \")","v":""}]
[]
[]
[null,null,null,null,null,null,null,null,null,null,null,null,null,{"$f":"AR155","v":""},null,null,null,null,null,null,null,null,null,null,null,null,null,null,null,null,null,null,null,null,null,null,null,null,null,null,null,null,null,{"$f":"SUBSTITUTE($AY155,\",\",\", \")","v":""}]
[]
[]
[null,null,null,null,null,null,null,null,null,null,null,null,null,{"$f":"AR158","v":""},null,null,null,null,null,null,null,null,null,null,null,null,null,null,null,null,null,null,null,null,null,null,null,null,null,null,null,null,null,{"$f":"SUBSTITUTE($AY158,\",\",\", \")","v":""}]
[]
[]
[null,null,null,null,null,null,null,null,null,null,null,null,null,{"$f":"AR161","v":""},null,null,null,null,null,null,null,null,null,null,null,null,null,null,null,null,null,null,null,null,null,null,null,null,null,null,null,null,null,{"$f":"SUBSTITUTE($AY161,\",\",\", \")","v":""}]
[]
[]
[null,null,null,null,null,null,null,null,null,null,null,null,null,{"$f":"AR164","v":""},null,null,null,null,null,null,null,null,null,null,null,null,null,null,null,null,null,null,null,null,null,null,null,null,null,null,null,null,null,{"$f":"SUBSTITUTE($AY164,\",\",\", \")","v":""}]
[]
[]
[null,null,null,null,null,null,null,null,null,null,null,null,null,{"$f":"AR167","v":""},null,null,null,null,null,null,null,null,null,null,null,null,null,null,null,null,null,null,null,null,null,null,null,null,null,null,null,null,null,{"$f":"SUBSTITUTE($AY167,\",\",\", \")","v":""}]
[]
[]
[null,null,null,null,null,null,null,null,null,null,null,null,null,{"$f":"AR170","v":""},null,null,null,null,null,null,null,null,null,null,null,null,null,null,null,null,null,null,null,null,null,null,null,null,null,null,null,null,null,{"$f":"SUBSTITUTE($AY170,\",\",\", \")","v":""}]
[]
[]
[null,null,null,null,null,null,null,null,null,null,null,null,null,{"$f":"AR173","v":""},null,null,null,null,null,null,null,null,null,null,null,null,null,null,null,null,null,null,null,null,null,null,null,null,null,null,null,null,null,{"$f":"SUBSTITUTE($AY173,\",\",\", \")","v":""}]
[]
[]
[null,null,null,null,null,null,null,null,null,null,null,null,null,{"$f":"AR176","v":""},null,null,null,null,null,null,null,null,null,null,null,null,null,null,null,null,null,null,null,null,null,null,null,null,null,null,null,null,null,{"$f":"SUBSTITUTE($AY176,\",\",\", \")","v":""}]
[]
[]
[null,null,null,null,null,null,null,null,null,null,null,null,null,{"$f":"AR179","v":""},null,null,null,null,null,null,null,null,null,null,null,null,null,null,null,null,null,null,null,null,null,null,null,null,null,null,null,null,null,{"$f":"SUBSTITUTE($AY179,\",\",\", \")","v":""}]
[]
[]
[null,null,null,null,null,null,null,null,null,null,null,null,null,{"$f":"AR182","v":""},null,null,null,null,null,null,null,null,null,null,null,null,null,null,null,null,null,null,null,null,null,null,null,null,null,null,null,null,null,{"$f":"SUBSTITUTE($AY182,\",\",\", \")","v":""}]
[]
[]
[null,null,null,null,null,null,null,null,null,null,null,null,null,{"$f":"AR185","v":""},null,null,null,null,null,null,null,null,null,null,null,null,null,null,null,null,null,null,null,null,null,null,null,null,null,null,null,null,null,{"$f":"SUBSTITUTE($AY185,\",\",\", \")","v":""}]
[]
[]
[null,null,null,null,null,null,null,null,null,null,null,null,null,{"$f":"AR188","v":""},null,null,null,null,null,null,null,null,null,null,null,null,null,null,null,null,null,null,null,null,null,null,null,null,null,null,null,null,null,{"$f":"SUBSTITUTE($AY188,\",\",\", \")","v":""}]
[]
[]
[null,null,null,null,null,null,null,null,null,null,null,null,null,{"$f":"AR191","v":""},null,null,null,null,null,null,null,null,null,null,null,null,null,null,null,null,null,null,null,null,null,null,null,null,null,null,null,null,null,{"$f":"SUBSTITUTE($AY191,\",\",\", \")","v":""}]
[]
[]
[null,null,null,null,null,null,null,null,null,null,null,null,null,{"$f":"AR194","v":""},null,null,null,null,null,null,null,null,null,null,null,null,null,null,null,null,null,null,null,null,null,null,null,null,null,null,null,null,null,{"$f":"SUBSTITUTE($AY194,\",\",\", \")","v":""}]
[]
[]
[null,null,null,null,null,null,null,null,null,null,null,null,null,{"$f":"AR197","v":""},null,null,null,null,null,null,null,null,null,null,null,null,null,null,null,null,null,null,null,null,null,null,null,null,null,null,null,null,null,{"$f":"SUBSTITUTE($AY197,\",\",\", \")","v":""}]
[]
[]
[null,null,null,null,null,null,null,null,null,null,null,null,null,{"$f":"AR200","v":""},null,null,null,null,null,null,null,null,null,null,null,null,null,null,null,null,null,null,null,null,null,null,null,null,null,null,null,null,null,{"$f":"SUBSTITUTE($AY200,\",\",\", \")","v":""}]
[]
[]
[null,null,null,null,null,null,null,null,null,null,null,null,null,{"$f":"AR203","v":""},null,null,null,null,null,null,null,null,null,null,null,null,null,null,null,null,null,null,null,null,null,null,null,null,null,null,null,null,null,{"$f":"SUBSTITUTE($AY203,\",\",\", \")","v":""}]
[]
[]
[null,null,null,null,null,null,null,null,null,null,null,null,null,{"$f":"AR206","v":""},null,null,null,null,null,null,null,null,null,null,null,null,null,null,null,null,null,null,null,null,null,null,null,null,null,null,null,null,null,{"$f":"SUBSTITUTE($AY206,\",\",\", \")","v":""}]
[]
[]
[null,null,null,null,null,null,null,null,null,null,null,null,null,{"$f":"AR209","v":""},null,null,null,null,null,null,null,null,null,null,null,null,null,null,null,null,null,null,null,null,null,null,null,null,null,null,null,null,null,{"$f":"SUBSTITUTE($AY209,\",\",\", \")","v":""}]
[]
[]
[null,null,null,null,null,null,null,null,null,null,null,null,null,{"$f":"AR212","v":""},null,null,null,null,null,null,null,null,null,null,null,null,null,null,null,null,null,null,null,null,null,null,null,null,null,null,null,null,null,{"$f":"SUBSTITUTE($AY212,\",\",\", \")","v":""}]
[]
[]
[null,null,null,null,null,null,null,null,null,null,null,null,null,{"$f":"AR215","v":""},null,null,null,null,null,null,null,null,null,null,null,null,null,null,null,null,null,null,null,null,null,null,null,null,null,null,null,null,null,{"$f":"SUBSTITUTE($AY215,\",\",\", \")","v":""}]
[]
[]
[null,null,null,null,null,null,null,null,null,null,null,null,null,{"$f":"AR218","v":""},null,null,null,null,null,null,null,null,null,null,null,null,null,null,null,null,null,null,null,null,null,null,null,null,null,null,null,null,null,{"$f":"SUBSTITUTE($AY218,\",\",\", \")","v":""}]
[]
[]
[null,null,null,null,null,null,null,null,null,null,null,null,null,{"$f":"AR221","v":""},null,null,null,null,null,null,null,null,null,null,null,null,null,null,null,null,null,null,null,null,null,null,null,null,null,null,null,null,null,{"$f":"SUBSTITUTE($AY221,\",\",\", \")","v":""}]
[]
[]
[null,null,null,null,null,null,null,null,null,null,null,null,null,{"$f":"AR224","v":""},null,null,null,null,null,null,null,null,null,null,null,null,null,null,null,null,null,null,null,null,null,null,null,null,null,null,null,null,null,{"$f":"SUBSTITUTE($AY224,\",\",\", \")","v":""}]
[]
[]
[null,null,null,null,null,null,null,null,null,null,null,null,null,{"$f":"AR227","v":""},null,null,null,null,null,null,null,null,null,null,null,null,null,null,null,null,null,null,null,null,null,null,null,null,null,null,null,null,null,{"$f":"SUBSTITUTE($AY227,\",\",\", \")","v":""}]
[]
[]
[null,null,null,null,null,null,null,null,null,null,null,null,null,{"$f":"AR230","v":""},null,null,null,null,null,null,null,null,null,null,null,null,null,null,null,null,null,null,null,null,null,null,null,null,null,null,null,null,null,{"$f":"SUBSTITUTE($AY230,\",\",\", \")","v":""}]
[]
[]
[null,null,null,null,null,null,null,null,null,null,null,null,null,{"$f":"AR233","v":""},null,null,null,null,null,null,null,null,null,null,null,null,null,null,null,null,null,null,null,null,null,null,null,null,null,null,null,null,null,{"$f":"SUBSTITUTE($AY233,\",\",\", \")","v":""}]
[]
[]
[null,null,null,null,null,null,null,null,null,null,null,null,null,{"$f":"AR236","v":""},null,null,null,null,null,null,null,null,null,null,null,null,null,null,null,null,null,null,null,null,null,null,null,null,null,null,null,null,null,{"$f":"SUBSTITUTE($AY236,\",\",\", \")","v":""}]
[]
[]
[null,null,null,null,null,null,null,null,null,null,null,null,null,{"$f":"AR239","v":""},null,null,null,null,null,null,null,null,null,null,null,null,null,null,null,null,null,null,null,null,null,null,null,null,null,null,null,null,null,{"$f":"SUBSTITUTE($AY239,\",\",\", \")","v":""}]
[]
[]
[null,null,null,null,null,null,null,null,null,null,null,null,null,{"$f":"AR242","v":""},null,null,null,null,null,null,null,null,null,null,null,null,null,null,null,null,null,null,null,null,null,null,null,null,null,null,null,null,null,{"$f":"SUBSTITUTE($AY242,\",\",\", \")","v":""}]
[]
[]
[null,null,null,null,null,null,null,null,null,null,null,null,null,{"$f":"AR245","v":""},null,null,null,null,null,null,null,null,null,null,null,null,null,null,null,null,null,null,null,null,null,null,null,null,null,null,null,null,null,{"$f":"SUBSTITUTE($AY245,\",\",\", \")","v":""}]
[]
[]
[null,null,null,null,null,null,null,null,null,null,null,null,null,{"$f":"AR248","v":""},null,null,null,null,null,null,null,null,null,null,null,null,null,null,null,null,null,null,null,null,null,null,null,null,null,null,null,null,null,{"$f":"SUBSTITUTE($AY248,\",\",\", \")","v":""},null,null,null,null,null,null,null,null,null,"{Roach_Infestation5(1)}"]
[]
[]
[null,null,null,null,null,null,null,null,null,null,null,null,null,{"$f":"AR251","v":""},null,null,null,null,null,null,null,null,null,null,null,null,null,null,null,null,null,null,null,null,null,null,null,null,null,null,null,null,null,{"$f":"SUBSTITUTE($AY251,\",\",\", \")","v":""},null,null,null,null,null,null,null,null,null,"{Roach_Infestation5(2)}"]
[]
[]
[null,null,null,null,null,null,null,null,null,null,null,null,null,{"$f":"AR254","v":""},null,null,null,null,null,null,null,null,null,null,null,null,null,null,null,null,null,null,null,null,null,null,null,null,null,null,null,null,null,{"$f":"SUBSTITUTE($AY254,\",\",\", \")","v":""},null,null,null,null,null,null,null,null,null,"{Roach_Infestation5(3)}"]
[]
[]
[null,null,null,null,null,null,null,null,null,null,null,null,null,{"$f":"AR257","v":""},null,null,null,null,null,null,null,null,null,null,null,null,null,null,null,null,null,null,null,null,null,null,null,null,null,null,null,null,null,{"$f":"SUBSTITUTE($AY257,\",\",\", \")","v":""},null,null,null,null,null,null,null,null,null,"{Roach_Infestation5(4)}"]
[]
[]
[null,null,null,null,null,null,null,null,null,null,null,null,null,{"$f":"AR260","v":""},null,null,null,null,null,null,null,null,null,null,null,null,null,null,null,null,null,null,null,null,null,null,null,null,null,null,null,null,null,{"$f":"SUBSTITUTE($AY260,\",\",\", \")","v":""},null,null,null,null,null,null,null,null,null,"{Roach_Infestation5(5)}"]
[]
[]
[null,null,null,null,null,null,null,null,null,null,null,null,null,{"$f":"AR263","v":""},null,null,null,null,null,null,null,null,null,null,null,null,null,null,null,null,null,null,null,null,null,null,null,null,null,null,null,null,null,{"$f":"SUBSTITUTE($AY263,\",\",\", \")","v":""},null,null,null,null,null,null,null,null,null,"{Roach_Infestation5(6)}"]
[]
[]
[null,null,null,null,null,null,null,null,null,null,null,null,null,{"$f":"AR266","v":""},null,null,null,null,null,null,null,null,null,null,null,null,null,null,null,null,null,null,null,null,null,null,null,null,null,null,null,null,null,{"$f":"SUBSTITUTE($AY266,\",\",\", \")","v":""},null,null,null,null,null,null,null,null,null,"{Roach_Infestation5(7)}"]
[]
[]
[null,null,null,null,null,null,null,null,null,null,null,null,null,{"$f":"AR269","v":""},null,null,null,null,null,null,null,null,null,null,null,null,null,null,null,null,null,null,null,null,null,null,null,null,null,null,null,null,null,{"$f":"SUBSTITUTE($AY269,\",\",\", \")","v":""},null,null,null,null,null,null,null,null,null,"{Roach_Infestation5(8)}"]
[]
[]
[null,null,null,null,null,null,null,null,null,null,null,null,null,{"$f":"AR272","v":""},null,null,null,null,null,null,null,null,null,null,null,null,null,null,null,null,null,null,null,null,null,null,null,null,null,null,null,null,null,{"$f":"SUBSTITUTE($AY272,\",\",\", \")","v":""},null,null,null,null,null,null,null,null,null,"{Roach_Infestation5(9)}"]
[]
[]
[null,null,null,null,null,null,null,null,null,null,null,null,null,{"$f":"AR275","v":""},null,null,null,null,null,null,null,null,null,null,null,null,null,null,null,null,null,null,null,null,null,null,null,null,null,null,null,null,null,{"$f":"SUBSTITUTE($AY275,\",\",\", \")","v":""},null,null,null,null,null,null,null,null,null,"{Roach_Infestation5(10)}"]
[]
[]
[null,null,null,null,null,null,null,null,null,null,null,null,null,{"$f":"AR278","v":""},null,null,null,null,null,null,null,null,null,null,null,null,null,null,null,null,null,null,null,null,null,null,null,null,null,null,null,null,null,{"$f":"SUBSTITUTE($AY278,\",\",\", \")","v":""},null,null,null,null,null,null,null,null,null,"{Roach_Infestation5(11)}"]
[]
[]
[null,null,null,null,null,null,null,null,null,null,null,null,null,{"$f":"AR281","v":""},null,null,null,null,null,null,null,null,null,null,null,null,null,null,null,null,null,null,null,null,null,null,null,null,null,null,null,null,null,{"$f":"SUBSTITUTE($AY281,\",\",\", \")","v":""},null,null,null,null,null,null,null,null,null,"{Roach_Infestation5(12)}"]
[]
[]
[null,null,null,null,null,null,null,null,null,null,null,null,null,{"$f":"AR284","v":""},null,null,null,null,null,null,null,null,null,null,null,null,null,null,null,null,null,null,null,null,null,null,null,null,null,null,null,null,null,{"$f":"SUBSTITUTE($AY284,\",\",\", \")","v":""},null,null,null,null,null,null,null,null,null,"{Roach_Infestation5(13)}"]
[]
[]
[null,null,null,null,null,null,null,null,null,null,null,null,null,{"$f":"AR287","v":""},null,null,null,null,null,null,null,null,null,null,null,null,null,null,null,null,null,null,null,null,null,null,null,null,null,null,null,null,null,{"$f":"SUBSTITUTE($AY287,\",\",\", \")","v":""},null,null,null,null,null,null,null,null,null,"{Roach_Infestation5(14)}"]
[]
[]
[null,null,null,null,null,null,null,null,null,null,null,null,null,{"$f":"AR290","v":""},null,null,null,null,null,null,null,null,null,null,null,null,null,null,null,null,null,null,null,null,null,null,null,null,null,null,null,null,null,{"$f":"SUBSTITUTE($AY290,\",\",\", \")","v":""},null,null,null,null,null,null,null,null,null,"{Roach_Infestation5(15)}"]
[]
[]
[null,null,null,null,null,null,null,null,null,null,null,null,null,{"$f":"AR293","v":""},null,null,null,null,null,null,null,null,null,null,null,null,null,null,null,null,null,null,null,null,null,null,null,null,null,null,null,null,null,{"$f":"SUBSTITUTE($AY293,\",\",\", \")","v":""},null,null,null,null,null,null,null,null,null,"{Roach_Infestation5(16)}"]
[]
[]
[null,null,null,null,null,null,null,null,null,null,null,null,null,{"$f":"AR296","v":""},null,null,null,null,null,null,null,null,null,null,null,null,null,null,null,null,null,null,null,null,null,null,null,null,null,null,null,null,null,{"$f":"SUBSTITUTE($AY296,\",\",\", \")","v":""},null,null,null,null,null,null,null,null,null,"{Roach_Infestation5(17)}"]
[]
[]
[null,null,null,null,null,null,null,null,null,null,null,null,null,{"$f":"AR299","v":""},null,null,null,null,null,null,null,null,null,null,null,null,null,null,null,null,null,null,null,null,null,null,null,null,null,null,null,null,null,{"$f":"SUBSTITUTE($AY299,\",\",\", \")","v":""},null,null,null,null,null,null,null,null,null,"{Roach_Infestation5(18)}"]
[]
[]
[null,null,null,null,null,null,null,null,null,null,null,null,null,{"$f":"AR302","v":""},null,null,null,null,null,null,null,null,null,null,null,null,null,null,null,null,null,null,null,null,null,null,null,null,null,null,null,null,null,{"$f":"SUBSTITUTE($AY302,\",\",\", \")","v":""},null,null,null,null,null,null,null,null,null,"{Roach_Infestation5(19)}"]
[]
[]
[null,null,null,null,null,null,null,null,null,null,null,null,null,{"$f":"AR305","v":""},null,null,null,null,null,null,null,null,null,null,null,null,null,null,null,null,null,null,null,null,null,null,null,null,null,null,null,null,null,{"$f":"SUBSTITUTE($AY305,\",\",\", \")","v":""},null,null,null,null,null,null,null,null,null,"{Roach_Infestation5(20)}"]
[]
[]
[null,null,null,null,null,null,null,null,null,null,null,null,null,{"$f":"AR308","v":""},null,null,null,null,null,null,null,null,null,null,null,null,null,null,null,null,null,null,null,null,null,null,null,null,null,null,null,null,null,{"$f":"SUBSTITUTE($AY308,\",\",\", \")","v":""},null,null,null,null,null,null,null,null,null,"{Roach_Infestation6(1)}"]
[]
[]
[null,null,null,null,null,null,null,null,null,null,null,null,null,{"$f":"AR311","v":""},null,null,null,null,null,null,null,null,null,null,null,null,null,null,null,null,null,null,null,null,null,null,null,null,null,null,null,null,null,{"$f":"SUBSTITUTE($AY311,\",\",\", \")","v":""},null,null,null,null,null,null,null,null,null,"{Roach_Infestation6(2)}"]
[]
[]
[null,null,null,null,null,null,null,null,null,null,null,null,null,{"$f":"AR314","v":""},null,null,null,null,null,null,null,null,null,null,null,null,null,null,null,null,null,null,null,null,null,null,null,null,null,null,null,null,null,{"$f":"SUBSTITUTE($AY314,\",\",\", \")","v":""},null,null,null,null,null,null,null,null,null,"{Roach_Infestation6(3)}"]
[]
[]
[null,null,null,null,null,null,null,null,null,null,null,null,null,{"$f":"AR317","v":""},null,null,null,null,null,null,null,null,null,null,null,null,null,null,null,null,null,null,null,null,null,null,null,null,null,null,null,null,null,{"$f":"SUBSTITUTE($AY317,\",\",\", \")","v":""},null,null,null,null,null,null,null,null,null,"{Roach_Infestation6(4)}"]
[]
[]
[null,null,null,null,null,null,null,null,null,null,null,null,null,{"$f":"AR320","v":""},null,null,null,null,null,null,null,null,null,null,null,null,null,null,null,null,null,null,null,null,null,null,null,null,null,null,null,null,null,{"$f":"SUBSTITUTE($AY320,\",\",\", \")","v":""},null,null,null,null,null,null,null,null,null,"{Roach_Infestation6(5)}"]
[]
[]
[null,null,null,null,null,null,null,null,null,null,null,null,null,{"$f":"AR323","v":""},null,null,null,null,null,null,null,null,null,null,null,null,null,null,null,null,null,null,null,null,null,null,null,null,null,null,null,null,null,{"$f":"SUBSTITUTE($AY323,\",\",\", \")","v":""},null,null,null,null,null,null,null,null,null,"{Roach_Infestation6(6)}"]
[]
[]
[null,null,null,null,null,null,null,null,null,null,null,null,null,{"$f":"AR326","v":""},null,null,null,null,null,null,null,null,null,null,null,null,null,null,null,null,null,null,null,null,null,null,null,null,null,null,null,null,null,{"$f":"SUBSTITUTE($AY326,\",\",\", \")","v":""},null,null,null,null,null,null,null,null,null,"{Roach_Infestation6(7)}"]
[]
[]
[null,null,null,null,null,null,null,null,null,null,null,null,null,{"$f":"AR329","v":""},null,null,null,null,null,null,null,null,null,null,null,null,null,null,null,null,null,null,null,null,null,null,null,null,null,null,null,null,null,{"$f":"SUBSTITUTE($AY329,\",\",\", \")","v":""},null,null,null,null,null,null,null,null,null,"{Roach_Infestation6(8)}"]
[]
[]
[null,null,null,null,null,null,null,null,null,null,null,null,null,{"$f":"AR332","v":""},null,null,null,null,null,null,null,null,null,null,null,null,null,null,null,null,null,null,null,null,null,null,null,null,null,null,null,null,null,{"$f":"SUBSTITUTE($AY332,\",\",\", \")","v":""},null,null,null,null,null,null,null,null,null,"{Roach_Infestation6(9)}"]
[]
[]
[null,null,null,null,null,null,null,null,null,null,null,null,null,{"$f":"AR335","v":""},null,null,null,null,null,null,null,null,null,null,null,null,null,null,null,null,null,null,null,null,null,null,null,null,null,null,null,null,null,{"$f":"SUBSTITUTE($AY335,\",\",\", \")","v":""},null,null,null,null,null,null,null,null,null,"{Roach_Infestation6(10)}"]
[]
[]
[null,null,null,null,null,null,null,null,null,null,null,null,null,{"$f":"AR338","v":""},null,null,null,null,null,null,null,null,null,null,null,null,null,null,null,null,null,null,null,null,null,null,null,null,null,null,null,null,null,{"$f":"SUBSTITUTE($AY338,\",\",\", \")","v":""},null,null,null,null,null,null,null,null,null,"{Roach_Infestation6(11)}"]
[]
[]
[null,null,null,null,null,null,null,null,null,null,null,null,null,{"$f":"AR341","v":""},null,null,null,null,null,null,null,null,null,null,null,null,null,null,null,null,null,null,null,null,null,null,null,null,null,null,null,null,null,{"$f":"SUBSTITUTE($AY341,\",\",\", \")","v":""},null,null,null,null,null,null,null,null,null,"{Roach_Infestation6(12)}"]
[]
[]
[null,null,null,null,null,null,null,null,null,null,null,null,null,{"$f":"AR344","v":""},null,null,null,null,null,null,null,null,null,null,null,null,null,null,null,null,null,null,null,null,null,null,null,null,null,null,null,null,null,{"$f":"SUBSTITUTE($AY344,\",\",\", \")","v":""},null,null,null,null,null,null,null,null,null,"{Roach_Infestation6(13)}"]
[]
[]
[null,null,null,null,null,null,null,null,null,null,null,null,null,{"$f":"AR347","v":""},null,null,null,null,null,null,null,null,null,null,null,null,null,null,null,null,null,null,null,null,null,null,null,null,null,null,null,null,null,{"$f":"SUBSTITUTE($AY347,\",\",\", \")","v":""},null,null,null,null,null,null,null,null,null,"{Roach_Infestation6(14)}"]
[]
[]
[null,null,null,null,null,null,null,null,null,null,null,null,null,{"$f":"AR350","v":""},null,null,null,null,null,null,null,null,null,null,null,null,null,null,null,null,null,null,null,null,null,null,null,null,null,null,null,null,null,{"$f":"SUBSTITUTE($AY350,\",\",\", \")","v":""},null,null,null,null,null,null,null,null,null,"{Roach_Infestation6(15)}"]
[]
[]
[null,null,null,null,null,null,null,null,null,null,null,null,null,{"$f":"AR353","v":""},null,null,null,null,null,null,null,null,null,null,null,null,null,null,null,null,null,null,null,null,null,null,null,null,null,null,null,null,null,{"$f":"SUBSTITUTE($AY353,\",\",\", \")","v":""},null,null,null,null,null,null,null,null,null,"{Roach_Infestation6(16)}"]
[]
[]
[null,null,null,null,null,null,null,null,null,null,null,null,null,{"$f":"AR356","v":""},null,null,null,null,null,null,null,null,null,null,null,null,null,null,null,null,null,null,null,null,null,null,null,null,null,null,null,null,null,{"$f":"SUBSTITUTE($AY356,\",\",\", \")","v":""},null,null,null,null,null,null,null,null,null,"{Roach_Infestation6(17)}"]
[]
[]
[null,null,null,null,null,null,null,null,null,null,null,null,null,{"$f":"AR359","v":""},null,null,null,null,null,null,null,null,null,null,null,null,null,null,null,null,null,null,null,null,null,null,null,null,null,null,null,null,null,{"$f":"SUBSTITUTE($AY359,\",\",\", \")","v":""},null,null,null,null,null,null,null,null,null,"{Roach_Infestation6(18)}"]
[]
[]
[null,null,null,null,null,null,null,null,null,null,null,null,null,{"$f":"AR362","v":""},null,null,null,null,null,null,null,null,null,null,null,null,null,null,null,null,null,null,null,null,null,null,null,null,null,null,null,null,null,{"$f":"SUBSTITUTE($AY362,\",\",\", \")","v":""},null,null,null,null,null,null,null,null,null,"{Roach_Infestation6(19)}"]
[]
[]
[null,null,null,null,null,null,null,null,null,null,null,null,null,{"$f":"AR365","v":""},null,null,null,null,null,null,null,null,null,null,null,null,null,null,null,null,null,null,null,null,null,null,null,null,null,null,null,null,null,{"$f":"SUBSTITUTE($AY365,\",\",\", \")","v":""},null,null,null,null,null,null,null,null,null,"{Roach_Infestation6(20)}"]
[]
[]
[null,null,null,null,null,null,null,null,null,null,null,null,null,{"$f":"AR368","v":""},null,null,null,null,null,null,null,null,null,null,null,null,null,null,null,null,null,null,null,null,null,null,null,null,null,null,null,null,null,{"$f":"SUBSTITUTE($AY368,\",\",\", \")","v":""},null,null,null,null,null,null,null,null,null,"{Roach_Infestation7(1)}"]
[]
[]
[null,null,null,null,null,null,null,null,null,null,null,null,null,{"$f":"AR371","v":""},null,null,null,null,null,null,null,null,null,null,null,null,null,null,null,null,null,null,null,null,null,null,null,null,null,null,null,null,null,{"$f":"SUBSTITUTE($AY371,\",\",\", \")","v":""},null,null,null,null,null,null,null,null,null,"{Roach_Infestation7(2)}"]
[]
[]
[null,null,null,null,null,null,null,null,null,null,null,null,null,{"$f":"AR374","v":""},null,null,null,null,null,null,null,null,null,null,null,null,null,null,null,null,null,null,null,null,null,null,null,null,null,null,null,null,null,{"$f":"SUBSTITUTE($AY374,\",\",\", \")","v":""},null,null,null,null,null,null,null,null,null,"{Roach_Infestation7(3)}"]
[]
[]
[null,null,null,null,null,null,null,null,null,null,null,null,null,{"$f":"AR377","v":""},null,null,null,null,null,null,null,null,null,null,null,null,null,null,null,null,null,null,null,null,null,null,null,null,null,null,null,null,null,{"$f":"SUBSTITUTE($AY377,\",\",\", \")","v":""},null,null,null,null,null,null,null,null,null,"{Roach_Infestation7(4)}"]
[]
[]
[null,null,null,null,null,null,null,null,null,null,null,null,null,{"$f":"AR380","v":""},null,null,null,null,null,null,null,null,null,null,null,null,null,null,null,null,null,null,null,null,null,null,null,null,null,null,null,null,null,{"$f":"SUBSTITUTE($AY380,\",\",\", \")","v":""},null,null,null,null,null,null,null,null,null,"{Roach_Infestation7(5)}"]
[]
[]
[null,null,null,null,null,null,null,null,null,null,null,null,null,{"$f":"AR383","v":""},null,null,null,null,null,null,null,null,null,null,null,null,null,null,null,null,null,null,null,null,null,null,null,null,null,null,null,null,null,{"$f":"SUBSTITUTE($AY383,\",\",\", \")","v":""},null,null,null,null,null,null,null,null,null,"{Roach_Infestation7(6)}"]
[]
[]
[null,null,null,null,null,null,null,null,null,null,null,null,null,{"$f":"AR386","v":""},null,null,null,null,null,null,null,null,null,null,null,null,null,null,null,null,null,null,null,null,null,null,null,null,null,null,null,null,null,{"$f":"SUBSTITUTE($AY386,\",\",\", \")","v":""},null,null,null,null,null,null,null,null,null,"{Roach_Infestation7(7)}"]
[]
[]
[null,null,null,null,null,null,null,null,null,null,null,null,null,{"$f":"AR389","v":""},null,null,null,null,null,null,null,null,null,null,null,null,null,null,null,null,null,null,null,null,null,null,null,null,null,null,null,null,null,{"$f":"SUBSTITUTE($AY389,\",\",\", \")","v":""},null,null,null,null,null,null,null,null,null,"{Roach_Infestation7(8)}"]
[]
[]
[null,null,null,null,null,null,null,null,null,null,null,null,null,{"$f":"AR392","v":""},null,null,null,null,null,null,null,null,null,null,null,null,null,null,null,null,null,null,null,null,null,null,null,null,null,null,null,null,null,{"$f":"SUBSTITUTE($AY392,\",\",\", \")","v":""},null,null,null,null,null,null,null,null,null,"{Roach_Infestation7(9)}"]
[]
[]
[null,null,null,null,null,null,null,null,null,null,null,null,null,{"$f":"AR395","v":""},null,null,null,null,null,null,null,null,null,null,null,null,null,null,null,null,null,null,null,null,null,null,null,null,null,null,null,null,null,{"$f":"SUBSTITUTE($AY395,\",\",\", \")","v":""},null,null,null,null,null,null,null,null,null,"{Roach_Infestation7(10)}"]
[]
[]
[null,null,null,null,null,null,null,null,null,null,null,null,null,{"$f":"AR398","v":""},null,null,null,null,null,null,null,null,null,null,null,null,null,null,null,null,null,null,null,null,null,null,null,null,null,null,null,null,null,{"$f":"SUBSTITUTE($AY398,\",\",\", \")","v":""},null,null,null,null,null,null,null,null,null,"{Roach_Infestation7(11)}"]
[]
[]
[null,null,null,null,null,null,null,null,null,null,null,null,null,{"$f":"AR401","v":""},null,null,null,null,null,null,null,null,null,null,null,null,null,null,null,null,null,null,null,null,null,null,null,null,null,null,null,null,null,{"$f":"SUBSTITUTE($AY401,\",\",\", \")","v":""},null,null,null,null,null,null,null,null,null,"{Roach_Infestation7(12)}"]
[]
[]
[null,null,null,null,null,null,null,null,null,null,null,null,null,{"$f":"AR404","v":""},null,null,null,null,null,null,null,null,null,null,null,null,null,null,null,null,null,null,null,null,null,null,null,null,null,null,null,null,null,{"$f":"SUBSTITUTE($AY404,\",\",\", \")","v":""},null,null,null,null,null,null,null,null,null,"{Roach_Infestation7(13)}"]
[]
[]
[null,null,null,null,null,null,null,null,null,null,null,null,null,{"$f":"AR407","v":""},null,null,null,null,null,null,null,null,null,null,null,null,null,null,null,null,null,null,null,null,null,null,null,null,null,null,null,null,null,{"$f":"SUBSTITUTE($AY407,\",\",\", \")","v":""},null,null,null,null,null,null,null,null,null,"{Roach_Infestation7(14)}"]
[]
[]
[null,null,null,null,null,null,null,null,null,null,null,null,null,{"$f":"AR410","v":""},null,null,null,null,null,null,null,null,null,null,null,null,null,null,null,null,null,null,null,null,null,null,null,null,null,null,null,null,null,{"$f":"SUBSTITUTE($AY410,\",\",\", \")","v":""},null,null,null,null,null,null,null,null,null,"{Roach_Infestation7(15)}"]
[]
[]
[null,null,null,null,null,null,null,null,null,null,null,null,null,{"$f":"AR413","v":""},null,null,null,null,null,null,null,null,null,null,null,null,null,null,null,null,null,null,null,null,null,null,null,null,null,null,null,null,null,{"$f":"SUBSTITUTE($AY413,\",\",\", \")","v":""},null,null,null,null,null,null,null,null,null,"{Roach_Infestation7(16)}"]
[]
[]
[null,null,null,null,null,null,null,null,null,null,null,null,null,{"$f":"AR416","v":""},null,null,null,null,null,null,null,null,null,null,null,null,null,null,null,null,null,null,null,null,null,null,null,null,null,null,null,null,null,{"$f":"SUBSTITUTE($AY416,\",\",\", \")","v":""},null,null,null,null,null,null,null,null,null,"{Roach_Infestation7(17)}"]
[]
[]
[null,null,null,null,null,null,null,null,null,null,null,null,null,{"$f":"AR419","v":""},null,null,null,null,null,null,null,null,null,null,null,null,null,null,null,null,null,null,null,null,null,null,null,null,null,null,null,null,null,{"$f":"SUBSTITUTE($AY419,\",\",\", \")","v":""},null,null,null,null,null,null,null,null,null,"{Roach_Infestation7(18)}"]
[]
[]
[null,null,null,null,null,null,null,null,null,null,null,null,null,{"$f":"AR422","v":""},null,null,null,null,null,null,null,null,null,null,null,null,null,null,null,null,null,null,null,null,null,null,null,null,null,null,null,null,null,{"$f":"SUBSTITUTE($AY422,\",\",\", \")","v":""},null,null,null,null,null,null,null,null,null,"{Roach_Infestation7(19)}"]
[]
[]
[null,null,null,null,null,null,null,null,null,null,null,null,null,{"$f":"AR425","v":""},null,null,null,null,null,null,null,null,null,null,null,null,null,null,null,null,null,null,null,null,null,null,null,null,null,null,null,null,null,{"$f":"SUBSTITUTE($AY425,\",\",\", \")","v":""},null,null,null,null,null,null,null,null,null,"{Roach_Infestation7(20)}"]
[]
[]
[null,null,null,null,null,null,null,null,null,null,null,null,null,{"$f":"AR428","v":""},null,null,null,null,null,null,null,null,null,null,null,null,null,null,null,null,null,null,null,null,null,null,null,null,null,null,null,null,null,{"$f":"SUBSTITUTE($AY428,\",\",\", \")","v":""},null,null,null,null,null,null,null,null,null,"{Roach_Infestation7(1)}"]
[]
[]
[null,null,null,null,null,null,null,null,null,null,null,null,null,{"$f":"AR431","v":""},null,null,null,null,null,null,null,null,null,null,null,null,null,null,null,null,null,null,null,null,null,null,null,null,null,null,null,null,null,{"$f":"SUBSTITUTE($AY431,\",\",\", \")","v":""},null,null,null,null,null,null,null,null,null,"{Roach_Infestation7(2)}"]
[]
[]
[null,null,null,null,null,null,null,null,null,null,null,null,null,{"$f":"AR434","v":""},null,null,null,null,null,null,null,null,null,null,null,null,null,null,null,null,null,null,null,null,null,null,null,null,null,null,null,null,null,{"$f":"SUBSTITUTE($AY434,\",\",\", \")","v":""},null,null,null,null,null,null,null,null,null,"{Roach_Infestation7(3)}"]
[]
[]
[null,null,null,null,null,null,null,null,null,null,null,null,null,{"$f":"AR437","v":""},null,null,null,null,null,null,null,null,null,null,null,null,null,null,null,null,null,null,null,null,null,null,null,null,null,null,null,null,null,{"$f":"SUBSTITUTE($AY437,\",\",\", \")","v":""},null,null,null,null,null,null,null,null,null,"{Roach_Infestation7(4)}"]
[]
[]
[null,null,null,null,null,null,null,null,null,null,null,null,null,{"$f":"AR440","v":""},null,null,null,null,null,null,null,null,null,null,null,null,null,null,null,null,null,null,null,null,null,null,null,null,null,null,null,null,null,{"$f":"SUBSTITUTE($AY440,\",\",\", \")","v":""},null,null,null,null,null,null,null,null,null,"{Roach_Infestation7(5)}"]
[]
[]
[null,null,null,null,null,null,null,null,null,null,null,null,null,{"$f":"AR443","v":""},null,null,null,null,null,null,null,null,null,null,null,null,null,null,null,null,null,null,null,null,null,null,null,null,null,null,null,null,null,{"$f":"SUBSTITUTE($AY443,\",\",\", \")","v":""},null,null,null,null,null,null,null,null,null,"{Roach_Infestation7(6)}"]
[]
[]
[null,null,null,null,null,null,null,null,null,null,null,null,null,{"$f":"AR446","v":""},null,null,null,null,null,null,null,null,null,null,null,null,null,null,null,null,null,null,null,null,null,null,null,null,null,null,null,null,null,{"$f":"SUBSTITUTE($AY446,\",\",\", \")","v":""},null,null,null,null,null,null,null,null,null,"{Roach_Infestation7(7)}"]
[]
[]
[null,null,null,null,null,null,null,null,null,null,null,null,null,{"$f":"AR449","v":""},null,null,null,null,null,null,null,null,null,null,null,null,null,null,null,null,null,null,null,null,null,null,null,null,null,null,null,null,null,{"$f":"SUBSTITUTE($AY449,\",\",\", \")","v":""},null,null,null,null,null,null,null,null,null,"{Roach_Infestation7(8)}"]
[]
[]
[null,null,null,null,null,null,null,null,null,null,null,null,null,{"$f":"AR452","v":""},null,null,null,null,null,null,null,null,null,null,null,null,null,null,null,null,null,null,null,null,null,null,null,null,null,null,null,null,null,{"$f":"SUBSTITUTE($AY452,\",\",\", \")","v":""},null,null,null,null,null,null,null,null,null,"{Roach_Infestation7(9)}"]
[]
[]
[null,null,null,null,null,null,null,null,null,null,null,null,null,{"$f":"AR455","v":""},null,null,null,null,null,null,null,null,null,null,null,null,null,null,null,null,null,null,null,null,null,null,null,null,null,null,null,null,null,{"$f":"SUBSTITUTE($AY455,\",\",\", \")","v":""},null,null,null,null,null,null,null,null,null,"{Roach_Infestation7(10)}"]
[]
[]
[null,null,null,null,null,null,null,null,null,null,null,null,null,{"$f":"AR458","v":""},null,null,null,null,null,null,null,null,null,null,null,null,null,null,null,null,null,null,null,null,null,null,null,null,null,null,null,null,null,{"$f":"SUBSTITUTE($AY458,\",\",\", \")","v":""},null,null,null,null,null,null,null,null,null,"{Roach_Infestation7(11)}"]
[]
[]
[null,null,null,null,null,null,null,null,null,null,null,null,null,{"$f":"AR461","v":""},null,null,null,null,null,null,null,null,null,null,null,null,null,null,null,null,null,null,null,null,null,null,null,null,null,null,null,null,null,{"$f":"SUBSTITUTE($AY461,\",\",\", \")","v":""},null,null,null,null,null,null,null,null,null,"{Roach_Infestation7(12)}"]
[]
[]
[null,null,null,null,null,null,null,null,null,null,null,null,null,{"$f":"AR464","v":""},null,null,null,null,null,null,null,null,null,null,null,null,null,null,null,null,null,null,null,null,null,null,null,null,null,null,null,null,null,{"$f":"SUBSTITUTE($AY464,\",\",\", \")","v":""},null,null,null,null,null,null,null,null,null,"{Roach_Infestation7(13)}"]
[]
[]
[null,null,null,null,null,null,null,null,null,null,null,null,null,{"$f":"AR467","v":""},null,null,null,null,null,null,null,null,null,null,null,null,null,null,null,null,null,null,null,null,null,null,null,null,null,null,null,null,null,{"$f":"SUBSTITUTE($AY467,\",\",\", \")","v":""},null,null,null,null,null,null,null,null,null,"{Roach_Infestation7(14)}"]
[]
[]
[null,null,null,null,null,null,null,null,null,null,null,null,null,{"$f":"AR470","v":""},null,null,null,null,null,null,null,null,null,null,null,null,null,null,null,null,null,null,null,null,null,null,null,null,null,null,null,null,null,{"$f":"SUBSTITUTE($AY470,\",\",\", \")","v":""},null,null,null,null,null,null,null,null,null,"{Roach_Infestation7(15)}"]
[]
[]
[null,null,null,null,null,null,null,null,null,null,null,null,null,{"$f":"AR473","v":""},null,null,null,null,null,null,null,null,null,null,null,null,null,null,null,null,null,null,null,null,null,null,null,null,null,null,null,null,null,{"$f":"SUBSTITUTE($AY473,\",\",\", \")","v":""},null,null,null,null,null,null,null,null,null,"{Roach_Infestation7(16)}"]
[]
[]
[null,null,null,null,null,null,null,null,null,null,null,null,null,{"$f":"AR476","v":""},null,null,null,null,null,null,null,null,null,null,null,null,null,null,null,null,null,null,null,null,null,null,null,null,null,null,null,null,null,{"$f":"SUBSTITUTE($AY476,\",\",\", \")","v":""},null,null,null,null,null,null,null,null,null,"{Roach_Infestation7(17)}"]
[]
[]
[null,null,null,null,null,null,null,null,null,null,null,null,null,{"$f":"AR479","v":""},null,null,null,null,null,null,null,null,null,null,null,null,null,null,null,null,null,null,null,null,null,null,null,null,null,null,null,null,null,{"$f":"SUBSTITUTE($AY479,\",\",\", \")","v":""},null,null,null,null,null,null,null,null,null,"{Roach_Infestation7(18)}"]
[]
[]
[null,null,null,null,null,null,null,null,null,null,null,null,null,{"$f":"AR482","v":""},null,null,null,null,null,null,null,null,null,null,null,null,null,null,null,null,null,null,null,null,null,null,null,null,null,null,null,null,null,{"$f":"SUBSTITUTE($AY482,\",\",\", \")","v":""},null,null,null,null,null,null,null,null,null,"{Roach_Infestation7(19)}"]
[]
[]
[null,null,null,null,null,null,null,null,null,null,null,null,null,{"$f":"AR485","v":""},null,null,null,null,null,null,null,null,null,null,null,null,null,null,null,null,null,null,null,null,null,null,null,null,null,null,null,null,null,{"$f":"SUBSTITUTE($AY485,\",\",\", \")","v":""},null,null,null,null,null,null,null,null,null,"{Roach_Infestation7(20)}"]